Workbook

Sheet Cover (hidden)
A1: Government Actuary's Department
A2: Northern Ireland Civil Service Pension Scheme Calculator
A3: Cover
A4: =CELL("filename",A1) -> C:\Users\dof-aytond\Desktop\[NICS - BenProjectCalculator v0.21.xlsm]Cover
A6: Security classification
A7: Descriptor
A9: Specification
B11: This aims to give an estimate of a police officer's pension at different retirement ages
A13: Explanation
A15: Sheet | B15: Description
B16: > Enter a brief description of what each sheet actually does here
A26: Material assumptions
B27: > Enter a brief description of any material implicit assumptions used within the workbook (explicit assumptions can be identified by their pink colouring as below)
A36: User instructions
B38: > If necessary, enter instructions on how other users should use or update this workbook here. Include warnings in particular if the spreadsheet requires Goal Seek or Macros to be rerun if the any of the inputs are changed.
A40: External links: Links from other workbooks to this workbook
A42: List of workbooks which link into this workbook (nb workbooks which this workbook links to can be viewed by selecting Data>Edit Links):
B43: > Enter hyperlinks to workbooks here
A45: Legend
A46: Blue text | B46: Input data
A47: Red text | B47: Links from another (external) workbook
A48: Pink text | B48: Assumptions
A49: Green text | B49: Links from another cell within this workbook
A50: Black text | B50: Calculations
A51: Orange background | B51: Linked upwards to other workbooks
A52: Turquoise background | B52: Quoted in external advice
A53: Grey text | B53: Checks
A54: UNCLASSIFIED
A55: PROTECT
A56: RESTRICTED
A57: CONFIDENTIAL
A58: <No Descriptor>
A59: COMMERCIAL in CONFIDENCE
A60: CONTRACTS
A61: MANAGEMENT
A62: PERSONAL
A63: POLICY
A64: SCHEME MANAGEMENT
A65: STAFF
A66: 2
A67: 7

Sheet Version control (hidden)
A1: Government Actuary's Department
A2: =IF(title="> Enter workbook title here","Enter workbook title in Cover sheet",title) -> Northern Ireland Civil Service Pension Scheme Calculator
A3: Version Control
A4: =CELL("filename",A1) -> C:\Users\dof-aytond\Desktop\[NICS - BenProjectCalculator v0.21.xlsm]Version control
A6: Version number | B6: File pathname | C6: Paper file | D6: eBis code | E6: Internal or external documents based on this version | F6: Author or Editor | G6: Date | H6: Comments | I6: Checked by | J6: Date | K6: Comments | L6: External links checked?
A7: 1_1 | B7: K:\a2clients\Police Pensions\0140-00972 Home Office Police\Cost Ceiling\Pension estimator\[Pension calculator v0.01.xlsm]Version control | F7: Michael Crabtree | G7: 2012-08-15 | H7: Produced inputs / outputs sheet that will be visible to clients and set up calcs for tapering | I7: Brian Allan | J7: 2012-08-16 | K7: Comments on input output and first stage of PPS/NPPS calcs in my email of 16 Aug 2012 15:30
A8: 2 | B8: K:\a2clients\Police Pensions\0140-00972 Home Office Police\Cost Ceiling\Pension estimator\[Pension calculator v0.02.xlsm]Version control | F8: Michael Crabtree | G8: 2012-08-17 | H8: Created subsections for calculating service period and benefits in current and new schemes, noting need to separate them for those retiring before and after protection date, and made a start on producing summary sheet | I8: Brian Allan | J8: 2012-08-20 | K8: Comments on whole calculator: pension at retirement continuing in current scheme missing CARE ERFs incorrect and formula I supplied for CARE does not work for deferred benefits at SPA. Some tidying of the sheet | L8: Yes: Link in Parameters sheet correct
A9: 3 | B9: K:\a2clients\Police Pensions\0140-00972 Home Office Police\Cost Ceiling\Pension estimator\[Pension calculator v0.03.xlsm]Version control | F9: Michael Crabtree | G9: 2012-08-21 | H9: Produced further calcs to look at results if there was no reform and added deferred benefit calcs available at SPA for PPS members who retire before age 55 | I9: Brian Allan | J9: 2012-08-21 | K9: Pension at retirement ignoring reform missing from output sheet CARE formula I supplied for CARE needs a correction which then allows simplification More results needed on Summary sheet.
A10: 4 | B10: K:\a2clients\Police Pensions\0140-00972 Home Office Police\Cost Ceiling\Pension estimator\[Pension calculator v0.04.xlsm]Version control | F10: Michael Crabtree | G10: 2012-08-21 | H10: Added results looking at benefits under no reform in outputs, made a correction to new scheme pension formula and put more information in the summary sheet | I10: Brian Allan | J10: 2012-08-21 | K10: Summary sheet has: incorrect reference for expected retirement date of retirement and age at retirement needs service to retirement for NO REFORM Amended some labelling in PPS and NPPS Calcs
A11: 5 | B11: K:\a2clients\Police Pensions\0140-00972 Home Office Police\Cost Ceiling\Pension estimator\[Pension calculator v0.05.xlsm]Version control | F11: Michael Crabtree | G11: 2012-08-22 | H11: Made further additions and checks to summary sheet in regards to the no reform results and amended cell references | I11: Brian Allan | J11: 2012-08-22 | K11: Checked and agreed
A12: 6 | B12: K:\a2clients\Police Pensions\0140-00972 Home Office Police\Cost Ceiling\Pension estimator\[Pension calculator v0.06.xlsm]Version control | F12: Michael Crabtree | G12: 2012-08-22 | H12: Amended calcs for PPS pensions (to take account of double accrual and limit maximum), updated ERFs to be inputs instead of links and added LRFs for retirement beyond 60 | I12: Brian Allan Sam Watts | J12: 2012-08-23 | K12: Max service not applied correctly in benefit calculations or summary accrual calc. ERFs+LRFs not calculated geometrically (required as compounding) and LRFs not applied correctly. The ERF LRF should be rounded to a single common factor.
A13: 7 | B13: \\Gad-a2\a2data\a2clients\Police Pensions\0140-00972 Home Office Police\Cost Ceiling\Pension estimator\Pension calculator v0.07.xlsm | F13: Mara | G13: 2012-08-23 | H13: Included validation, basically message boxes to warn when entries may look incorrect. | I13: Brian Allan | J13: 2012-08-24 | K13: • As asked the checks mostly sequence down the list of inputs, but I still want the tool to reject inputs for the case of someone joining the PPS after 6/4/2006. Can you experiment further with putting this into either or both of the DJS and choice of scheme inputs. At the moment the validation allows you to select PPS except when your DoB implies you would have been too young to join earlier than or at 6/4/2006. • I like your date precise calculations, but I think C64 should have 25 not 22 in the formula • Please include transfer in service in your calculations of min PPS retirement age.
A14: 8 | B14: Pension calculator v0.08.xlsm | F14: Mara | G14: 2012-08-24 | H14: Amended in accordance with Brian's comments. | I14: Brian Allan | J14: 2012-08-24 | K14: Checked changes and made following change: used the date function to adjust DJS for TV in service to determine range of possible retirement ages
A15: 9 | B15: K:\a2clients\Police Pensions\0140-00972 Home Office Police\Cost Ceiling\Pension estimator\[Pension calculator v0.09.xlsm]Version control | F15: Michael Crabtree | G15: 2012-08-24 | H15: Changed ERF and LRF factors to be the same, amended accrual formula in summary to take account of maximum service and added an uplift applicable to NPPS members who joined before the NPPS scheme started | I15: Brian Allan | J15: 2012-08-24 | K15: Checked. Agree ERF/LRF, summary, PPS max service changes PPS->NPPS transfer uplift calcs need to reflect transfer assumed on 6/4/2006, cap on service lookup, correct service lookup column
A16: 10 | B16: K:\a2clients\Police Pensions\0140-00972 Home Office Police\Cost Ceiling\Pension estimator\[Pension calculator v0.10.xlsm]Version control | F16: Michael Crabtree | G16: 2012-08-28 | H16: Amended uplift formula to take account of NPPS start date for service period, removed circular reference and added a new calc for PPS members choosing to retire before age 55 who want new scheme benefits at 55 | I16: Brian Allan | J16: 2012-08-28 | K16: Checked and agreed the PPS->NPPS changes. However the deferred at 55 CARE pension introduced for the HO Q&A doc SW: use a geometric method for deferred revaluation ie (1/1.0225)^durn
A17: 11 | B17: K:\a2clients\Police Pensions\0140-00972 Home Office Police\Cost Ceiling\Pension estimator\[Pension calculator v0.11.xlsm]Version control | F17: Michael Crabtree | G17: 2012-08-28 | H17: Amended years used to apply ERF, added another derefferd pension case for those under 55 and updated summary | I17: Brian Allan | J17: 2012-08-29 | K17: Agree change to application of deferred revaluation. New deferred new scheme benefits at SPA for retirement at 55 incorrect, should be deferred revals to SPA only, no ERF.
A18: 12 | B18: K:\a2clients\Police Pensions\0140-00972 Home Office Police\Cost Ceiling\Pension estimator\[Pension calculator v0.12.xlsm]Version control | F18: Michael Crabtree | G18: 2012-08-29 | H18: Amended case of those PPS members retiring at 55 who want new scheme benefits at SPA so that LRF is not applied and changed wording used in inputs and outputs as per SW's e-mail on 29/8/12 | I18: Brian Allan | J18: 2012-08-29 | K18: Deferred revaluation in cell 'CARE calcs'!E54 should be to SPA not 60. SW email changes faithfully applied
A19: 13 | B19: K:\a2clients\Police Pensions\0140-00972 Home Office Police\Cost Ceiling\Pension estimator\[Pension calculator v0.13.xlsm]Version control | F19: Michael Crabtree | G19: 2012-08-29 | H19: Added better wording to ? cells in inputs, unlocked inputs, fixed drop down box to not show NPPS twice, changed chosen retirement age to be an integer only, amended expected retirement age so it is greater than current age, inserted new SPA limits and put in an error message for negative results | I19: Brian Allan | J19: 2012-08-29 | K19: SW ? Comments applied accurately Current date not age should be displayed at the bottom of the input output Other changes to left done correctly. Noticed that ERF/LRF are not being applied for NPPS member CARE benefits
A20: 14 | B20: K:\a2clients\Police Pensions\0140-00972 Home Office Police\Cost Ceiling\Pension estimator\[Pension calculator v0.14.xlsm]Version control | F20: Michael Crabtree | G20: 2012-08-29 | H20: Rounded results to nearest £100, made sure those joining scheme after protection date don't get protection and added ERF/LRF factors to new scheme benefits for NPPS members | I20: Brian Allan | J20: 2012-08-29 | K20: Checked - one issue: logic for protection for joiners post 1/4/2012 allows the age 45 protection. Otherwise ok including fix requested for benefits at SPA for those retiring 55 in my v11 comment above
A21: 15 | B21: \\Gad-a2\a2data\a2clients\Police Pensions\0140-00972 Home Office Police\Cost Ceiling\Pension estimator\Pension calculator v0.15.xlsm | F21: Mara Aleixo | G21: 2012-08-30 | H21: Amended the protection for members who joinned after 1/4/2012. Amended the results for retirement at age 60 to show as zero if the member has already reached their 60th birthday.Changed the validation to prevent the user entering a retirement age less than their current age. Hide the formulae in the inputs and outputs spreadsheet. Inserted the caveats and updated the "inputs and outputs" format. | I21: Brian Allan | J21: 2012-08-30 | K21: Checked and agreed
A22: 16 | B22: \\GAD-A2\A2DATA\a2clients\Police Pensions\0140-00972 Home Office Police\Cost Ceiling\Pension estimator\Pension calculator v0.16.xls | F22: Mara Aleixo | G22: 2012-08-30 | H22: Changed some excel functions in order it works in excel 2003. Saved in excel 2003 format. | I22: Brian Allan | J22: 2012-08-30 | K22: Checked - one issue: NPPS protection status calc cell applied check on DJS vs protection date in wrong direction. Corrected in this version. [SAM] This cell is now ok I have re-run a selection of the PPS and NPPS tests on the calculator successfully.
A23: 17 | B23: \\GAD-A2\A2DATA\a2clients\Police Pensions\0140-00972 Home Office Police\Cost Ceiling\Pension estimator\Pension calculator v0.17.xls | F23: Mara Aleixo | G23: 2012-08-31 | H23: Set up different early and late retirement factors. Amended the reduced pension calculations in order to consider diferent factors. | I23: Brian Allan | J23: 2012-08-31 | K23: Checked and Agreed.
A24: 18 | B24: \\GAD-A2\A2DATA\a2clients\Police Pensions\0140-00972 Home Office Police\Cost Ceiling\Pension estimator\Pension calculator v0.18.xls | F24: Matt Wood | G24: 2012-08-31 | H24: Changes to the notes. No changes to calcs. | I24: Brian Allan | J24: 2012-09-03 | K24: Checked inputs outputs only. Spell check ok. Corrected date to 4/9/2012 and removed link reference
A25: 19 | B25: \\GAD-A2\A2DATA\a2clients\Police Pensions\0140-00972 Home Office Police\Cost Ceiling\Pension estimator\Pension calculator v0.19.xls | F25: Matt Wood | G25: 2012-09-02 | H25: Changes to the notes. No changes to calcs. | I25: Brian Allan | J25: 2012-09-03 | K25: Checked inputs outputs only. Spell check ok. Corrected date to 4/9/2012 and removed link reference
A26: 20 | B26: K:\a2clients\Police Pensions\0140-00972 Home Office Police\Cost Ceiling\Pension estimator\[Pension calculator v0.20.xls]Version control | F26: Brian Allan | G26: 2012-09-03 | H26: Including additional validation and changes to note requested by Sara Alderman (HO) 3.9.12. Changes are to 'Inputs and Outputs' and 'Cover' only | I26: Matt Wood | J26: 2012-09-03 | K26: See Matts email of 3/9/2012 at 15:48
A27: 21 | B27: K:\a2clients\Police Pensions\0140-00972 Home Office Police\Cost Ceiling\Pension estimator\[Pension calculator v0.21.xls]Version control | F27: Michael Crabtree | G27: 2012-09-11 | H27: Amendment protection calc to include TVin service for those get service taper by adjusting DJS, made some spelling / grammar corrections and put a ceiling of 65 on earliest age benefits can be taken | I27: Brian Allan | J27: 2012-09-11 | K27: Checked and Agreed.
I28: SW | J28: 2012-09-19 | K28: BA discussion today noted that the protection calcs for PPS->NPPS switchers will be looking up DJS rather than the adjusted DJS. We should correct this if there is another release (and perhaps in any case) [SW] This comment is rubbish - there is no service taper for NPPS members. No amends needed.
A29: 22 | B29: K:\a2clients\Police Pensions\0140-00972 Home Office Police\Cost Ceiling\Pension estimator\[Pension calculator v0.22.xls]Version control | F29: Michael Crabtree | G29: 2012-09-21 | H29: Made amendment to corner tapering protection date calc to make it more precise and added protection message as output | I29: Brian Allan | J29: 2012-09-21 | K29: Checked - some formatting/text changes needed the transferees PPS->NPPS protection status never uses DJS as these members are necessarily in the NPPS.
A30: 23 | B30: K:\a2clients\Police Pensions\0140-00972 Home Office Police\Cost Ceiling\Pension estimator\[Pension calculator v0.23.xls]Version control | F30: Michael Crabtree | G30: 2012-09-21 | H30: Made some cell modifications and reworded protection messages | I30: Brian Allan | J30: 2012-09-24 | K30: Checked changes and however testing has identified a case which should be in the corner taper which are classed unprotected (PPS DOB: 01/11/1975 and scheme start date: 01/09/1994 no TVIN) - and vice versa (PPS DOB: 12/10/75 and start scheme: 12/09/94 no TVIN)
A31: 24 | B31: K:\a2clients\Police Pensions\0140-00972 Home Office Police\Cost Ceiling\Pension estimator\[Pension calculator v0.24.xls]Version control | F31: Michael Crabtree | G31: 2012-09-25 | H31: Amended corner tapering calcs, changed message so as not to confuse readers and removed unnecessary cells | I31: Brian Allan | J31: 2012-09-27 | K31: Checked and Agreed.
F32: Brian Allan | G32: 2012-09-28 | H32: Amended output comments for SW email 28/9/2012 to Peter Spreadbury re MP comments (emphasis PPS LS by commutation and old and new benefits cumulative) And other general SW comments of 28/09/2012 10:59 | I32: Sam Watts | J32: 2012-10-01 | K32: Slightly amended the wording i.r.o lump sum for the PPS members and also added it below the new scheme pension benefits. Otherwise agreed. NPPS cases have problems re the message appearing due to F44 being blank
F33: Sam Watts | G33: 2012-10-01 | H33: Added "N/A" to F44 of PPS and NPPS calcs tab | I33: Brian Allan | J33: 2012-10-01 | K33: Checked and amended B47 in 'Inputs…' to reflect 2015 scheme LS always by commutation only
A34: 25 | B34: K:\a2clients\Police Pensions\0140-00972 Home Office Police\Cost Ceiling\Pension estimator\[Pension calculator v0.25.xls]Version control | F34: Michael Crabtree | G34: 2012-10-02 | H34: Amended protection message, corrected bug for members for might choose retirement under 55 and switch from PPS to NPPS and made alignments in input boxes consistent | I34: Brian Allan | J34: 2012-01-02 | K34: Checked and Agreed.
A35: 26 | B35: Pension calculator v0.26.xls | F35: Dipak Hirani | G35: 2013-12-11 | H35: Inputs and outputs - Section A now contains additional input detail sections 7-10, which are required for part time calculations Formulae in rows 57, 58 have been amended to apply part-time proportion (I36) if member has selected part-time for input 7 Cell C157 contains the calculation for part-time factor Formulae in rows 54, 55 have been amended to apply part-time factor (C157) if member has selected part-time for input 7
F36: Dipak Hirani | G36: 2013-12-11 | H36: Table has been created in cells C155-E158 to create part-time factors dependent on retirement age Formulae in rows 54, 55 have been amended to take account of this new table | I36: Louise Fletcher | J36: 2013-12-12
A37: 27 | B37: Pension calculator v0.27.xls | F37: Louise Fletcher | G37: 2013-12-18 | H37: Formatting changes | I37: Dave J | J37: 2013-12-18 | K37: Some slight changes needed to main interface. See printout for more details.
A38: 28 | B38: \\Gad-a2\a2data\a2clients\Police Pensions\0140-00972 Home Office Police\Cost Ceiling\Pension estimator\[Pension calculator v0.28.xls]Version control | F38: Dave J | G38: 2013-12-18 | H38: Added comment to 'employment status' to cover members who have worked part time in the past. Added new protection to 'current part time proportion'. Added commentary to part time inputs, re-worded the explanation of part time treatment. | I38: Louise Fletcher | J38: 2013-12-18
A39: 29 | B39: Pension calculator v0.29.xls | F39: Louise Fletcher | G39: 2013-12-19 | H39: Removed service cap from calculations, instead applied a cap to pension estimate output on the 'inputs and output' tab. This is so part time benefits aren't capped at a part time ratio | I39: Dave J | J39: 2014-01-03 | K39: Happy with these changes to the calculator
A40: 30 | B40: Pension calculator v0.30.xls | F40: Louise Fletcher | G40: 2014-01-08 | H40: Where part time indicator has been selected, the service uplift has been removed. Maximum pension and lump sum amounts have been rounded. | I40: Dave J | J40: 2014-01-08 | K40: Happy with changes. Added 'more info' boxes for PPS->NPPS members with part time and transferred in service.
A41: 31 | B41: \\Gad-a2\a2data\a2clients\Police Pensions\0140-00972 Home Office Police\Cost Ceiling\Pension estimator\[Pension calculator v0.31.xls]Version control | F41: Dave J | G41: 2014-01-09 | H41: Amended comments for transferred in service.
A42: v0.1 | B42: Pension calculator Updated v0.1.xls | F42: Ashara Peiris | G42: 2016-09-22 | H42: Inputs and outputs - Added in question 11 giving the total accrued CARE benefit for each of the past scheme years - Added in changes to outputs - Amended cells H154:L155 by allowing it pull through commutable amounts Parameters - Added in future CARE revaluation G74, but not sure of actual value to use here Past Service CARE Calcs - Added tab which revalues the past service CARE pension to the start of the current scheme year CARE Calcs - Added row 27, 35, 43 and 56 which pulls through the past service CARE pension. This pension is added onto the future service CARE pension (which is unchanged from the previous calculator's CARE pension) Lump Sum - calculates the lump sums and maximum amount commutable | I42: MRae | J42: 2016-09-27 | K42: Parameters: changed to add a cpi assumption and a salary increase assumption. CARE calc:check if the ABS accrued CARE already includes revaluation as at the start of the new scheme year. Check if negative cpi is allowed in the CARE active revaluation (I think it is provided the final rate is >= 0).CARE Csalcs - see comments, values have to be in current salary terms. so discounting at salary growth is to be added.
A43: v0.5 | B43: Pension calculator Updated v0.5.xls | F43: Ashara Peiris | G43: 2016-10-13 | H43: Inputs and outputs - Added question 4 on rank - Changed way that the outputs are presented, by offering three basis choices. Formulae in these are based on the previous ones, but there have been substantial changes - Changed cells B138 and B139 to 48 and 65 - Amended formulae in cells C184 to 186 - Removed area below which had projection of results - Added in ranks and the associated VRAs Parameters - Added in CPI assumptions and basis assumptions. If these need to be changed, make the change here. PPS and NPPS Calcs - Changed way that the calculations are laid out. Removed calculations for different ages and added in calculations for each of the separate bases Past service care calcs - Re-arranged tab and made minor formulae changes to row 16 CARE calcs - Changed layout of tab - Made tab only for one retirement age (and SPA for deferred benefits) - Amended formule for the past service and future service pensions (to account for discounting of CPI) Lump sum - Amended tab layout - Removed different ages and added three bases - Changed formulae for pension and lump sums - Updated commutation factors and max lump sum factors Summary - Amended tab layout and setup for three bases
A44: v0.6 | B44: Pension calculator Updated v0.6.xls | F44: Michael Rae | G44: 2016-10-18 | H44: Inputs and outputs - Made part time section disappear if full time - changed formulae in benefits to pick up different numbers Parameters - Changed base CPI to 2% CARE calcs - updated calcs to use three different bases
H45: Corrected the discounting period used throughout to allow for the final fraction as well as the integral years.
H46: Amended the future CARE accumulation present value to use the factor (1+s)/(1+revaluation), and to change the discounting from salary to cpi
H47: Added the CARE projection on the mid and high salary growth bases
H48: Started to amend the results to include lump sum when we defer the CARE benfits to SPA. This requires further work to complete.
H49: Note the deferred benefits after dicounting are the same as the benefits at the date of withdrawal because the deferred revaluation rate is simply cpi. I decided to include as a separate calculation to allow for this to change in future.
H50: Removed the comments about transition date from the results screen. This is only of interest totapered members who have still to transfer to CARE.
A51: v0.7 | B51: Pension calculator Updated v0.7.xls | F51: Ashara Peiris | G51: 2016-10-19 | H51: Inputs and outputs - Made DJS question second one and made scheme question third - changed data validation on the scheme range - changed formulae in cells B125:126 to show CARE, PPS or NPPS where relevant - added in lump sums for deferred pension - added in conditional formatting on outputs and inputs PPS and NPPS calcs - changed rows 31:33 and 36:53 to account for CARE only members CARE calcs - changed care factor in D8 - updated formulae in rows 18, 19, 24 and 25 Lump sum - updated rows 26 to 33, so that they pull through the correct pension and lump sums Summary - added in section on pension deferred to SPA
A52: v0.8 | B52: Pension calculator Updated v0.8.xls | F52: Ashara Peiris | G52: 2016-10-21 | H52: Inputs and outputs - amended rows 60:71 by making the deferred numbers appear if the retirement age is under 55 and the non-deferred numbers appear if the retirement age is >=55 - added conditional formatting so that 2015 scheme outputs disappear if member is not eligible for them (i.e. don't enter care scheme due to protection) PPS and NPPS Calcs - added in service to retirement (row 34) and amended formulae in rows 37:39 so that it uses this number to project the salary - deleted no reform calcs - capped pre 2015 scheme service (row 33) at 30 years for PPS and 35 years for NPPS - capped retiring without any scheme reform (row 35) at 30 years for PPS and 35 years for NPPS CARE calcs - the deferred until SPA section changed to account for deferred period - changed formulae for the CARE future service pension in rows 22, 30 and 31 - added in protection status and protection end date (rows 6 and 7) and use these in setting the amount of post 15 service to chosen retirement and SPA (D17 and D18) - added in if condition in case post 15 service is 0 to rows 19 and 27 Lump sum - amended formulae in rows 26:33. Sets chosen retirement numbers to 0 if chosen retirement age <55 and sets deferred numbers to 0 if ret age >=55 -amended formula in D12 so that it calculates the reckonable service if the member is full-time, and pulls it from the inputs tab if it is part-time Summary - added additional table which chooses the either the deferred or non-deferred pension amounts based on their chosen retirement age - deleted no reform results | I52: MRae | J52: 2016-11-04 | K52: checked inputs and outputs changes - ok. Protected members still showing 2015 scheme pension of zero, so ok. Not conditional formatted. PPS and NPPS Calcs: Service to retirement ok. Agree salary caps, as given in valuation report benefit summary. CARE. Deferred to SPA period ok, but move the cqalcs in rows 111 - 112 of the input/output sheet. Agree the allowance for the protection end date in 2015 service. Agree the projection period for deferred to SPA. Agree CARE is being discounted back to today. Agree the service for tapered cases starts from protection end date. CARE accumulation formula is ok, but could be clearer - the effective discount rate is (1+sal)/(1+care_reval)-1. Need to change the max lump sum calcs to use service up to leaving the old schemes.
A53: v0.9 | B53: Pension calculator Updated v0.9.xls | F53: Ashara Peiris | G53: 2016-10-28 | H53: All sheets - Changed previous references to today() to now refer to the start of the scheme year CARE calcs - added in extra calculations to account for taper period. Defer their entry into the CARE scheme (but still discount by appropriate amount). - added if statement to row 22 so that if member is tapered their future service pension is set to 0 - added in tapered calcs for deferred until SPA members (row 35-39) - added in *(1+cpi)^((today()-DoStartSchYear)/DOY) to rows 22, 26, 34 and 38 PPS and NPPS Calcs - added in *(1+cpi)^((today()-DoStartSchYear)/DOY) to cells D40:E42 Lump sum - D12 changed to look at the correct range. Also accounts for part time service | K53: agree the changes to use start of scheme year. I agree the allowance for tapering in the service calculations.Agree the lump sum calculations.
K54: Due to the complexity and number of the changes we have made to the workbook, sign -ff depends on the satisfactory completion of testing via a testpack with indpendent checks.
A55: v0.10 | B55: Pension calculator Updated v0.10.xls | F55: Ashara Peiris | G55: 2016-11-09 | H55: Parameters - moved start of scheme year to this tab - added in a date for current date - moved VRAs to this tab, corrected the ages and extended the list of possible ranks Inputs and outputs - Added formula to cells B46 and B48 so that they are blank if the member is not tapered - Added conditional formatting to rows 62-64 and 70-71 so that they disappear when the member is fully protected. - Changed cell B117 which affects minimum DOB and data validation text on DOB changed. - Changed C125 to be the current date - Cell B136 changed to 68 and data validation text on retirement age changed - Updated cells H,J,K 60,63,68 and 71 to pull from summary rather than doing calculations on summary page PPS and NPPS calcs - Added in rows 46:48 which apply the past service part time proportion to PPS and NPPS pensions. - NPPS lump sum calcs then pull through these figures which have the PTP applied (E49:51) Past service care calcs - added in row 17 which fully projects the past service CARE benefit to the DoR (uses row 16 which realues it to the start of scheme year) CARE calcs - added in row 18 which has the service from the current date to DoR - method of calculation has been changed significantly - pension is accrued each year and revalued, but discounting is only applied at the date of first receiving the pension - no longer need separate calculation methods for <55 and >=55 members - D30:F30 changed to use SPA - Row 31 added which applies the future/current PTP to the discounted pension Lump sum - D19:F19, D21:F21, D26:F26 and D28:F28 amended so that they pull through the pension with the part time proportion applied to it Summary - Post 2015 results have been condensed into a single table - pre-commutation and post-commutation pension in rows 17, 20, 26 and 29 pull through results from the PTP calcs in the Lump sum sheet | I55: mjr | J55: 2016-11-21 | K55: All changes checked and agreed.
A56: v0.11 | B56: \\Gad-fpt\fpt\NEW DATA\FPT Clients\Police\Scotland\General\Benefits Projection Calculator\Pension calculator Updated v0.11.xls | F56: Ashara Peiris | G56: 2016-11-16 | H56: Parameters - amended CARE parameter Past service CARE Calcs - amended formulae in row 14, to remove one year of revaluation CARE calcs - reduced n in row 20 and 24 by one - added D21*D11^D21 term to the future service pension (row 23) - added in row 25 - amended rows 26 and 29 to account for the change in methodology Lump sum - amended formula in D15 so that it compares the VRA to the retirement age | I56: mjr | J56: 2016-11-21 | K56: All changes checked and agreed.
A57: v0.12 | B57: \\Gad-fpt\fpt\NEW DATA\FPT Clients\Police\Scotland\General\Benefits Projection Calculator\Pension calculator Updated v0.12.xls | F57: Ashara Peiris | G57: 2016-11-21 | H57: PPS and NPPS calcs - amended service calcs in rows 31-33 and 35 so that if member is part time then their service is dependent on the reckonable service inputted. - removed rows 46-48 which multiplied the pension by the PTP (as the part time service is now dealt with separately) Past service CARE Calcs - Removed rows giving years of revaluation and CARE revalued to start year (as the past service benefits will already be revalued to this date, previously row 14 and 16) - amended formula in row 16 so that it applies the revaluation directly to the accrued CARE benefit (row 15) CARE calcs - added in row 19 which gives the service between start of scheme year and the protection end date - adjusted calculation in row 29 to included additional deduction of pension in tapered period - adjusted past service pension by dividing D23 through by the PTP to prevent the PTP from being applied twice Lump sum - amended D12 to pull through the reckonable service if member is PT | I57: mjr | J57: 2016-11-22 | K57: All changes checked and agreed.
A58: v0.13 | B58: \\Gad-fpt\fpt\NEW DATA\FPT Clients\Police\Scotland\General\Benefits Projection Calculator\Pension calculator Updated v0.13.xlsm | F58: Ashara Peiris | G58: 2016-11-29 | H58: Inputs and outputs - amended wording in rows 54 and 55 to make it clear that salary increases are wrt CPI - amended formulae in rows 60, 63, 70 and 73 so that they have a "pa" concatenated to the end of the number - in row 66,67,75 and 76 added together the lump sums and the pension amounts if the member has a retirement age >=55. Has conditional formatting to make boxes disappear if they are <55.
A59: v1.0 | B59: \\Gad-fpt\fpt\NEW DATA\FPT Clients\Police\Scotland\General\Benefits Projection Calculator\Pension calculator Updated v1.0.xlsm | F59: Ashara Peiris | G59: 2016-12-02 | H59: Inputs and outputs - Changed data validation in I18 so that it doesn't get affected if new rows are entered or deleted on the page - Changed validation terms to be 1987 scheme, 2006 scheme and 2015 scheme - "CurrentScheme" variable moved to the Parameters tab - Updated the comment box for the TV in section - Minor wording changes in line with document below - Changed retirement age to be chosen retirement date. This retirement date is then converted into a retirement age on the Paramaters tab - Wording in benefits section reduced and colour scheme changed to differentiate between the different sections (and conditional formatting updated) - Added current salary (H49) - Added in section 3 which recreates the pension at age 60 from the ABS (80:85) Parameters - Reordered the ranks into seniority order, and only retained 5 of the ranks (rows 88:89) - Reassign the current scheme on rows 91:97 - Calculate the chosen retirement age based on the retirement date - Calculate retirement age based on the retirement date (B99:B102) PPS and NPPS Calcs - added in abs projection to 60 (53:69) which works in same way as normal PPS calcs except no discounting or revaluation and projecting to age 60 CARE Calcs ABS - added in tab to calculate the projection to 60 without salary increases or revaluation or discounting.
H60: Changes agreed from | I60: mjr | J60: 2016-12-06 | K60: checked all changes. Agreed, subject to testing the ABS projection when we receive test cases from SPPA (today hopefully).
H61: \\Gad-fpt\fpt\NEW DATA\FPT Clients\Police\Scotland\General\Benefits Projection Calculator\161201SPPACalculatorAgreedChanges.docx
A62: v1.1 | B62: \\Gad-fpt\fpt\NEW DATA\FPT Clients\Police\Scotland\General\Benefits Projection Calculator\Pension calculator Updated v1.1.xlsm | F62: Ashara Peiris | G62: 2016-12-06 | H62: Inputs and outputs - Remove rows between current salary and projected salary at retirement - Changed conditional formatting in row 76:77 and 82:84 - Deleted the date of benefit statement as not used in the calculations - Labelled I27 as DoR - added in NPPS lump sum to the ABS projection Parameters - Amended calculation of chosenra so that it is more precise (rows 101:104) ERF and LRF - added in the 2015 scheme ERF and LRF PPS and NPPS calcs - Changed row 23 to pick up the DoR from the inputs page - D67 and E67 have had references to DoR changed to D55 and E55 respectively CARE calcs - D15, D25 and D26 had references to chosenra removed and replaced with the DoR - Updated the ERF and LRF calcs using the actual factors (D32:F32) Summary - added in NPPS lump sum to the ABS projection
A63: v1.2 | B63: Pension calculator Updated v1.2.xlsm | F63: Ashara Peiris | G63: 2016-12-15 | H63: CARE calcs - added in additional proportion of year calc to D21:D22. This is used to weight up the last year of the LRF - amended formulae in D23:24 | I63: mjr | J63: 2016-12-16 | K63: checked and agreed changes, after amending the LRF factor calc for the final fraction of age.
A64: v1.3 | B64: Pension calculator Updated v1.3.xlsm | F64: Michael Rae | G64: 2016-12-16 | H64: MJR change CARE calcs - amended LRF calc AP change: CARE calcs ABS - changed D7 to look at date60 if member is fully protected
F65: Michael Rae | G65: 2016-12-21 | H65: changed cells d23 and 24 in CARE Calcs sheet to use condition '<=60' rather than '<60' to prevent a lookup error. Also removed '-1' from the expression to avoid entering the table at age 59 in error. | I65: Ashara Peiris | J65: 2016-12-21 | K65: Agree with changes to calculation
A66: v1.4 | B66: \\Gad-fpt\fpt\NEW DATA\FPT Clients\Police\Scotland\General\Benefits Projection Calculator\Pension calculator Updated v1.4.xlsx | F66: Ashara Peiris | G66: 2017-01-03 | H66: Parameters D102 changed so that there is no longer an issue with calculating the number of days past the DoR for edge cases | I66: mjr | J66: 2017-01-05 | K66: Agree
A67: v1.5 | B67: \\Gad-fpt\fpt\NEW DATA\FPT Clients\Police\Scotland\General\Benefits Projection Calculator\Pension calculator Updated v1.5.xlsx | F67: Ashara Peiris | G67: 2017-01-12 | H67: Inputs and outputs - updated output fields H47:L81 by pulling through from the summary tab Parameters - added lump sum underpin date to B109 Commutation factors - added the pre 87 E&W comm factors CARE calcs - amended row 39 so that if a member is tapered and their protection end date is after their retirement date then the CARE pension is 0 Lump sum - calculating underpin of pre 87 commutation factor (D12:D15) Summary - added table of rounded figures (which are pulled through to the inputs/outputs tabs) | I67: mjr | J67: 2017-01-13 | K67: agree changes
E68: v1.6 | F68: mjr | G68: 2017-02-01 | H68: removed projected salary from inputs and outputs | I68: Pooja V | J68: 2017-02-03 | K68: OK
H69: removed results section C from inputs and outputs | K69: Section 3 deleted ok Checked that if member retires over age 55 then the total pension and lumpsum figs are shown in section 1 and 2
H70: Changed pre-2015 lump sum calculation to use total service from djs to dor, rather than total pre-2015 scheme service. In lump sum sheet. | K70: This has been amended
A71: v1.6 | F71: mjr | G71: 2017-02-16 | H71: changed cell d27 in CARE calcs sheet to chosen RA<=60, instead of <60. This prevents a divide by zero error at chosenRA=60 | I71: Ashara Peiris | J71: 2017-02-24 | K71: OK
A72: v1.6 | F72: mjr | G72: 2017-02-16 | H72: changed the calculation of reckonable service in cell f18 of the lump sum calcs sheet to use the day before ChosenRA. SPPA feedback said this is what the schemes do - 30 years reckonable service is achieved on ret the day after raching 30 years. | K72: OK, but need rounding on D18
A73: v1.6 | F73: mjr | G73: 2017-02-16 | H73: changed all rounding in summary sheet for output to nearest pound, rather than hundred. | K73: Most figures ok. ABS projection didn't have this applied (not important as section C on Inputs and outputs tab has been deleted.
A74: v1.6 | F74: mjr | G74: 2017-02-16 | H74: changed calculation in F18 of Lump Sum sheet to add on any transferred-in service to the reckonable service. | K74: OK
A75: v1.7 | F75: mjr | G75: 2017-02-24 | H75: changed the inputs sheet to include a check box to indicate whether to approximate past CARE and hide the inputs, or to use the inputs. The past service care calcs sheet was changed to include an if function to select the input or the approximation. The appproximation appears only if the scheme year is prior to the start of current scheme year. | I75: Ashara Peiris | J75: 2017-02-24 | K75: Check box ok. Amended conditional formatting so colour matches
A76: v1.8 | F76: Ashara Peiris | G76: 2017-02-28 | H76: Inputs and outputs Amended conditional formatting related to checkbox so that colour matches the surrounding area. Added in 'Name' as an input option. Lump sum Round D18 so that numbers which are essentially full years can be rounded.
A77: v1.9 | F77: Ashara Peiris | G77: 2017-03-07 | H77: Printable Estimates - updated wording in projected benefits to align with Iain Coltman's email - updated formulae in B27:G52 - updated conditional formatting in B27:G52 - moved some of the wording and caveats around on page - set a print area | I77: Tejas | J77: 2017-03-07 | K77: Happy with changes.
A78: v0.0 | F78: Ashara Peiris | G78: 2017-03-07 | H78: Inputs and outputs - amended schemes B123:B125 - reduced min current pen sal B131 - changed references to "PPS" and "NPPS" to "FPS" and "NFPS" Parameters - changed references to "PPS" and "NPPS" to "FPS" and "NFPS" - updated F16:22 - added in new pension uplift table B59:H104 - deleted lump sum, ERF (CARE) and LRF (CARE) figures as these are not needed Tapers - updated tapers Commutation Factors - updated commutation factors ERF and LRF - updated with new NFPS ERFs - updated with CARE ERF and LRF FPS and NFPS Calcs - changed references to "PPS" and "NPPS" to "FPS" and "NFPS" - changed formulae in column F to use parameter Sch_FPS - changed rows 11:15 so it is consistent with old calculator Lump sum - amended D12 and D25:F28 | I78: Michael Rae | J78: 2017-05-08 | K78: corrected 2015 accrual to 1/61.6 Agree pension uplift factors for 2006 scheme. Corrected the uplift factor lookup in sheet(FPS and NFPS Calcs). It was using service, from d10. I created a lookup column calculation in cell d15. Agree the Fire commutation factors and tables. Those ERF and LFR figures are not used, so OK. I have copied taper tables 1-5 directly from the 2015 Scottish Fire regulations SI 2015/19. We should use these to perform accurate taper calculations. I agree the ERF and LRF tables for 2007 and 2015 schemes. I added new calculations in FPS and NFPS calcs to determine the protection status and taper end date if applicable. rows11:15 ok.
A79: v0.1 | F79: Ashara Peiris | G79: 2017-03-08 | H79: Inputs and outputs - updated B137:138 to account for the correct minimum age - updated B47 to remove one of the if statements Commutation Factors - added in England factors FPS and NFPS calcs - updated E34:36 to account for ERF and LRF - adjusted ABS projection figures so that they have a consistent methodology CARE Calcs - removed weighting and recalculated the ERF and LRF (D21:22 and D35:F35) Lump sum - updated D12:D15 to ensure the correct figures are pulled up - updated D18 so that full time service worked out in one step | I79: Michael Rae | J79: 2017-05-11 | K79: Inputs and outputs - change to cells b137:138 is actually b158:159. agreed. I agree commutation factors. Check the erf application. Default age of 48 in the formula in cell is wrong. We need validation on FPS retirement date to check 25 years service condition is met. Use the service in D28 for this validation. This will only work after all the service parameters have been input, including part-time details, so may not be possible. Needs thought. Also affects Police. | L79: erf lookup function is ok.
F80: Michael Rae | G80: 2017-05-11 | H80: Removed the rank input. Not applicable to Fire. Changed VRA to 55 for all pre-15 service in Lump Sum sheet | I80: Ashara Peiris | J80: 2017-06-01 | K80: OK, all VRAs on parameter tab changed to 65 and then first of these selected on lump sum sheet
F81: Michael Rae | G81: 2017-05-11 | H81: Changed cell d21 in lump sum calcs. Simpler criteria for the cash lump sum multiple for Fire. Added logical tests | K81: Typo in I22, should be <=55 (instead of <=30) Consider whether to amend reckonable service in this area Happy with CARE rate Happy with tables 1 and 2 of taper, but unsure where tables 3-5 come from For protection calcs on FPS and NFPS calcs sheet, unsure where I24:J24 needed Agree with uplift lookup
H82: Still to reflect the late changes to Police into this version. Also to add another scheme to cater for special firefighters.
A83: v0.2 | F83: Ashara Peiris | G83: 2017-06-01 | H83: Calculator Added in conditional formatting for part-time and 2015 scheme Updated conditional formatting in results part as well Amended formula in B54 to correct numbering of question based on part-time and 2015 scheme membership Added in reckonable service calcluation F154:157 and amended data validation in B155 to restrict the minimum age to 55 if service < 25 Amend D170 to remove error message | K83: Validation of chosen ret date is not right for FPS ages < 55. Needs to use fully calculated service, allowing for part-time, career break etc. The correct calculation result is inFPS and NFPS calcs, cell D28. Need to replicate this in the validation.
H84: Lump sum Corrected typo in I22 | K84: ok
H85: FPS and NFPS calcs Added iferror statements to K15,18,22,27 and N15 | K85: ok
H86: Changes from latest police calculator Implemented changes from latest version of calculator | K86: career break input only to be enabled if member has service before 1/4/2015, and was part-time. This is needed for the protection calcs.
H87: FPS and NFPS calcs Changed D23 to include career breaks Added in service used for pre 15 scheme (row 55) | K87: ok
H88: Calculator Added an output (H66) to show the number of years' service used in calculating the final salary benefits | K88: ok
H89: Parameters Updated DoStartSchemeYear (D98) so if part-time, then 1 april in the year of the ABS date (defaults to calculated value if date not entered). | K89: ok
H90: Past service care calcs Updated row 16 so that it correctly deals with the number of days in a year if the check box on the input screen is ticked and any of the past CARE input cells is blank, replace with the estimated value for that year. Amended row 18 in the past service CARE calcs sheet. | K90: ok
H91: Care calcs Changed CARE calcs to prevent negative service. Changed CARE Calcs cell d15 to be no less than zero. | K91: ok
F92: MJR | G92: 2017-06-16 | H92: changed calculator/b158 to have min age of 50 in for FPS instead of 48. | K92: I can't see this. D159 uses min(55,age next birthday)
H93: changed the retirement date validation to account for the 25 year service criterion. See row 8s above for description. | K93: Calculator F:G158 OK FPS and NFPS calcs Taper 2 incorrect, should look aat DOB not D9
F94: Ashara Peiris | G94: 2017-06-27 | H94: Calculator Amended formula in B54 and B57 and extended conditional formatting so that career break disappears when member is full time or only part of the 2015 scheme Data validation OK FPS and NFPS calcs Updated M13:14 with correct formula | I94: MJR | J94: 27/619 | K94: ok
F95: michael rae | G95: 2017-06-29 | H95: Changed the in service revaluation from 4% to 3%
F96: michael rae | G96: 2017-07-03 | H96: Changed the validation of retirment date to allow for 30 years service. See rows 155 -163 in calculator sheet.
F97: mjr | G97: 2017-10-18 | H97: Changed q9 on input of part-time to ask if member has ever had period of part-time working, changed the wordings in the dropo-down, and amended all dependent cells to refer to "some part-time" | I97: JJ | J97: 2017-10-18 | K97: OK. Updated link to MICROSITE (was in error).
F98: mjr | G98: 2017-10-18 | H98: changed the validation on salary to set minimum at £1000 following request from SPPA. | I98: JJ | J98: 2017-10-18 | K98: OK. Removed upper band too.
F100: JJ | G100: 2017-10-30 | H100: Updated protection status in CARE calcs and adjusted protection status to allow for condition that the member must have been present at 2012
F101: IC | G101: 2018-03-23 | H101: Misc text changes
F102: MJR | G102: 2018-05-15 | H102: Fixed bug reported by SPPA. Prevent having CARE start date after DoR. Changed cell d12 in CARE calcs sheet. | I102: Jj 16/5/2015 | K102: OK. Agree change to cell D12
F103: IC | G103: 2018-05-17 | H103: Changed Year parameter in cell B139 in Calculator sheet from YEAR-65 to YEAR -75 Changed more info notes in Q3,4 and 6 for clarity. Changed reference in Q8 from "accrued pension to date" to "CARE pension to date" in line with text on member ABS. | I103: mjr | K103: OK. Allows for members aged up to 75 at start of scheme year. Also changed the start date of the SPA lookup table to allow for members up to 75. See cell d27 in Parameters sheet.
F104: mjr | G104: 2018-08-15 | H104: changed validation on max reckonable service to 50. This allows for transferred in service, rather than restricting to actual membership.
A105: v0.1 | B105: \\Gad-ast\ast\NICSPS\_tools\development area\benefit projection calculator\NICSPS\[NICSPenCalculatorv0.2.xlsx]Version control | F105: Aidan M | G105: 2019-01-31 | I105: D Hirani | J105: 2019-02-01 | K105: - need to update guidance notes for scheme references and care accrual rates - need to extend dob restriction to 16 years instead of current 18 - need to update branding (see AP calculator)
A106: v0.2 | B106: \\Gad-ast\ast\NICSPS\_tools\development area\benefit projection calculator\NICSPS\[NICSPenCalculatorv0.3.xlsx]Version control | F106: Dipak H | G106: 2019-02-04 | H106: Updated in line with check comments. Updated CARE pension calcs to include LRF directly
A107: v0.3 | B107: \\Gad-ast\ast\NICSPS\_tools\development area\benefit projection calculator\NICSPS\[NICSPenCalculatorv0.4.xlsx]Version control | F107: Dipak H | G107: 2019-02-04 | H107: Used for tweaking/testing functionality
A108: v0.4 | F108: Dipak H | G108: 2019-02-05 | H108: Updated service calcs in FS tab (classic plus split was based on pre-ERF, now post ERF)
A109: v0.5 | F109: Michael Tagg | G109: 2019-05-23 | H109: >"FS Calcs" - changed cells D26:F26 to correct how the IF statement was being used, also removed repeated terms >"Calculator" - Added in new question 7 to ask whether member (if has taper protection) opted to join Alpha on 1/4/15. added in check box, added in linked cell on "Parameters" to record state of checkbox (B114), on "FS Calcs" amended D21:F21 to set protection end date to 1/4/15 if check box is true. >"Calculator" added in protection end date to cells B63 and H63 >"FS Calcs" - D14 ensure this is as minimum DoJ to prevent negative past service! > Added comment on prison officers to guidance notes. >"Parameters" - D61 ensure this is minimum of DoJ. D61 minimum of Alpha start date >"FS Calcs" - D15:F16 changed to datedifs to capture years and days more accurately >"Parameters" - Added in D78 to get datedif for days. B80 changed to use datedifs for days. >"Calculator" - Added in retirement age info. Hiding RS if nuvos scheme selected. >"Printable Estimate" - moved pensionable earnings, added in retirement date and age, changed labelling of projected benefits, changed some formats, removed the <55 deferred pension formulae | I109: D Hirani | J109: 2019-05-25 | K109: Okay, all updates are fine. See 'DH checks' version in checks folder.
A110: v0.6 | B110: \\Gad-ast\ast\PSPS\NICSPS\_tools\development area\benefit projection calculator\NICSPS\[NICS - BenProjectCalculator WIP v0.6.xlsx]Version control | F110: D Hirani | G110: 2019-05-25 | H110: > Guidance notes - made some minor presentational updates > Calculator - change DoB message to 16 to 75 (from 18 to 65) changed max ret date to 75 (from 80) Removed some references to deferred pension age (only applicable to police) updated service item so it shows blank if previous scheme is alpha (only nuvos was selected previously) changed protection end date such that results are 'Fully protected', 'No protection', taper date Updated data validation such that Date of retirement must be in the future >alpha - updated row 27 so figures not populated when already within statement date
A111: v0.7 | F111: Michael Tagg | G111: 2019-06-25 | H111: >Changes made to validation of DoB and retirement date: Calculator!B135 changed to return 16th birthday if DJS is blank, corrected labelling Calculator!B137 change to use curren date rather than link to nuvos start date on parameters sheet >Amended conditional formatting for part timers questions to only show "what part time proportion" question when "some part time" has been selected >Implementing allowing full time service for ABS to be entered and used in calculations. This has lead to a redesign of the layout of the questions (eg question about transferred in service has been moved to the end) and conditional formatting. Also changes to the FS calcs sheet. The DJS calcs is now DJS or ABS end date plus one day if ABS end date has been entered (this is to calculate the additional past service from ABS end date to current scheme year start date). The service after protection end and retiring on or before protection ends calcs have been updated to reflect the full time RS from ABS. They also correct the potential missing service between ABS end date and current year start date for part timers. >Question comments updated to reflect new design. >Lump sums on FS calcs sheet have pension rounded before applying multiplier | I111: D Hirani | J111: 2019-07-04 | K111: > Happy with DoB and retirement date validation > Happy with PT questions and full time service for ABS entry (and being pulled through speadsheet correctly) >Happy lump sums are now 3 x pension (tested using classic only with no ERF) >DJS validation comments contains reference to police scheme - need to remove > FS calcs tab - cell D59 is referring to incorrect cell
A112: v0.8 | F112: Michael Tagg | G112: 2019-06-26 | H112: >Added clear data macro to reset parameters >Some adjustments needed when calculating past and future service due to how leap years work with datedif (uses start year!) >Adjustment to total service to deal with case where days could be 365, so set to zero and increment years by 1 | I112: D Hirani | J112: 2019-07-04 | K112: Okay, clear data macro working fine Happy with changes to service calcs
A113: v0.9 | F113: D Hirani | G113: 2019-07-02 | H113: >Updated DJS data validation note (as included reference to police scheme start date) > FS calcs tab - updated D59 as referring to incorrect pension >Corrected typo in FS calcs cell F26. Formula was referring to cell F6 instead of F16.
A114: v0.10 | F114: D Hirani | G114: 2019-07-07 | H114: >Set cell H51 of parameters tab to fixed 0% to remove short term adjustment >updated guidance tab so it is clear only salary assumptions change in each scenario (i.e. inflation and CARE reval are fixed to 2% in each scenario). Updated alpha Npa to greater of 65 and SPA >if user clicks yes on benefit statement available but does not enter an ABS date then nonsense results are produced. I have updated the error message so it allows for this scenario. Further, results are now blanked out (conditional formatting) when error message appears - previously still showed nonsense results >updated conditional formatting for Q12 and Q13 such that it disappears if scheme selected is alpha or nuvos (previously only disappeared if scheme was nuvos) >if Q12 is answered but not 13 then service is 0, if q13 is answered but not q12 then service is calculated by calculator and added to reck service input. Have added a check in row 122 of parameters and linked to error message so no results are shown >nuvos calcs - updated rows 28 to 30 to correctly pull in current sal for start of scheme year >alpha calcs - updated rows 28 to 30 to correctly pull in current sal for start of scheme year >added more info box in cell K24 of the calculator tab to provide details of what salary should be entered following a discussion with Steve L | I114: Michael Tagg | J114: 2019-07-09 | K114: Changes look fine. On calculator sheet we should change the Total Pension and Total Lump Sum lablels to be hard coded (has formula left over from police version linked to retirement date and could display an error if retirement date and dob not filled in)
A115: v0.11 | F115: Michael Tagg | G115: 2019-07-09 | H115: >On calculator sheet changed the Total Pension and Total Lump Sum lablels to be hard coded (has formula left over from police version linked to retirement date and could display an error if retirement date and dob not filled in) >On Nuvos calcs sheet changes: ERF in D37 to pick up alpha NPA65 table, LRF in cells D38:CI38 to pick up alpha LRFs | I115: D Hirani | J115: 2019-07-09 | K115: Okay fine. Happy with ERF/LRF calculation for nuvos. Consistent with alpha but ERF fixed to NPA65
A116: v0.12 | F116: Michael Tagg | G116: 2019-07-10 | H116: >Changed Q5 to only to refer to pensionable earnings >Changed Q5 more info box to simplify instructions >Added conditional formatting to hide Q10 and Q11 if Q4 is blank (ie alpha only) or nuvos >On nuvos and alpha calcs sheets changed the "service during year part 2" calcs to use full time proportion if Q4 is alpha, blank or nuvos | I116: D Hirani | J116: 2019-07-10 | K116: >Okay, happy with wording chanes to more info box and Q5 >happy that 1 is used for alpha and nuvos calcs for fulltime prop
A117: v6.1 | F117: Steve Lewis | G117: 2019-07-10 | H117: Minor amended Guidance Notes sheet. Minor amendments to Calculator sheet input decriptions and comments in info cells. Updated Clear Data macro to pick up correct cells after inserting additional row in interface
A118: v0.13 | F118: Michael Tagg | G118: 2019-07-16 | H118: >FS calcs - changed DJS/ABS end date calc (D13) to allow for case where alpha ABS end date already filled in. >Parameters - changed B123 to allow for case where alpha ABS end date filled and member was in FS scheme prior to 2015 >Parameters - set cpi_1, cpi_2, cpi_3 to 1%, 2%, 3% respectively. Updated basis1, basis2, basis3 to reflect cpi_n - cpi. >Amended labels on nuvos and alpha calcs sheets to refer to basis1, basis2, basis3 to feed through changes automatically | I118: D Hirani | J118: 2019-07-16 | K118: if you enter an ABS date but leave the reck service blank then the spreadsheet gives no service
A119: v0.14 | B119: \\gad-ast\AST\PSPS\NICSPS\_tools\development area\benefit projection calculator\NICSPS\[NICS - BenProjectCalculator WIP v0.15.xlsb]Version control | F119: D Hirani | G119: 2019-07-16 | H119: >Updated H64, H65 of calculator tab so it is hidden if insufficient answers are given >Slight update to D13 – in v0.13 if you entered an ABS date but left the reck service blank then the spreadsheet gives no service. I have updated formulae so it reverts back to using DJS if reck service is left blank.
A120: v7.1 | F120: S Lewis | G120: 2019-07-17 | H120: >Updated 'Guidance Notes' tab for changes to past and future salary increase assumptions in the calculator. >Updated 'Printable Estimate' to pick up 2% salary increase output in line with the statement
A121: v0.15 | B121: \\Gad-ast\ast\PSPS\NICSPS\_tools\development area\benefit projection calculator\NICSPS\NICS - BenProjectCalculator WIP v0.15.xlsb | F121: Meera Mehta | G121: 2019-07-23 | H121: - Updated guidance note tab so that references to salary increases now refer to the 2/3/4% rather than the 1/2/3% - Updated calculator tab row 68 so it reads 2/3/4% - Updated printable estimate tab rows 30 onwards such that it references column H of the calculator tab instead of column I - Updated parameters tab cells G51:G53 to read 2/3/4% instead of 1/2/3% | I121: D Hirani | J121: 2019-07-24 | K121: All updates okay Made updates to cells C51:C53 of parameters tab for labelling
A122: v0.16 | F122: Michael Tagg | G122: 2019-07-30 | H122: >On the Lump Sum sheet filled in the "Nominal" summary to pick up values as needed >On summary sheet repeated the "in money terms" summary but for nominal values >On Calculator and Printable estimate sheet inserted "Nominal" values alongside "Money terms" values >On Calculator sheet removed the checkboxes and replaced with dropdown yes/no boxes >On Parameters sheet added formula to pick up dropdown boxes for q6, 7, and 8 in cells B114, B90, and B93 to return true/false as before. >On Guidance Notes sheet changed cells B9 and B14 to refer to the newly added in nominal values for results | I122: D Hirani | J122: 2019-07-31 | K122: Happy with updates but classic plus not working as expected - this is because in lump sum tab, no classic plus split figures have been added in nominal table
A123: v0.17 | B123: \\Gad-ast\ast\PSPS\NICSPS\_tools\development area\benefit projection calculator\NICSPS\[NICS - BenProjectCalculator WIP v0.17.xlsb]Version control | F123: D Hirani | G123: 2019-07-31 | H123: Calculator tab >updated row 80 of calculator tab to remove reference to current money >Added borders around results to more easily distinguish between current money and nominal amounts Lump sum >added rows 39 and 40 to link to nominal classic plus split in FS calcs tab >updated row 41 so now linking to rows 39 and 40 instead of 15 and 16
A124: v0.18 | B124: \\Gad-ast\ast\PSPS\NICSPS\_tools\development area\benefit projection calculator\NICSPS\NICS - BenProjectCalculator WIP v0.18.xlsb | F124: Zuzanna Pasternak | G124: 2024-01-04 | H124: ERF sheet: Updated ERF01-ERF06 tables with new factors ERF13 table not updated as not used - Nuvos calcs use Alpha factors LRF sheet: Updated LRF03 table with new factors LRF01 table not updated as not used - Nuvos calcs use Alpha factors | I124: Michael Tagg | J124: 2024-01-15 | K124: Checked tables vs \\GAD-AST\AST\PSPS\NICSPS\_tools\Received from PSPS\CS NI Consolidated Factors 2023-04.xlsm
G125: 2024-01-10 | H125: ERF and LRF sheets: greyed out Nuvos tables and added comments | I125: Michael Tagg | J125: 2024-01-15 | K125: Ok
K126: [Guidance Notes] we will need to update the wording regarding the options exercise - similar to below. Note the wording refers to q7 but I think this should be 6.
K127: [Calculator] I think we will need some wording regarding mccloud for question 6. This might be in the "more info" comment. > We should instruct the user that the option exercise has been superseded by the mccloud ruling > that those effected may wish to use the mccloud calculator rather than this one > that they can still use this tool by selecting yes or no to find an estimate of their benefits under both legacy and reformed cases
A128: v0.19 | B128: \\Gad-ast\ast\PSPS\NICSPS\_tools\development area\benefit projection calculator\NICSPS\NICS - BenProjectCalculator WIP v0.19.xlsb | F128: Zuzanna Pasternak | G128: 2024-01-17 | H128: Calculator sheet: Removed question 6, deleted from name manager Renumbered following questions, renamed ranges in name manager - so removed references to dropdown_q8 in clear data VBA module as it no longer exists | I128: Michael Tagg | J128: 2024-01-18 | K128: Ok
H129: Parameters sheet: Hardcoded cell B114 (Opted to move to Alpha on 1 April 2015) to TRUE as McCloud eligible members will be directed to a different calculator, so all benefits from 2015 will be assumed to be in the Alpha scheme | I129: Michael Tagg | J129: 2024-01-18 | K129: Ok
H130: Note: cell D22 on FS calc sheet sets end of protection date to be equal to planned retirement date if member was older than 49 in 2012 - might need changing. It seems like this only gets used in later calcs if they joined on or before 01/04/2012, otherwise it gets overriden. So maybe these members will not be using this calculator as they will be directed to McCloud calculator instead? | I130: Michael Tagg | J130: 2024-01-18 | K130: I think we should add validation with a warning if the member enters DoJ before 1 April 2012 - "As you joined the scheme before 1 April 2012 you will be affected by the McCloud remedy. Members who are affected by the McCloud remedy should use the alternative illustrator provided on the CSP(NI) website."
H131: Guidance notes sheet: Removed wording relating to question 6 Added wording directing members affected by McCloud remedy to McCloud modeller Removed wording about transitional protection from Detailed notes section | I131: Michael Tagg | J131: 2024-01-18 | K131: Ok
I132: Michael Tagg | J132: 2024-01-18 | K132: Name manager - > there are a number of named ranges that are referencing the "P:\PCSPS_NI\Calculators\Benefit projectors\Sent\20190610\" folder - I think these are all duplicate ranges and can be deleted. > there are a few ranges with #ref errors - again I don't think these are used (they looks like the AP limit ranges)- I think we can remove
K133: Agree should remove the "protection end date" line on Calculator sheet,
A134: v0.20 | B134: \\Gad-ast\ast\PSPS\NICSPS\_tools\development area\benefit projection calculator\NICSPS\NICS - BenProjectCalculator WIP v0.20.xlsb | F134: Zuzanna Pasternak | G134: 2024-01-19 | H134: Calculator sheet: Edited cell C146 (being used for data validation of DJS). Was previously member's 16th birthday, but now the max of 16th birthday and 1 April 2012, to prevent McCloud eligible members from using the calculator Edited error message to include this condition Added to "More Info" note to expand on this, as data validation message could not contain the whole explanation Deleted "protection end date" from row 65
H135: Name manager: Deleted duplicate ranges which were referencing the "P:\PCSPS_NI\Calculators\Benefit projectors\Sent\20190610\" folder Deleted ranges with #REF errors
F136: Toby Adelowo | G136: 2026-08-21 | H136: Calculator: Updated cell validations to allow for year inputs based on current release of caluclator. Updated data validation for cells I33, I38, I48
G137: 2026-08-24 | H137: Guidance Notes: Added new lines at the top in relation to date last updated
G138: 2026-08-26 | H138: Guidance Notes: Repeated wording in B6 into B40

Sheet Guidance Notes
B5: Date calculator last updated: | D5: 2026-08-01
B6: ="Scheme factors are required to determine benefits payable and these factors are reviewed periodically. The calculator uses factors in force as at " & TEXT(D5,"dd mmmm yyyy") & ". When you actually retire, the scheme factors in force at the time will be used, if appropriate. This may produce different results, other things being equal, to those illustrated here." -> Scheme factors are required to determine benefits payable and these factors are reviewed periodically. The calculator uses factors in force as at 01 August 2026. When you actually retire, the scheme factors in force at the time will be used, if appropriate. This may produce different results, other things being equal, to those illustrated here.
B7: Understanding the results (Notes and Assumptions)
B8: - This calculator is solely for guidance purposes and is an estimate only. It is not intended to provide you with financial advice. If you require financial advice, you should contact an Independent Financial Advisor (IFA). You can find tips on finding an IFA by visiting the Financial Conduct Authority website:
B9: www.fca.org.uk
B10: - This calculator is designed for members who are not affected by the McCloud remedy. Members who are affected by the McCloud remedy should use the alternative illustrator provided on the CSP(NI) website.
B11: Section B: Your Benefits
B12: - The results sections (1) and (2) shows the amount of your projected pension at retirement (ie in nominal terms) as well as at today's monetary value (after adjusting for assumed future inflation).
B13: -The results sections (1) and (2) allow for salary increases on three different sets of assumptions (2.0% pa, 3.0% pa and 4.0% pa), inflation (2.0% pa) and revaluation of CARE benefits (2.0% pa). The assumed salary increases do not allow for any future promotional salary increases you may receive.
B14: - When you retire you may be able to choose to convert some of your pension to receive a lump sum (or additional lump sum for classic and classic plus members). This is known as commutation. The Results Sections show (1) the effect of commuting the maximum amount of pension permitted under HMRC rules, and (2) the amount without any commutation.
B15: Printable Estimate
B16: - Provides a one page summary of the following: (a) Inputs by the user - Retirement date, name, date of birth, pensionable earnings, date joined scheme and age at retirement date (b) Output from the Benefit Projection calculator (both at retirement (in nominal terms) as well as in today's monetary terms): (i) The projected pension at the date of retirement assuming no commutation (ii) If a classic member, the level of the automatic lump sum available (iii) The projected level of pension and lump sum assuming that the maximum amount is commuted
B17: Summary of the approach
B18: - The amount of pension you may receive depends on when you retire.
B19: - It is assumed that you will remain in active service until your selected retirement date, and that you will retire on normal terms (i.e. you are not retiring on the grounds of ill-health).
B20: - Normal Pension Age (NPA) in the alpha scheme is State Pension age (SPa). NPA for Nuvos members is 65, and NPA for Classic, Classic Plus and Premium members is 60. Please note that the calculator cannot be used for members with a different NPA to those set out here (e.g. members with a Personal Pension Age or Alpha members who have purchased an EPA (Effective Pension Age)).
B21: - Where your selected retirement age is earlier than the NPA for your scheme the amount of pension shown is reduced for the earlier start of payments. Alpha and Nuvos pension amounts are increased for late payment where your selected retirement age is later than NPA. Classic, Classic Plus and Premium pensions are not increased for late payment. The actuarial adjustments made to reduce or increase pensions for early or late payment are those currently in effect. However, the adjustments will be reviewed periodically, and may increase or decrease. Your benefits at retirement will depend on the actuarial adjustment factors in effect at that time.
B22: - The results do not include any money purchase Additional Voluntary Contributions (AVCs) benefits, added pension that you may have purchased, pension debits or other special arrangements within the schemes. If your alpha or nuvos pension includes transferred-in benefits, for simplicity this projection has revalued them at the same rate as alpha or nuvos scheme benefits respectively. A different rate of revaluation may apply to transferred-in benefits in practice.
B23: - The calculator does not show pension from other sources, for example the State Pension or other private arrangements you may have.
B24: - If you indicated you have worked part time, the calculator has allowed for part-time hours worked up to your most recent benefit statement. It has also assumed you have worked your current part-time hours since then and will continue to do so until retirement. However, it is not currently possible to input two separate concurrent employments.
B25: - The illustrations do not allow for taxation. Your benefits will be subject to the various tax rates and limits in force when you retire. Further information on taxation is available on the Department of Finance website. You may wish to seek specialist advice if you think you could be affected.
B26: - The calculator does not provide an illustration for retirement on the grounds of ill-health.
B27: - Your scheme provides survivor benefits payable in the event of your death. These are not shown here. See your scheme guide for details.
B28: - The calculator is not suitable for providing illustrations for Prison Officers with reserved rights.
B29: Detailed notes (which explain some of the details of the calculations)
B30: - The alpha scheme is a Career Average Revalued Earnings (CARE) scheme with an accrual rate of 2.32% and revaluation for active members before retirement in line with the change in CPI.
B31: - The nuvos scheme is a Career Average Revalued Earnings (CARE) scheme with an accrual rate of 2.3% and revaluation for active members before retirement in line with the change in CPI.
B32: - Where past accrued CARE pension has not been provided, the calculator will estimate this value by assuming that historic salary increases have been 3.0% per year.
B33: - Long-term CPI has been assumed to be 2.0% per year. The calculator presents three sets of results, by using long-term pay increases of (i) 2.0%, (ii) 3.0% and (iii) 4.0% each year.
B34: - The alpha and nuvos active member in-service CARE revaluation has been set at 2.0% in all cases.
B35: - The Normal Pension Age in the classic, classic plus and premium scheme is assumed to be age 60. This calculator makes no allowance for members who may have a NPA of 65 in these schemes or those who may have a Personal Pension Age.
B36: Warnings
B37: - The results produced are not a formal statement of your entitlements.
B38: - This calculator only applies to the Civil Service Pension Schemes in Northern Ireland.
B39: - The results shown are estimated, using a given set of assumptions. Using different assumptions in the calculations could produce different results.
B40: ="- Scheme factors are required to determine benefits payable and these factors are reviewed periodically. The calculator uses factors in force as at " & TEXT(D5,"dd mmmm yyyy") & ". When you actually retire, the scheme factors in force at the time will be used, if appropriate. This may produce different results, other things being equal, to those illustrated here." -> - Scheme factors are required to determine benefits payable and these factors are reviewed periodically. The calculator uses factors in force as at 01 August 2026. When you actually retire, the scheme factors in force at the time will be used, if appropriate. This may produce different results, other things being equal, to those illustrated here.
B41: - Allowing for promotional salary increases would increase the projected benefits.
B42: - If future experience differs from the assumptions used, the pension you will receive at retirement will be different from those shown.
B43: - If you wish to seek financial advice, please contact an authorised Independent Financial Adviser. The results in this calculator are not to be considered as financial advice. The Department of Finance does not accept responsibility for the accuracy of results produced.

Sheet Calculator
B6: Northern Ireland Civil Service Pension Scheme Benefits Projector
B7: Important information - please read this before you start
B8: - This calculator will provide an illustration of your pension and lump sum at a chosen retirement age.
B9: - The results shown are only estimates, based on what you input and other assumptions.
B10: - Please read the Guidance Notes for further details and limitations on the results produced.
B11: - This calculator is for guidance purposes only and is only an estimate. It is not intended to provide you with financial advice. If you require financial advice, you should contact an Independent Financial Adviser.
B13: A: Your details
B14: Please enter the following details about yourself
B16: 1. Your date of birth (dd/mm/yyyy)
B18: 2. Your name (first name and surname)
B20: 3. The date you joined the scheme (dd/mm/yyyy) | K20: more info
B22: =IF(DJS>=NewSchDate,"4. The scheme you entered upon joining","4. The scheme you were in prior to 1 April 2015 (Choose from the list in the box)") -> 4. The scheme you were in prior to 1 April 2015 (Choose from the list in the box) | K22: more info
B24: 5. Your pensionable earnings | K24: more info
B29: 6. This question is for nuvos scheme members only
B30: Do you know your nuvos pension to date? | F30: No | G30: =IF(Parameters!B90,"Input below","It will be approximated in the projection calculations") -> It will be approximated in the projection calculations
B31: (This will be shown on your annual benefit statement)
G33: The end date of your current annual benefit statement | H33: 31 March | K33: Accrued nuvos benefit | M33: more info
B34: 7. This question is for alpha scheme members only
B35: Do you know your alpha pension to date? | F35: No | G35: =IF(Parameters!B93,"Input below","It will be approximated in the projection calculations") -> It will be approximated in the projection calculations
B36: (This will be shown on your annual benefit statement)
G38: The end date of your current annual benefit statement | H38: 31 March | K38: Accrued alpha benefit | M38: more info
B40: 8. Retirement date for illustration (dd/mm/yyyy) | K40: more info
B42: 9. Have you had any periods of part-time working (choose from the list in the box)? | K42: more info
B44: 10. Your current part-time proportion (entered as percentage e.g. 50%) | K44: more info
B46: =IF(PT_Status="Some part-time","Please ","If available, please ")&"fill in some details from your current benefit statement (final salary scheme only)" -> If available, please fill in some details from your current benefit statement (final salary scheme only)
B48: 11. The end date of your current annual benefit statement | H48: 31 March
B50: 12. The reckonable service on your latest benefit statement including any transferred in service | J50: years | K50: more info
J51: days
B53: 13. If you have left questions 11. or 12. blank please enter any service credited from any transfers in (final salary scheme only) | J53: years | K53: more info
J54: days
B56: B: Your benefits
B58: =IF(Form_Check=TRUE,"","Insufficient data supplied, please fill in rest of form") -> Insufficient data supplied, please fill in rest of form
B60: What will you get when you retire?
B62: Age at retirement | H62: =IF(OR(DoB="",DoR=""),"",RA_Year & " years and " & Parameters!D78 & " days") -> 
B63: Current Salary | H63: =Summary!D41 -> 0
B64: =IF(OR(Scheme_Full="nuvos", Scheme_Full="alpha"),"","Number of years reckonable service used in calculating final salary benefits") -> Number of years reckonable service used in calculating final salary benefits | H64: =IF(OR(Scheme_Full="nuvos", Scheme_Full="alpha"),"",IF(Scheme_Full="nuvos",0,'FS calcs'!H76)&" years and "&IF(Scheme_Full="nuvos",0,'FS calcs'!I76)&" days") -> 0 years and 0 days
H67: Annual Salary Increase Assumptions | N67: Annual Salary Increase Assumptions
H68: 0.02 | J68: 0.03 | L68: 0.04 | N68: 0.02 | P68: 0.03 | R68: 0.04
B69: Your projected benefits under different salary increase assumptions | H69: At retirement | N69: In current money terms (after adjusting for assumed future inflation)
B70: 1. Assuming maximum commutation of pension
B71: =Scheme_Full&" pension" -> pension | H71: =IFERROR(IF(Summary!H43="input error",Summary!H43,TEXT(Summary!H43,"£#,##0")&" pa"),"£0") -> £0 | J71: =IFERROR(IF(Summary!I43="input error",Summary!I43,TEXT(Summary!I43,"£#,##0")&" pa"),"£0") -> £0 | L71: =IFERROR(IF(Summary!J43="input error",Summary!J43,TEXT(Summary!J43,"£#,##0")&" pa"),"£0") -> £0 | N71: =IFERROR(IF(Summary!D43="input error",Summary!D43,TEXT(Summary!D43,"£#,##0")&" pa"),"£0") -> £0 | P71: =IFERROR(IF(Summary!E43="input error",Summary!E43,TEXT(Summary!E43,"£#,##0")&" pa"),"£0") -> £0 | R71: =IFERROR(IF(Summary!F43="input error",Summary!F43,TEXT(Summary!F43,"£#,##0")&" pa"),"£0") -> £0
B72: =Scheme_Full&" lump sum" -> lump sum | H72: =IFERROR(IF(Summary!H44="input error",Summary!H44,TEXT(Summary!H44,"£#,##0")),"£0") -> £0 | J72: =IFERROR(IF(Summary!I44="input error",Summary!I44,TEXT(Summary!I44,"£#,##0")),"£0") -> £0 | L72: =IFERROR(IF(Summary!J44="input error",Summary!J44,TEXT(Summary!J44,"£#,##0")),"£0") -> £0 | N72: =IF(Scheme_Full="", "£0",Summary!D44) -> £0 | P72: =IF(Scheme_Full="", "£0",Summary!E44) -> £0 | R72: =IF(Scheme_Full="", "£0",Summary!F44) -> £0
H73: plus | J73: plus | L73: plus | N73: plus | P73: plus | R73: plus
B74: ="alpha pension" -> alpha pension | H74: =IFERROR(IF(Summary!H45="input error",Summary!H45,TEXT(Summary!H45,"£#,##0")&" pa"),"£0") -> £0 pa | J74: =IFERROR(IF(Summary!I45="input error",Summary!I45,TEXT(Summary!I45,"£#,##0")&" pa"),"£0") -> £0 pa | L74: =IFERROR(IF(Summary!J45="input error",Summary!J45,TEXT(Summary!J45,"£#,##0")&" pa"),"£0") -> £0 pa | N74: =IF(Summary!D45="Input Error",Summary!D45,TEXT(Summary!D45,"£#,##0")&" pa") -> £0 pa | P74: =IF(Summary!E45="Input Error",Summary!E45,TEXT(Summary!E45,"£#,##0")&" pa") -> £0 pa | R74: =IF(Summary!F45="Input Error",Summary!F45,TEXT(Summary!F45,"£#,##0")&" pa") -> £0 pa
B75: ="alpha lump sum" -> alpha lump sum | H75: =IFERROR(IF(Summary!H46="input error",Summary!H46,TEXT(Summary!H46,"£#,##0")),"£0") -> £0 | J75: =IFERROR(IF(Summary!I46="input error",Summary!I46,TEXT(Summary!I46,"£#,##0")),"£0") -> £0 | L75: =IFERROR(IF(Summary!J46="input error",Summary!J46,TEXT(Summary!J46,"£#,##0")),"£0") -> £0 | N75: =Summary!D46 -> 0 | P75: =Summary!E46 -> 0 | R75: =Summary!F46 -> 0
B77: Total pension | H77: =IFERROR(IF(Summary!H47="input error",Summary!H47,TEXT(Summary!H47,"£#,##0")&" pa"),"£0") -> pa | J77: =IFERROR(IF(Summary!I47="input error",Summary!I47,TEXT(Summary!I47,"£#,##0")&" pa"),"£0") -> pa | L77: =IFERROR(IF(Summary!J47="input error",Summary!J47,TEXT(Summary!J47,"£#,##0")&" pa"),"£0") -> pa | N77: =IFERROR(IF(ChosenRA<55,"",IF(OR(Summary!D20<0,Summary!D37<0),"input error",TEXT(Summary!D47,"£#,##0")&" pa")), "£0") ->  | P77: =IFERROR(IF(ChosenRA<55,"",IF(OR(Summary!E20<0,Summary!E37<0),"input error",TEXT(Summary!E47,"£#,##0")&" pa")), "£0") ->  | R77: =IFERROR(IF(ChosenRA<55,"",IF(OR(Summary!F20<0,Summary!F37<0),"input error",TEXT(Summary!F47,"£#,##0")&" pa")), "£0") -> 
B78: Total lump sum | H78: =IFERROR(IF(Summary!H48="input error",Summary!H48,TEXT(Summary!H48,"£#,##0")),"£0") ->  | J78: =IFERROR(IF(Summary!I48="input error",Summary!I48,TEXT(Summary!I48,"£#,##0")),"£0") ->  | L78: =IFERROR(IF(Summary!J48="input error",Summary!J48,TEXT(Summary!J48,"£#,##0")),"£0") ->  | N78: =IF(Scheme_Full="","£0",IF(ChosenRA<55,"",Summary!D48)) -> £0 | P78: =IF(Scheme_Full="","£0",IF(ChosenRA<55,"",Summary!E48)) -> £0 | R78: =IF(Scheme_Full="","£0",IF(ChosenRA<55,"",Summary!F48)) -> £0
B80: Your projected benefits under different salary increase assumptions
B81: 2. Assuming no commutation of pension
B82: =Scheme_Full&" pension" -> pension | H82: =IF(Scheme_Full="","£0",IF(Summary!H49="input error",Summary!H49,TEXT(Summary!H49,"£#,##0")&" pa")) -> £0 | J82: =IF(Scheme_Full="","£0",IF(Summary!I49="input error",Summary!I49,TEXT(Summary!I49,"£#,##0")&" pa")) -> £0 | L82: =IF(Scheme_Full="","£0",IF(Summary!J49="input error",Summary!J49,TEXT(Summary!J49,"£#,##0")&" pa")) -> £0 | N82: =IF(Scheme_Full="","£0",IF(Summary!D49="input error",Summary!D49,TEXT(Summary!D49,"£#,##0")&" pa")) -> £0 | P82: =IF(Scheme_Full="","£0",IF(Summary!E49="input error",Summary!E49,TEXT(Summary!E49,"£#,##0")&" pa")) -> £0 | R82: =IF(Scheme_Full="","£0",IF(Summary!F49="input error",Summary!F49,TEXT(Summary!F49,"£#,##0")&" pa")) -> £0
B83: =Scheme_Full&" lump sum" -> lump sum | H83: =IF(Scheme_Full="","£0",IF(Summary!H50="input error",Summary!H50,TEXT(Summary!H50,"£#,##0"))) -> £0 | J83: =IF(Scheme_Full="","£0",IF(Summary!I50="input error",Summary!I50,TEXT(Summary!I50,"£#,##0"))) -> £0 | L83: =IF(Scheme_Full="","£0",IF(Summary!J50="input error",Summary!J50,TEXT(Summary!J50,"£#,##0"))) -> £0 | N83: =Summary!D50 -> 0 | P83: =Summary!E50 -> 0 | R83: =Summary!F50 -> 0
H84: Plus | J84: Plus | L84: Plus | N84: Plus | P84: Plus | R84: Plus
B85: ="alpha pension" -> alpha pension | H85: =IF(Scheme_Full="","£0",IF(Summary!H51="input error",Summary!H51,TEXT(Summary!H51,"£#,##0")&" pa")) -> £0 | J85: =IF(Scheme_Full="","£0",IF(Summary!I51="input error",Summary!I51,TEXT(Summary!I51,"£#,##0")&" pa")) -> £0 | L85: =IF(Scheme_Full="","£0",IF(Summary!J51="input error",Summary!J51,TEXT(Summary!J51,"£#,##0")&" pa")) -> £0 | N85: =IF(Summary!D51="input error",Summary!D51,TEXT(Summary!D51,"£#,##0")&" pa") -> £0 pa | P85: =IF(Summary!E51="input error",Summary!E51,TEXT(Summary!E51,"£#,##0")&" pa") -> £0 pa | R85: =IF(Summary!F51="input error",Summary!F51,TEXT(Summary!F51,"£#,##0")&" pa") -> £0 pa
B87: Total pension | H87: =IF(Scheme_Full="","£0",IF(Summary!H52="input error",Summary!H52,TEXT(Summary!H52,"£#,##0")&" pa")) -> £0 | J87: =IF(Scheme_Full="","£0",IF(Summary!I52="input error",Summary!I52,TEXT(Summary!I52,"£#,##0")&" pa")) -> £0 | L87: =IF(Scheme_Full="","£0",IF(Summary!J52="input error",Summary!J52,TEXT(Summary!J52,"£#,##0")&" pa")) -> £0 | N87: =IF(Scheme_Full="","£0",IF(ChosenRA<55,"",IF(Summary!D52="input error",Summary!D52,TEXT(Summary!D52,"£#,##0")&" pa"))) -> £0 | P87: =IF(Scheme_Full="","£0",IF(ChosenRA<55,"",IF(Summary!E52="input error",Summary!E52,TEXT(Summary!E52,"£#,##0")&" pa"))) -> £0 | R87: =IF(Scheme_Full="","£0",IF(ChosenRA<55,"",IF(Summary!F52="input error",Summary!F52,TEXT(Summary!F52,"£#,##0")&" pa"))) -> £0
B88: Total lump sum | H88: =IF(Scheme_Full="","£0",IF(Summary!H53="input error",Summary!H53,TEXT(Summary!H53,"£#,##0"))) -> £0 | J88: =IF(Scheme_Full="","£0",IF(Summary!I53="input error",Summary!I53,TEXT(Summary!I53,"£#,##0"))) -> £0 | L88: =IF(Scheme_Full="","£0",IF(Summary!J53="input error",Summary!J53,TEXT(Summary!J53,"£#,##0"))) -> £0 | N88: =IF(ChosenRA>=55,N83,"") ->  | P88: =IF(ChosenRA>=55,P83,"") ->  | R88: =IF(ChosenRA>=55,R83,"") -> 
G91: Scheme Guides
A133: Do not delete - calculator validation
A135: DOB | B135: =DATE(YEAR(Date_curr)-16,MONTH(Date_curr),DAY(Date_curr)) -> 2010-09-01 | D135: current date minus 16 years
B136: =IF(DJS="",B135,DATE(YEAR(DJS)-16,MONTH(DJS),DAY(DJS))) -> 2010-09-01 | D136: not allowed after DJS minus 16 years, if blank set to be equal to current date less 16 years
B137: =MIN(B135:B136) -> 2010-09-01 | D137: combination of the above
B138: =DATE(YEAR(Date_curr)-75,MONTH(Date_curr),DAY(Date_curr)) -> 1951-09-01 | D138: Dob not before 75 years ago
A139: Current schemes
B140: =+IF(DJS>=NewSchDate,"alpha","classic") -> classic
B141: =+IF(DJS>=NewSchDate,"","classic plus") -> classic plus | C141: ="" -> 
B142: =+IF(DJS>=NewSchDate,"","premium") -> premium
B143: =+IF(DJS>=NewSchDate,"","nuvos") -> nuvos
A145: DJS | B145: max | C145: =Date_curr -> 2026-09-01
B146: min | C146: =+MAX(DATE(YEAR(DoB)+16,MONTH(DoB),DAY(DoB)), DATE(2012, 4, 1)) -> 2012-04-01 | E146: not allowed before age 16, not allowed to be McCloud eligible
A148: Current pen sal
A149: min | B149: 1000
A150: max | B150: 300000
A151: Reckonable service granted for TVIN
A152: max | B152: =INT((DJS-DATE(YEAR(DoB)+16,MONTH(DoB),DAY(DoB)))/365.25) -> -16 | C152: =+IF(TVinYears>=B152,D152,D153) -> 0 | D152: =+INT(((DJS-DATE(YEAR(DoB)+16,MONTH(DoB),DAY(DoB)))/365.25-INT((DJS-DATE(YEAR(DoB)+16,MONTH(DoB),DAY(DoB)))/365.25))*365.25) -> 0 | E152: Check versus age at joining scheme and time prior to this but after age 16
D153: 365
A154: Retirement age
B156: Classic | C156: Classic Plus | D156: Premium | E156: nuvos | F156: alpha | G156: Validation
A157: min | B157: 55 | C157: 55 | D157: 55 | E157: 55 | F157: 55 | G157: =MAX(DATE(YEAR(DoB)+B157,MONTH(DoB),DAY(DoB)), Date_curr) -> 2026-09-01
A158: max | B158: 75 | C158: 75 | D158: 75 | E158: 75 | F158: 80 | G158: =DATE(YEAR(DoB)+B158,MONTH(DoB),DAY(DoB)) -> 1974-12-31
A162: Retirement date
B164: Protection | D164: ='FS calcs'!ProtStatus -> TRUE
B165: Protection end date | D165: ='FS calcs'!DoProtEnd -> 00:00:00 | E165: =TEXT(D165,"d mmmm yyyy") -> 0 January 1900
B166: CARE scheme start date | D166: =IFERROR(D165+1,"N/A") -> 1900-01-01 | E166: =TEXT(D166,"d mmmm yyyy") -> 1 January 1900
B168: Protection type | D168: Text to display
B169: Full | D169: n/a
B170: Tapered | D170: =E166 -> 1 January 1900
B171: None | D171: 1 April 2015
A174: Always full-time
A175: Some part-time

Sheet Printable Estimate
B4: Northern Ireland Civil Service Pension Scheme
B6: This calculator is for guidance purposes only. It is an estimate only and is not a guarantee of future benefits. It is not intended to provide you with financial advice. If you require financial advice, you should contact an independent financial adviser.
B10: This projection should be read along with the accompanying notes.
C13: Illustration of pension benefits for retirement at | E13: =IF(DoR="","",DoR) -> 
C15: Name | E15: =IF(Name_member="","",Name_member) -> 
C17: Date of Birth | E17: =IF(DoB="","",DoB) -> 
C19: Pensionable Earnings | E19: =IF(CurrentSal="","",CurrentSal) -> 
C21: Date of joining the scheme | E21: =IF(DJS="","",DJS) -> 
C23: Retirement Date | E23: =IF(DoR="","",DoR) -> 
C25: Age at Retirement Date | E25: =IF(OR(DoB="",DoR=""),"", RA_Year & " years and " & Parameters!D78 & " days") -> 
B28: Your projected benefits (assuming future salary increases of 2% pa)
B29: =IF(Form_Check=TRUE,"","Insufficient data supplied, please fill in rest of form") -> Insufficient data supplied, please fill in rest of form
E31: At Retirement | F31: Current money terms
C32: ="Projected pension at "&IF(DoR="","",TEXT(DoR,"d mmmm yyy")) &":" -> Projected pension at : | E32: =IF(Form_Check=TRUE,IF(ChosenRA>=55,Calculator!H87,Calculator!H82),"") ->  | F32: =IF(Form_Check=TRUE,IF(ChosenRA>=55,Calculator!N87,Calculator!N82),"") -> 
C34: =IF(OR(Scheme_Full="classic",Scheme_Full="classic plus" ),"Automatic lump sum","") ->  | E34: =IF(Form_Check=TRUE,IF(OR(Scheme_Full="classic",Scheme_Full="classic plus"),Calculator!H88,""),"") ->  | F34: =IF(Form_Check=TRUE,IF(OR(Scheme_Full="classic",Scheme_Full="classic plus"),Calculator!N88,""),"") -> 
C36: The Northern Ireland Civil Service Pension Scheme allows for part of your pension to be exchanged for a lump sum at retirement. This is called commutation.
C38: Amounts following maximum commutation:
C40: Pension | E40: =IF(Form_Check=TRUE,IF(ChosenRA>=55,Calculator!H77,Calculator!H71),"") ->  | F40: =IF(Form_Check=TRUE,IF(ChosenRA>=55,Calculator!N77,Calculator!N71),"") -> 
C42: Lump Sum | E42: =IF(Form_Check=TRUE,IF(ChosenRA>=55,Calculator!H78,Calculator!H72),"") ->  | F42: =IF(Form_Check=TRUE,IF(ChosenRA>=55,Calculator!N78,Calculator!N72),"") -> 
C46: Printed on | E46: =Date_curr -> 2026-09-01

Sheet Parameters (hidden)
A1: Government Actuary's Department
A2: =IF(title="> Enter workbook title here","Enter workbook title in Cover sheet",title) -> Northern Ireland Civil Service Pension Scheme Calculator
A3: Parameters
A4: =CELL("filename",A1) -> C:\Users\dof-aytond\Desktop\[NICS - BenProjectCalculator v0.21.xlsm]Parameters
F6: NRA
B7: Current schemes | E7: classic | F7: 60
E8: classic plus | F8: 60
E9: premium | F9: 60
E10: nuvos | F10: 65
E11: alpha | F11: SPA
B13: Protection date | E13: 2012-04-01
B15: alpha scheme start date | E15: 2015-04-01
B17: Days in the year | E17: 365.25
B19: Maximum service (years) | E19: Classic | F19: 45
E20: Classic plus | F20: 45
E21: Premium | F21: 45
B23: Accrual rates | E23: Classic | F23: =1/80 -> 0.0125
E24: Classic plus (Pre-Oct 2002) | F24: =1/80 -> 0.0125
E25: Classic plus (Post-Oct 2002) | F25: =1/60 -> 0.01666666667
E26: Premium | F26: =1/60 -> 0.01666666667
E27: nuvos | F27: 0.023
E28: alpha | F28: 0.0232
B31: State pension age (CARE only)
D32: DoB
D33: From | E33: To
D34: 1940-04-06 | E34: 1954-03-05 | F34: 65
D35: 1954-03-06 | E35: 1960-09-05 | F35: 66
D36: 1960-09-06 | E36: 1977-09-05 | F36: 67
D37: 1977-09-06 | F37: 68
E39: SPA | F39: =VLOOKUP(DoB,D34:F37,3,TRUE) -> 
E40: SPA Date | F40: =DATE(YEAR(DoB)+SPA,MONTH(DoB),DAY(DoB)) -> 
B42: Classic plus start date | E42: 2002-10-01
B43: Premium start date | E43: 2002-10-01
B44: nuvos start date | E44: 2007-07-30
B45: alpha start date | E45: 2015-04-01
B47: Service between classic/classic plus start date and protection date | G47: =(ProtectDate-Start_date_classic)/DoY -> 9.500342231
C50: CPI | G50: 0.02 | H50: Short-term adjustment | L50: 1 | M50: 31 | N50: =M50 -> 31
A51: salary | B51: Basis 1 | C51: CPI + 0.0% | G51: 0.02 | H51: 0 | L51: 2 | M51: 28 | N51: =M51+N50 -> 59
A52: salary | B52: Basis 2 | C52: CPI + 1.0% | G52: 0.03 | L52: 3 | M52: 31 | N52: =M52+N51 -> 90
A53: salary | B53: Basis 3 | C53: CPI + 2.0% | G53: 0.04 | L53: 4 | M53: 30 | N53: 120
C54: CARE Revaluation | G54: =cpi -> 0.02 | L54: 5 | M54: 31 | N54: 151
L55: 6 | M55: 30 | N55: 181
L56: 7 | M56: 31 | N56: 212
L57: 8 | M57: 31 | N57: 243
L58: 9 | M58: 30 | N58: 273
B59: Current Date | D59: =TODAY() -> 2026-09-01 | L59: 10 | M59: 31 | N59: 304
B60: =DATE(YEAR(Date_curr)-1,4,1) -> 2025-04-01 | C60: =DATE(YEAR(Date_curr),4,1) -> 2026-04-01 | D60: =DATE(YEAR(Date_curr)+1,4,1) -> 2027-04-01 | L60: 11 | M60: 30 | N60: 334
B61: nuvos Start of Scheme Year | D61: =MAX('FS calcs'!D13,IF(Parameters!B90=TRUE,DATE(nuvos_ABSEndDate1,4,1),IF(PT_Status="some Part-time",DATE(ABSEndDate,4,1),IF(AND(Date_curr<C60,Date_curr>=B60),B60,IF(AND(Date_curr<D60,Date_curr>=C60),C60,D60))))) -> 2026-04-01 | L61: 12 | M61: 31 | N61: 365
B62: alpha Start of Scheme Year | D62: =MAX(NewSchDate,IF(Parameters!B93=TRUE,DATE(alpha_ABSEndDate1,4,1),IF(PT_Status="some Part-time",DATE(ABSEndDate,4,1),IF(AND(Date_curr<C60,Date_curr>=B60),B60,IF(AND(Date_curr<D60,Date_curr>=C60),C60,D60))))) -> 2026-04-01
B63: Start of current Scheme Year | D63: =IF(MONTH(Date_curr)<4,DATE(YEAR(Date_curr)-1,4,1),DATE(YEAR(Date_curr),4,1)) -> 2026-04-01
B65: Scheme Conversion
B66: Classic | C66: Classic
B67: Classic plus | C67: Classic plus | F67: alpha scheme LRF lookup function
B68: Premium | C68: Premium
B69: nuvos | C69: nuvos | F69: Time from SPA to retirement date in years, months and days.
B70: alpha | C70: alpha | F70: Years | G70: Months | H70: Days
F71: =IFERROR(DATEDIF(SPA_date,DoR,"y"),0) -> 0 | G71: =IFERROR(DATEDIF(F73,DoR,"m"),0) -> 0 | H71: =IFERROR(DATEDIF(G73,DoR,"d"),0) -> 0
B72: Current scheme | F72: SPA + Years | G72: SPA + Years + Months | H72: SPA + Years + Months + Days
B73: =INDEX(Parameters!$C$66:$C$70,MATCH(Calculator!I22,Parameters!$B$66:$B$70,0),1) ->  | F73: =DATE(YEAR(SPA_date)+F71,MONTH(SPA_date),DAY(SPA_date)) ->  | G73: =DATE(YEAR(F73),MONTH(F73)+G71,DAY(F73)) ->  | H73: =DATE(YEAR(G73),MONTH(G73),DAY(G73)+H71) ->  | I73: =IF(DoR>SPA_date,H73=DoR,H73=SPA_date) -> 
F74: Time from SPA to retirement date "in complete years and months".
B75: Retirement Date | D75: Days | F75: Years | G75: Months | H75: Days
B76: =DoR -> 00:00:00 | D76: =DoR-DATE(YEAR(DoB)+RA_Year,MONTH(DoB),DAY(DoB)) -> 0 | F76: =F71 -> 0 | G76: =G71 -> 0 | H76: N/A
B77: Years | C77: Months
B78: =DATEDIF(DoB,DoR,"y") -> 0 | C78: =ROUND((DATEDIF(DoB,DoR,"m")/12-B78)*12,1) -> 0 | D78: =DATEDIF(DoB,DoR,"yd") -> 0
B79: Ret Age | F79: alpha scheme ERF lookup function
B80: =B78+D78/DoY -> 0
B81: Date turned 60 | F81: Time from retirement date to SPA in years, months and days.
B82: =DATE(YEAR(DoB)+60,MONTH(DoB),DAY(DoB)) -> 1959-12-31 | F82: Years | G82: Months | H82: Days
B83: SPA Date | F83: =IFERROR(DATEDIF(DoR,SPA_date,"y"),0) -> 0 | G83: =IFERROR(DATEDIF(F85,SPA_date,"m"),0) -> 0 | H83: =IFERROR(DATEDIF(G85,SPA_date,"d"),0) -> 0
B84: =SPA_date ->  | F84: DoR + Years | G84: DoR + Years + Months | H84: DoR + Years + Months + Days
F85: =DATE(YEAR(DoR)+F83,MONTH(DoR),DAY(DoR)) -> 00:00:00 | G85: =DATE(YEAR(F85),MONTH(F85)+G83,DAY(F85)) -> 00:00:00 | H85: =DATE(YEAR(G85),MONTH(G85),DAY(G85)+H83) -> 00:00:00 | I85: =IF(DoR<SPA_date,H85=SPA_date,H85=DoR) -> 
B86: Date turned 65 | F86: Time from retirement date to SPA "rounded up to the next higher month".
B87: =DATE(YEAR(DoB)+65,MONTH(DoB),DAY(DoB)) -> 1964-12-31 | F87: Years | G87: Months | H87: Days
F88: =IF(AND(H83>0,G83=11),F83+1,F83) -> 0 | G88: =IF(H83>0,IF(G83=11,0,G83+1),G83) -> 0 | H88: N/A
B89: Past service from nuvos ABS?
B90: =IF(Calculator!F30="No",FALSE,TRUE) -> FALSE
F91: nuvos scheme LRF lookup function
B92: Past service from alpha ABS?
B93: =IF(Calculator!F35="No",FALSE,TRUE) -> FALSE | F93: Time from NRA to retirement date in years, months and days.
F94: Years | G94: Months | H94: Days
B95: ABS date available | F95: =IFERROR(DATEDIF(DateAge65,DoR,"y"),0) -> 0 | G95: =IFERROR(DATEDIF(F97,DoR,"m"),0) -> 0 | H95: =IFERROR(DATEDIF(G97,DoR,"d"),0) -> 0
B96: =IF(OR(B90=TRUE,B93=TRUE),TRUE,FALSE) -> FALSE | F96: NRA + Years | G96: NRA + Years + Months | H96: NRA + Years + Months + Days
F97: =DATE(YEAR(DateAge65)+F95,MONTH(DateAge65),DAY(DateAge65)) -> 1964-12-31 | G97: =DATE(YEAR(F97),MONTH(F97)+G95,DAY(F97)) -> 1964-12-31 | H97: =DATE(YEAR(G97),MONTH(G97),DAY(G97)+H95) -> 1964-12-31
B98: Data filled in | F98: Time from NRA to retirement date "in complete years and months".
B99: =AND(DoB<>"",DJS<>"",Scheme_Full<>"",CurrentSal<>"",DoR<>"", B117,B120,B123) -> FALSE | F99: Years | G99: Months | H99: Days
F100: =F95 -> 0 | G100: =G95 -> 0 | H100: N/A
B101: Annual benefit statement years for drop down
B102: 2016
B103: 2017 | F103: nuvos scheme ERF lookup function
B104: 2018
B105: 2019 | F105: Time from retirement date to NPA in years, months and days.
B106: 2020 | F106: Years | G106: Months | H106: Days
B107: 2021 | F107: =IFERROR(DATEDIF(DoR,DateAge65,"y"),0) -> 64 | G107: =IFERROR(DATEDIF(F109,DateAge65,"m"),0) -> 12 | H107: =IFERROR(DATEDIF(G109,DateAge65,"d"),0) -> 0
B108: 2022 | F108: DoR + Years | G108: DoR + Years + Months | H108: DoR + Years + Months + Days
B109: 2023 | F109: =DATE(YEAR(DoR)+F107,MONTH(DoR),DAY(DoR)) -> 1963-12-31 | G109: =DATE(YEAR(F109),MONTH(F109)+G107,DAY(F109)) -> 1964-12-31 | H109: =DATE(YEAR(G109),MONTH(G109),DAY(G109)+H107) -> 1964-12-31
B110: 2024 | F110: Time from retirement date to NPA "rounded up to the next higher month".
B111: 2025 | F111: Years | G111: Months | H111: Days
F112: =IF(AND(H107>0,G107=11),F107+1,F107) -> 64 | G112: =IF(H107>0,IF(G107=11,0,G107+1),G107) -> 12 | H112: N/A
B113: Opted to move to Alpha on 1 April 2015
B114: TRUE
B116: Nuvos date & pension available?
B117: =IF(B90=TRUE,IF(OR(nuvos_ABSEndDate1="", Calculator!L33=""),FALSE,TRUE), TRUE) -> TRUE
B119: Alpha date and pension available?
B120: =IF(B93=TRUE,IF(OR(alpha_ABSEndDate1="",Calculator!L38=""),FALSE,TRUE), TRUE) -> TRUE
B122: Q13 answered but Q12 blank?
B123: =IF(AND(alpha_ABSEndDate1<>"",Reck_Years="",Reck_Days=""),TRUE,IF(OR(AND(OR(Reck_Years<>"",Reck_Days<>""),AND(ABSEndDate="",alpha_ABSEndDate1="")),AND(AND(Reck_Years="",Reck_Days=""),ABSEndDate<>"")),FALSE,TRUE)) -> TRUE

Sheet Tapers (hidden)
A1: Government Actuary's Department
A2: =IF(title="> Enter workbook title here","Enter workbook title in Cover sheet",title) -> Northern Ireland Civil Service Pension Scheme Calculator
A3: Tapers
A4: =CELL("filename",A1) -> C:\Users\dof-aytond\Desktop\[NICS - BenProjectCalculator v0.21.xlsm]Tapers
C6: Source: | D6: https://www.civilservicepensionscheme.org.uk/members/the-new-pension-scheme-alpha/how-will-this-affect-me/active-members/dates-that-you-will-move-to-the-new-scheme/
C10: Classic, classic plus and premium | N10: nuvos members
A11: 2012 Lookup | C11: Age at 1 Apr 2012 | E11: Age at 1 Apr 2015 | G11: Months remaining in current scheme | H11: Age that you move to the new scheme | J11: Date that you will move to the new scheme | L11: 2015 Lookup | N11: Age at 1 Apr 2012 | P11: Age at 1 Apr 2015 | R11: Months remaining in current scheme | S11: Age that you move to the new scheme | U11: Date that you will move to the new scheme
C12: year | D12: month | E12: year | F12: month | H12: year | I12: month | N12: year | O12: month | P12: year | Q12: month | S12: year | T12: month
A13: =+C13&"_"&D13 -> 49_11 | C13: 49 | D13: 11 | E13: =+C13+3 -> 52 | F13: =+D13 -> 11 | G13: 82 | H13: 59 | I13: 9 | J13: 2022-02-01 | L13: =+P13&"_"&Q13 -> 57_11 | N13: 54 | O13: 11 | P13: =+N13+3 -> 57 | Q13: =+O13 -> 11 | R13: 82 | S13: 64 | T13: 9 | U13: 2022-02-01
A14: =+C14&"_"&D14 -> 49_10 | C14: =+IF(D14=11,C13-1,C13) -> 49 | D14: =+IF(D13=0,11,D13-1) -> 10 | E14: =+IF(F14=11,E13-1,E13) -> 52 | F14: =+IF(F13=0,11,F13-1) -> 10 | G14: =+G13-2 -> 80 | H14: =+IF(I14=9,H13-1,H13) -> 59 | I14: =+IF(I13=0,9,I13-3) -> 6 | J14: =+EDATE(J13,-2) -> 2021-12-01 | L14: 57_10 | N14: =+IF(O14=11,N13-1,N13) -> 54 | O14: =+IF(O13=0,11,O13-1) -> 10 | P14: =+IF(Q14=11,P13-1,P13) -> 57 | Q14: =+IF(Q13=0,11,Q13-1) -> 10 | R14: =+R13-2 -> 80 | S14: =+IF(T14=9,S13-1,S13) -> 64 | T14: =+IF(T13=0,9,T13-3) -> 6 | U14: =+EDATE(U13,-2) -> 2021-12-01
A15: 49_9 | C15: =+IF(D15=11,C14-1,C14) -> 49 | D15: 9 | E15: =+IF(F15=11,E14-1,E14) -> 52 | F15: =+IF(F14=0,11,F14-1) -> 9 | G15: =+G14-2 -> 78 | H15: =+IF(I15=9,H14-1,H14) -> 59 | I15: =+IF(I14=0,9,I14-3) -> 3 | J15: =+EDATE(J14,-2) -> 2021-10-01 | L15: 57_9 | N15: =+IF(O15=11,N14-1,N14) -> 54 | O15: 9 | P15: =+IF(Q15=11,P14-1,P14) -> 57 | Q15: 9 | R15: =+R14-2 -> 78 | S15: =+IF(T15=9,S14-1,S14) -> 64 | T15: =+IF(T14=0,9,T14-3) -> 3 | U15: =+EDATE(U14,-2) -> 2021-10-01
A16: 49_8 | C16: 49 | D16: 8 | E16: 52 | F16: 8 | G16: 76 | H16: 59 | I16: =+IF(I15=0,9,I15-3) -> 0 | J16: =+EDATE(J15,-2) -> 2021-08-01 | L16: 57_8 | N16: 54 | O16: 8 | P16: 57 | Q16: 8 | R16: 76 | S16: 64 | T16: =+IF(T15=0,9,T15-3) -> 0 | U16: =+EDATE(U15,-2) -> 2021-08-01
A17: 49_7 | C17: 49 | D17: 7 | E17: 52 | F17: 7 | G17: 74 | H17: 58 | I17: =+IF(I16=0,9,I16-3) -> 9 | J17: 2021-06-01 | L17: 57_7 | N17: 54 | O17: 7 | P17: 57 | Q17: 7 | R17: 74 | S17: 63 | T17: =+IF(T16=0,9,T16-3) -> 9 | U17: 2021-06-01
A18: 49_6 | C18: 49 | D18: 6 | E18: 52 | F18: 6 | G18: 72 | H18: 58 | I18: 6 | J18: 2021-04-01 | L18: 57_6 | N18: 54 | O18: 6 | P18: 57 | Q18: 6 | R18: 72 | S18: 63 | T18: 6 | U18: 2021-04-01
A19: 49_5 | C19: 49 | D19: 5 | E19: 52 | F19: 5 | G19: 70 | H19: 58 | I19: 3 | J19: 2021-02-01 | L19: 57_5 | N19: 54 | O19: 5 | P19: 57 | Q19: 5 | R19: 70 | S19: 63 | T19: 3 | U19: 2021-02-01
A20: 49_4 | C20: 49 | D20: 4 | E20: 52 | F20: 4 | G20: 68 | H20: 58 | I20: 0 | J20: 2020-12-01 | L20: 57_4 | N20: 54 | O20: 4 | P20: 57 | Q20: 4 | R20: 68 | S20: 63 | T20: 0 | U20: 2020-12-01
A21: 49_3 | C21: 49 | D21: 3 | E21: 52 | F21: 3 | G21: 66 | H21: 57 | I21: 9 | J21: 2020-10-01 | L21: 57_3 | N21: 54 | O21: 3 | P21: 57 | Q21: 3 | R21: 66 | S21: 62 | T21: 9 | U21: 2020-10-01
A22: 49_2 | C22: 49 | D22: 2 | E22: 52 | F22: 2 | G22: 64 | H22: 57 | I22: 6 | J22: 2020-08-01 | L22: 57_2 | N22: 54 | O22: 2 | P22: 57 | Q22: 2 | R22: 64 | S22: 62 | T22: 6 | U22: 2020-08-01
A23: 49_1 | C23: 49 | D23: 1 | E23: 52 | F23: 1 | G23: 62 | H23: 57 | I23: 3 | J23: 2020-06-01 | L23: 57_1 | N23: 54 | O23: 1 | P23: 57 | Q23: 1 | R23: 62 | S23: 62 | T23: 3 | U23: 2020-06-01
A24: 49_0 | C24: 49 | D24: 0 | E24: 52 | F24: 0 | G24: 60 | H24: 57 | I24: 0 | J24: 2020-04-01 | L24: 57_0 | N24: 54 | O24: 0 | P24: 57 | Q24: 0 | R24: 60 | S24: 62 | T24: 0 | U24: 2020-04-01
A25: 48_11 | C25: 48 | D25: =+IF(D24=0,11,D24-1) -> 11 | E25: 51 | F25: 11 | G25: 58 | H25: 56 | I25: 9 | J25: 2020-02-01 | L25: 56_11 | N25: 53 | O25: =+IF(O24=0,11,O24-1) -> 11 | P25: 56 | Q25: 11 | R25: 58 | S25: 61 | T25: 9 | U25: 2020-02-01
A26: 48_10 | C26: 48 | D26: =+IF(D25=0,11,D25-1) -> 10 | E26: 51 | F26: 10 | G26: 56 | H26: 56 | I26: 6 | J26: 2019-12-01 | L26: 56_10 | N26: 53 | O26: =+IF(O25=0,11,O25-1) -> 10 | P26: 56 | Q26: 10 | R26: 56 | S26: 61 | T26: 6 | U26: 2019-12-01
A27: 48_9 | C27: 48 | D27: 9 | E27: 51 | F27: 9 | G27: 54 | H27: 56 | I27: 3 | J27: 2019-10-01 | L27: 56_9 | N27: 53 | O27: 9 | P27: 56 | Q27: 9 | R27: 54 | S27: 61 | T27: 3 | U27: 2019-10-01
A28: 48_8 | C28: 48 | D28: 8 | E28: 51 | F28: 8 | G28: 52 | H28: 56 | I28: 0 | J28: 2019-08-01 | L28: 56_8 | N28: 53 | O28: 8 | P28: 56 | Q28: 8 | R28: 52 | S28: 61 | T28: 0 | U28: 2019-08-01
A29: 48_7 | C29: 48 | D29: 7 | E29: 51 | F29: 7 | G29: 50 | H29: 55 | I29: 9 | J29: 2019-06-01 | L29: 56_7 | N29: 53 | O29: 7 | P29: 56 | Q29: 7 | R29: 50 | S29: 60 | T29: 9 | U29: 2019-06-01
A30: 48_6 | C30: 48 | D30: 6 | E30: 51 | F30: 6 | G30: 48 | H30: 55 | I30: 6 | J30: 2019-04-01 | L30: 56_6 | N30: 53 | O30: 6 | P30: 56 | Q30: 6 | R30: 48 | S30: 60 | T30: 6 | U30: 2019-04-01
A31: 48_5 | C31: 48 | D31: 5 | E31: 51 | F31: 5 | G31: 46 | H31: 55 | I31: 3 | J31: 2019-02-01 | L31: 56_5 | N31: 53 | O31: 5 | P31: 56 | Q31: 5 | R31: 46 | S31: 60 | T31: 3 | U31: 2019-02-01
A32: 48_4 | C32: 48 | D32: 4 | E32: 51 | F32: 4 | G32: 44 | H32: 55 | I32: 0 | J32: 2018-12-01 | L32: 56_4 | N32: 53 | O32: 4 | P32: 56 | Q32: 4 | R32: 44 | S32: 60 | T32: 0 | U32: 2018-12-01
A33: 48_3 | C33: 48 | D33: 3 | E33: 51 | F33: 3 | G33: 42 | H33: 54 | I33: 9 | J33: 2018-10-01 | L33: 56_3 | N33: 53 | O33: 3 | P33: 56 | Q33: 3 | R33: 42 | S33: 59 | T33: 9 | U33: 2018-10-01
A34: 48_2 | C34: 48 | D34: 2 | E34: 51 | F34: 2 | G34: 40 | H34: 54 | I34: 6 | J34: 2018-08-01 | L34: 56_2 | N34: 53 | O34: 2 | P34: 56 | Q34: 2 | R34: 40 | S34: 59 | T34: 6 | U34: 2018-08-01
A35: 48_1 | C35: 48 | D35: 1 | E35: 51 | F35: 1 | G35: 38 | H35: 54 | I35: 3 | J35: 2018-06-01 | L35: 56_1 | N35: 53 | O35: 1 | P35: 56 | Q35: 1 | R35: 38 | S35: 59 | T35: 3 | U35: 2018-06-01
A36: 48_0 | C36: 48 | D36: 0 | E36: 51 | F36: 0 | G36: 36 | H36: 54 | I36: 0 | J36: 2018-04-01 | L36: 56_0 | N36: 53 | O36: 0 | P36: 56 | Q36: 0 | R36: 36 | S36: 59 | T36: 0 | U36: 2018-04-01
A37: 47_11 | C37: 47 | D37: 11 | E37: 50 | F37: 11 | G37: 34 | H37: 53 | I37: 9 | J37: 2018-02-01 | L37: 55_11 | N37: 52 | O37: 11 | P37: 55 | Q37: 11 | R37: 34 | S37: 58 | T37: 9 | U37: 2018-02-01
A38: 47_10 | C38: 47 | D38: 10 | E38: 50 | F38: 10 | G38: 32 | H38: 53 | I38: 6 | J38: 2017-12-01 | L38: 55_10 | N38: 52 | O38: 10 | P38: 55 | Q38: 10 | R38: 32 | S38: 58 | T38: 6 | U38: 2017-12-01
A39: 47_9 | C39: 47 | D39: 9 | E39: 50 | F39: 9 | G39: 30 | H39: 53 | I39: 3 | J39: 2017-10-01 | L39: 55_9 | N39: 52 | O39: 9 | P39: 55 | Q39: 9 | R39: 30 | S39: 58 | T39: 3 | U39: 2017-10-01
A40: 47_8 | C40: 47 | D40: 8 | E40: 50 | F40: 8 | G40: 28 | H40: 53 | I40: 0 | J40: 2017-08-01 | L40: 55_8 | N40: 52 | O40: 8 | P40: 55 | Q40: 8 | R40: 28 | S40: 58 | T40: 0 | U40: 2017-08-01
A41: 47_7 | C41: 47 | D41: 7 | E41: 50 | F41: 7 | G41: 26 | H41: 52 | I41: 9 | J41: 2017-06-01 | L41: 55_7 | N41: 52 | O41: 7 | P41: 55 | Q41: 7 | R41: 26 | S41: 57 | T41: 9 | U41: 2017-06-01
A42: 47_6 | C42: 47 | D42: 6 | E42: 50 | F42: 6 | G42: 24 | H42: 52 | I42: 6 | J42: 2017-04-01 | L42: 55_6 | N42: 52 | O42: 6 | P42: 55 | Q42: 6 | R42: 24 | S42: 57 | T42: 6 | U42: 2017-04-01
A43: 47_5 | C43: 47 | D43: 5 | E43: 50 | F43: 5 | G43: 22 | H43: 52 | I43: 3 | J43: 2017-02-01 | L43: 55_5 | N43: 52 | O43: 5 | P43: 55 | Q43: 5 | R43: 22 | S43: 57 | T43: 3 | U43: 2017-02-01
A44: 47_4 | C44: 47 | D44: 4 | E44: 50 | F44: 4 | G44: 20 | H44: 52 | I44: 0 | J44: 2016-12-01 | L44: 55_4 | N44: 52 | O44: 4 | P44: 55 | Q44: 4 | R44: 20 | S44: 57 | T44: 0 | U44: 2016-12-01
A45: 47_3 | C45: 47 | D45: 3 | E45: 50 | F45: 3 | G45: 18 | H45: 51 | I45: 9 | J45: 2016-10-01 | L45: 55_3 | N45: 52 | O45: 3 | P45: 55 | Q45: 3 | R45: 18 | S45: 56 | T45: 9 | U45: 2016-10-01
A46: 47_2 | C46: 47 | D46: 2 | E46: 50 | F46: 2 | G46: 16 | H46: 51 | I46: 6 | J46: 2016-08-01 | L46: 55_2 | N46: 52 | O46: 2 | P46: 55 | Q46: 2 | R46: 16 | S46: 56 | T46: 6 | U46: 2016-08-01
A47: 47_1 | C47: 47 | D47: 1 | E47: 50 | F47: 1 | G47: 14 | H47: 51 | I47: 3 | J47: 2016-06-01 | L47: 55_1 | N47: 52 | O47: 1 | P47: 55 | Q47: 1 | R47: 14 | S47: 56 | T47: 3 | U47: 2016-06-01
A48: 47_0 | C48: 47 | D48: 0 | E48: 50 | F48: 0 | G48: 12 | H48: 51 | I48: 0 | J48: 2016-04-01 | L48: 55_0 | N48: 52 | O48: 0 | P48: 55 | Q48: 0 | R48: 12 | S48: 56 | T48: 0 | U48: 2016-04-01
A49: 46_11 | C49: 46 | D49: 11 | E49: 49 | F49: 11 | G49: 10 | H49: 50 | I49: 9 | J49: 2016-02-01 | L49: 54_11 | N49: 51 | O49: 11 | P49: 54 | Q49: 11 | R49: 10 | S49: 55 | T49: 9 | U49: 2016-02-01
A50: 46_10 | C50: 46 | D50: 10 | E50: 49 | F50: 10 | G50: 8 | H50: 50 | I50: 6 | J50: 2015-12-01 | L50: 54_10 | N50: 51 | O50: 10 | P50: 54 | Q50: 10 | R50: 8 | S50: 55 | T50: 6 | U50: 2015-12-01
A51: 46_9 | C51: 46 | D51: 9 | E51: 49 | F51: 9 | G51: 6 | H51: 50 | I51: 3 | J51: 2015-10-01 | L51: 54_9 | N51: 51 | O51: 9 | P51: 54 | Q51: 9 | R51: 6 | S51: 55 | T51: 3 | U51: 2015-10-01
A52: 46_8 | C52: 46 | D52: 8 | E52: 49 | F52: 8 | G52: 4 | H52: 50 | I52: 0 | J52: 2015-08-01 | L52: 54_8 | N52: 51 | O52: 8 | P52: 54 | Q52: 8 | R52: 4 | S52: 55 | T52: 0 | U52: 2015-08-01
A53: 46_7 | C53: 46 | D53: 7 | E53: 49 | F53: 7 | G53: 2 | H53: 49 | I53: 9 | J53: 2015-06-01 | L53: 54_7 | N53: 51 | O53: 7 | P53: 54 | Q53: 7 | R53: 2 | S53: 54 | T53: 9 | U53: 2015-06-01
A54: 46_6 | C54: =+IF(D54=11,C53-1,C53) -> 46 | D54: =+IF(D53=0,11,D53-1) -> 6 | E54: 49 | F54: 6 | G54: 0 | H54: 49 | I54: 6 | J54: 2015-04-01 | L54: =+P54&"_"&Q54 -> 54_6 | N54: 51 | O54: 6 | P54: 54 | Q54: 6 | R54: 0 | S54: 54 | T54: 6 | U54: 2015-04-01

Sheet Commutation Factors (hidden)
A1: Government Actuary's Department
A2: =IF(title="> Enter workbook title here","Enter workbook title in Cover sheet",title) -> Northern Ireland Civil Service Pension Scheme Calculator
A3: Commutation
A4: =CELL("filename",A1) -> C:\Users\dof-aytond\Desktop\[NICS - BenProjectCalculator v0.21.xlsm]Commutation Factors
B7: Classic Scheme Commutation Factor | F7: 12
B8: Classic Plus Scheme Commutation Factor | F8: 12
B9: Premium Scheme Commutation Factor | F9: 12
B10: nuvos Scheme Commutation Factor | F10: 12
B11: alpha Scheme Commutation Factor | F11: 12
B12: Classic Scheme Lump Sum Factor | F12: 3
B13: Classic Plus Scheme Lump Sum Factor | F13: 3 | G13: (for service up to 30 Sept 2002)
B14: Premium Scheme Lump Sum Factor | F14: 0
B15: nuvos Scheme Lump Sum Factor | F15: 0
B16: alpha Scheme Lump Sum Factor | F16: 0
B17: Classic Scheme Max Lump Sum Factor | F17: =33/14 -> 2.357142857 | G17: (max additional comm i.e. on top of auto lump sum) | H17: source: | I17: https://www.civilservicepensionscheme.org.uk/employers/employer-pension-notices/epn177/
B18: Premium Scheme Lump Sum Factor | F18: =30/7 -> 4.285714286 | G18: (max comm) | H18: source: | I18: https://www.civilservicepensionscheme.org.uk/employers/employer-pension-notices/epn177/
B19: nuvos Scheme Lump Sum Factor | F19: =30/7 -> 4.285714286 | G19: (max comm) | H19: source: | I19: https://www.civilservicepensionscheme.org.uk/media/29994/nsp_np.pdf
B20: alpha Scheme Lump Sum Factor | F20: =30/7 -> 4.285714286 | G20: (max comm) | H20: source: | I20: https://www.civilservicepensionscheme.org.uk/members/alpha-scheme-guide/
B21: Classic Plus Scheme Lump Sum Factor | F21: =33/14 -> 2.357142857 | G21: (classic rules apply to pre Oct 2002 service, premium rules apply from Oct 2002) | H21: source: | I21: https://www.civilservicepensionscheme.org.uk/media/181386/ycppbe_apr16v1.pdf
B24: Scheme | C24: Commutation factor | D24: Lump sum factor | E24: Max lump sum factor
B25: classic | C25: =F7 -> 12 | D25: =F12 -> 3 | E25: =F17 -> 2.357142857
B26: classic plus | C26: =F8 -> 12 | D26: =F13 -> 3 | E26: =F21 -> 2.357142857 | G26: (classic rules apply to pre Oct 2002 service, premium rules apply from Oct 2002)
B27: premium | C27: =F9 -> 12 | D27: =F14 -> 0 | E27: =F18 -> 4.285714286
B28: nuvos | C28: =F10 -> 12 | D28: =F15 -> 0 | E28: =F19 -> 4.285714286
B29: alpha | C29: =F11 -> 12 | D29: =F16 -> 0 | E29: =F20 -> 4.285714286

Sheet LRF (hidden)
A1: Government Actuary's Department
A2: =IF(title="> Enter workbook title here","Enter workbook title in Cover sheet",title) -> Northern Ireland Civil Service Pension Scheme Calculator
A3: LRF
A4: =CELL("filename",A1) -> C:\Users\dof-aytond\Desktop\[NICS - BenProjectCalculator v0.21.xlsm]LRF
B6: Source:
B7: \\Gad-ast\ast\PSPS\NICSPS\_tools\Received from PSPS\CS NI Consolidated Factors 2023-04.xlsm
B10: TABLE LRF01 | F10: Not updated as no longer used - Nuvos calculations use Alpha factor table as Nuvos ERFs/LRFs are now aligned with Alpha
B11: Section: nuvos
B12: Table Reference: x-414
B13: Age addition factors in Nuvos
B14: P1AANUV
B15: Age in years and complete months (ignoring part months)
B17: Age Last | C17: Appropriate percentage | I17: Age last
B18: 65 to 66 | C18: 0.06 | I18: 65 | J18: =C18 -> 0.06
B19: 67 to 70 | C19: 0.07 | I19: =I18+1 -> 66 | J19: =C18 -> 0.06
B20: 71 and over | C20: 0.075 | I20: =I19+1 -> 67 | J20: =C19 -> 0.07
I21: 68 | J21: =C19 -> 0.07
I22: 69 | J22: =C19 -> 0.07
B23: TABLE LRF02 | I23: 70 | J23: =C19 -> 0.07
B24: Section: nuvos | I24: 71 | J24: =$C$20 -> 0.075
B25: Table Reference: x-415 | I25: 72 | J25: =$C$20 -> 0.075
B26: Late Payment Supplement factors in Nuvos | I26: 73 | J26: 0.075
B27: P1LPSNUV | I27: 74 | J27: 0.075
B28: Age in years and complete months (ignoring part months) | I28: 75 | J28: 0.075
I29: 76 | J29: 0.075
B30: Age Last | C30: Appropriate percentage | I30: 77 | J30: 0.075
B31: 65 to 69 | C31: 0.06 | I31: 78 | J31: 0.075
B32: 70 to 75 | C32: 0.07 | I32: =I31+1 -> 79 | J32: 0.075
B33: 76 and over | C33: 0.0775 | I33: 80 | J33: 0.075
B36: TABLE LRF03
B37: Section: alpha
B38: Table Reference: x-416
B39: Age addition factors across various NPA/EPAs - for use with all descriptions of pension except added (self only) pension
B40: P2AA1
B41: Age when assessing (assumed) age addition (complete years and months, ignoring part months)
B43: Months/Age | C43: 65 | D43: 66 | E43: 67 | F43: 68 | G43: 69 | H43: 70 | I43: 71 | J43: 72 | K43: 73 | L43: 74 | M43: 75 | N43: 76 | O43: 77 | P43: 78 | Q43: 79 | R43: 80
B44: 0 | C44: 1 | D44: 1.055 | E44: 1.119 | F44: 1.189 | G44: 1.266 | H44: 1.349 | I44: 1.444 | J44: 1.549 | K44: 1.665 | L44: 1.794 | M44: 1.929 | N44: 2.086 | O44: 2.261 | P44: 2.455 | Q44: 2.67 | R44: 2.897
B45: 1 | C45: 1.005 | D45: 1.061 | E45: 1.125 | F45: 1.195 | G45: 1.273 | H45: 1.357 | I45: 1.453 | J45: 1.559 | K45: 1.676 | L45: 1.805 | M45: 1.942 | N45: 2.1 | O45: 2.277 | P45: 2.473 | Q45: 2.689
B46: 2 | C46: 1.009 | D46: 1.066 | E46: 1.131 | F46: 1.202 | G46: 1.28 | H46: 1.365 | I46: 1.462 | J46: 1.568 | K46: 1.687 | L46: 1.816 | M46: 1.955 | N46: 2.115 | O46: 2.293 | P46: 2.491 | Q46: 2.708
B47: 3 | C47: 1.014 | D47: 1.071 | E47: 1.136 | F47: 1.208 | G47: 1.287 | H47: 1.373 | I47: 1.47 | J47: 1.578 | K47: 1.697 | L47: 1.827 | M47: 1.968 | N47: 2.129 | O47: 2.309 | P47: 2.509 | Q47: 2.727
B48: 4 | C48: 1.018 | D48: 1.076 | E48: 1.142 | F48: 1.215 | G48: 1.294 | H48: 1.381 | I48: 1.479 | J48: 1.588 | K48: 1.708 | L48: 1.839 | M48: 1.981 | N48: 2.144 | O48: 2.325 | P48: 2.527 | Q48: 2.746
B49: 5 | C49: 1.023 | D49: 1.082 | E49: 1.148 | F49: 1.221 | G49: 1.301 | H49: 1.389 | I49: 1.488 | J49: 1.597 | K49: 1.719 | L49: 1.85 | M49: 1.994 | N49: 2.159 | O49: 2.342 | P49: 2.545 | Q49: 2.765
B50: 6 | C50: 1.028 | D50: 1.087 | E50: 1.154 | F50: 1.228 | G50: 1.308 | H50: 1.397 | I50: 1.497 | J50: 1.607 | K50: 1.729 | L50: 1.861 | M50: 2.007 | N50: 2.173 | O50: 2.358 | P50: 2.563 | Q50: 2.784
B51: 7 | C51: 1.032 | D51: 1.092 | E51: 1.16 | F51: 1.234 | G51: 1.315 | H51: 1.405 | I51: 1.505 | J51: 1.617 | K51: 1.74 | L51: 1.872 | M51: 2.02 | N51: 2.188 | O51: 2.374 | P51: 2.581 | Q51: 2.803
B52: 8 | C52: 1.037 | D52: 1.098 | E52: 1.166 | F52: 1.241 | G52: 1.322 | H52: 1.413 | I52: 1.514 | J52: 1.626 | K52: 1.751 | L52: 1.884 | M52: 2.033 | N52: 2.202 | O52: 2.39 | P52: 2.599 | Q52: 2.822
B53: 9 | C53: 1.041 | D53: 1.103 | E53: 1.171 | F53: 1.247 | G53: 1.329 | H53: 1.421 | I53: 1.523 | J53: 1.636 | K53: 1.761 | L53: 1.895 | M53: 2.046 | N53: 2.217 | O53: 2.406 | P53: 2.617 | Q53: 2.84
B54: 10 | C54: 1.046 | D54: 1.108 | E54: 1.177 | F54: 1.254 | G54: 1.336 | H54: 1.428 | I54: 1.532 | J54: 1.646 | K54: 1.772 | L54: 1.906 | M54: 2.059 | N54: 2.231 | O54: 2.423 | P54: 2.635 | Q54: 2.859
B55: 11 | C55: 1.051 | D55: 1.114 | E55: 1.183 | F55: 1.26 | G55: 1.342 | H55: 1.436 | I55: 1.54 | J55: 1.655 | K55: 1.783 | L55: 1.917 | M55: 2.073 | N55: 2.246 | O55: 2.439 | P55: 2.652 | Q55: 2.878
B58: TABLE LRF04
B59: Section: alpha
B60: Table Reference: x-417
B61: Age addition factors across various NPA/EPAs - for use with added (self only) pension
B62: P2AA2
B63: Age when assessing (assumed) age addition (complete years and months, ignoring part months)
B65: Months/Age | C65: 65 | D65: 66 | E65: 67 | F65: 68 | G65: 69 | H65: 70 | I65: 71 | J65: 72 | K65: 73 | L65: 74 | M65: 75 | N65: 76 | O65: 77 | P65: 78 | Q65: 79 | R65: 80
B66: 0 | C66: 1 | D66: 1.063 | E66: 1.137 | F66: 1.219 | G66: 1.31 | H66: 1.412 | I66: 1.525 | J66: 1.651 | K66: 1.792 | L66: 1.95 | M66: 2.127 | N66: 2.325 | O66: 2.549 | P66: 2.8 | Q66: 3.083 | R66: 3.401
B67: 1 | C67: 1.005 | D67: 1.07 | E67: 1.144 | F67: 1.227 | G67: 1.319 | H67: 1.421 | I67: 1.535 | J67: 1.663 | K67: 1.805 | L67: 1.964 | M67: 2.143 | N67: 2.344 | O67: 2.57 | P67: 2.823 | Q67: 3.109
B68: 2 | C68: 1.011 | D68: 1.076 | E68: 1.151 | F68: 1.234 | G68: 1.327 | H68: 1.43 | I68: 1.546 | J68: 1.674 | K68: 1.818 | L68: 1.979 | M68: 2.16 | N68: 2.363 | O68: 2.59 | P68: 2.847 | Q68: 3.136
B69: 3 | C69: 1.016 | D69: 1.082 | E69: 1.158 | F69: 1.242 | G69: 1.336 | H69: 1.44 | I69: 1.556 | J69: 1.686 | K69: 1.831 | L69: 1.994 | M69: 2.176 | N69: 2.381 | O69: 2.611 | P69: 2.871 | Q69: 3.162
B70: 4 | C70: 1.021 | D70: 1.088 | E70: 1.165 | F70: 1.25 | G70: 1.344 | H70: 1.449 | I70: 1.567 | J70: 1.698 | K70: 1.844 | L70: 2.009 | M70: 2.193 | N70: 2.4 | O70: 2.632 | P70: 2.894 | Q70: 3.189
B71: 5 | C71: 1.026 | D71: 1.094 | E71: 1.172 | F71: 1.257 | G71: 1.352 | H71: 1.459 | I71: 1.577 | J71: 1.71 | K71: 1.858 | L71: 2.023 | M71: 2.209 | N71: 2.418 | O71: 2.653 | P71: 2.918 | Q71: 3.215
B72: 6 | C72: 1.032 | D72: 1.1 | E72: 1.178 | F72: 1.265 | G72: 1.361 | H72: 1.468 | I72: 1.588 | J72: 1.721 | K72: 1.871 | L72: 2.038 | M72: 2.226 | N72: 2.437 | O72: 2.674 | P72: 2.941 | Q72: 3.242
B73: 7 | C73: 1.037 | D73: 1.107 | E73: 1.185 | F73: 1.272 | G73: 1.369 | H73: 1.478 | I73: 1.598 | J73: 1.733 | K73: 1.884 | L73: 2.053 | M73: 2.243 | N73: 2.456 | O73: 2.695 | P73: 2.965 | Q73: 3.268
B74: 8 | C74: 1.042 | D74: 1.113 | E74: 1.192 | F74: 1.28 | G74: 1.378 | H74: 1.487 | I74: 1.609 | J74: 1.745 | K74: 1.897 | L74: 2.068 | M74: 2.259 | N74: 2.474 | O74: 2.716 | P74: 2.988 | Q74: 3.295
B75: 9 | C75: 1.048 | D75: 1.119 | E75: 1.199 | F75: 1.287 | G75: 1.386 | H75: 1.496 | I75: 1.619 | J75: 1.757 | K75: 1.91 | L75: 2.082 | M75: 2.276 | N75: 2.493 | O75: 2.737 | P75: 3.012 | Q75: 3.321
B76: 10 | C76: 1.053 | D76: 1.125 | E76: 1.206 | F76: 1.295 | G76: 1.395 | H76: 1.506 | I76: 1.63 | J76: 1.768 | K76: 1.923 | L76: 2.097 | M76: 2.292 | N76: 2.511 | O76: 2.758 | P76: 3.036 | Q76: 3.348
B77: 11 | C77: 1.058 | D77: 1.131 | E77: 1.212 | F77: 1.303 | G77: 1.403 | H77: 1.515 | I77: 1.64 | J77: 1.78 | K77: 1.937 | L77: 2.112 | M77: 2.309 | N77: 2.53 | O77: 2.779 | P77: 3.059 | Q77: 3.374

Sheet ERF (hidden)
A1: Government Actuary's Department
A2: =IF(title="> Enter workbook title here","Enter workbook title in Cover sheet",title) -> Northern Ireland Civil Service Pension Scheme Calculator
A3: ERF
A4: =CELL("filename",A1) -> C:\Users\dof-aytond\Desktop\[NICS - BenProjectCalculator v0.21.xlsm]ERF
B6: Source:
B7: \\Gad-ast\ast\PSPS\NICSPS\_tools\Received from PSPS\CS NI Consolidated Factors 2023-04.xlsm
B10: TABLE ERF01
B11: Section: alpha
B12: Table Reference: x-401
B13: Early payment reduction factors for NPA/EPA 65
B14: P2ER65
B15: Age at early retirement (complete years and months, ignoring part months)
B17: Months/Age | C17: 54 | D17: 55 | E17: 56 | F17: 57 | G17: 58 | H17: 59 | I17: 60 | J17: 61 | K17: 62 | L17: 63 | M17: 64 | N17: 65
B18: 0 | C18: 0.602 | D18: 0.626 | E18: 0.652 | F18: 0.68 | G18: 0.71 | H18: 0.743 | I18: 0.778 | J18: 0.815 | K18: 0.856 | L18: 0.901 | M18: 0.949 | N18: 1
B19: 1 | C19: 0.604 | D19: 0.628 | E19: 0.655 | F19: 0.683 | G19: 0.713 | H19: 0.746 | I19: 0.781 | J19: 0.819 | K19: 0.86 | L19: 0.905 | M19: 0.954 | N19: 1
B20: 2 | C20: 0.606 | D20: 0.631 | E20: 0.657 | F20: 0.685 | G20: 0.716 | H20: 0.749 | I20: 0.784 | J20: 0.822 | K20: 0.864 | L20: 0.909 | M20: 0.958 | N20: 1
B21: 3 | C21: 0.608 | D21: 0.633 | E21: 0.659 | F21: 0.688 | G21: 0.718 | H21: 0.751 | I21: 0.787 | J21: 0.826 | K21: 0.867 | L21: 0.913 | M21: 0.963 | N21: 1
B22: 4 | C22: 0.61 | D22: 0.635 | E22: 0.662 | F22: 0.69 | G22: 0.721 | H22: 0.754 | I22: 0.79 | J22: 0.829 | K22: 0.871 | L22: 0.917 | M22: 0.967 | N22: 1
B23: 5 | C23: 0.612 | D23: 0.637 | E23: 0.664 | F23: 0.693 | G23: 0.724 | H23: 0.757 | I23: 0.793 | J23: 0.832 | K23: 0.875 | L23: 0.921 | M23: 0.971 | N23: 1
B24: 6 | C24: 0.614 | D24: 0.639 | E24: 0.666 | F24: 0.695 | G24: 0.727 | H24: 0.76 | I24: 0.796 | J24: 0.836 | K24: 0.879 | L24: 0.925 | M24: 0.976 | N24: 1
B25: 7 | C25: 0.616 | D25: 0.641 | E25: 0.669 | F25: 0.698 | G25: 0.729 | H25: 0.763 | I25: 0.8 | J25: 0.839 | K25: 0.882 | L25: 0.929 | M25: 0.98 | N25: 1
B26: 8 | C26: 0.618 | D26: 0.644 | E26: 0.671 | F26: 0.7 | G26: 0.732 | H26: 0.766 | I26: 0.803 | J26: 0.843 | K26: 0.886 | L26: 0.933 | M26: 0.985 | N26: 1
B27: 9 | C27: 0.62 | D27: 0.646 | E27: 0.673 | F27: 0.703 | G27: 0.735 | H27: 0.769 | I27: 0.806 | J27: 0.846 | K27: 0.89 | L27: 0.937 | M27: 0.989 | N27: 1
B28: 10 | C28: 0.622 | D28: 0.648 | E28: 0.676 | F28: 0.705 | G28: 0.737 | H28: 0.772 | I28: 0.809 | J28: 0.849 | K28: 0.893 | L28: 0.941 | M28: 0.993 | N28: 1
B29: 11 | C29: 0.624 | D29: 0.65 | E29: 0.678 | F29: 0.708 | G29: 0.74 | H29: 0.775 | I29: 0.812 | J29: 0.853 | K29: 0.897 | L29: 0.945 | M29: 0.998 | N29: 1
B32: TABLE ERF02
B33: Section: alpha
B34: Table Reference: x-402
B35: Early payment reduction factors for NPA/EPA 66
B36: P2ER66
B37: Age at early retirement (complete years and months, ignoring part months)
B39: Months/Age | C39: 54 | D39: 55 | E39: 56 | F39: 57 | G39: 58 | H39: 59 | I39: 60 | J39: 61 | K39: 62 | L39: 63 | M39: 64 | N39: 65 | O39: 66
B40: 0 | C40: 0.57 | D40: 0.593 | E40: 0.618 | F40: 0.644 | G40: 0.672 | H40: 0.703 | I40: 0.736 | J40: 0.771 | K40: 0.81 | L40: 0.852 | M40: 0.898 | N40: 0.948 | O40: 1
B41: 1 | C41: 0.572 | D41: 0.595 | E41: 0.62 | F41: 0.646 | G41: 0.675 | H41: 0.706 | I41: 0.739 | J41: 0.775 | K41: 0.814 | L41: 0.856 | M41: 0.902 | N41: 0.952 | O41: 1
B42: 2 | C42: 0.574 | D42: 0.597 | E42: 0.622 | F42: 0.649 | G42: 0.677 | H42: 0.708 | I42: 0.742 | J42: 0.778 | K42: 0.817 | L42: 0.86 | M42: 0.906 | N42: 0.957 | O42: 1
B43: 3 | C43: 0.576 | D43: 0.599 | E43: 0.624 | F43: 0.651 | G43: 0.68 | H43: 0.711 | I43: 0.745 | J43: 0.781 | K43: 0.82 | L43: 0.863 | M43: 0.91 | N43: 0.961 | O43: 1
B44: 4 | C44: 0.578 | D44: 0.601 | E44: 0.626 | F44: 0.653 | G44: 0.683 | H44: 0.714 | I44: 0.748 | J44: 0.784 | K44: 0.824 | L44: 0.867 | M44: 0.914 | N44: 0.966 | O44: 1
B45: 5 | C45: 0.58 | D45: 0.603 | E45: 0.629 | F45: 0.656 | G45: 0.685 | H45: 0.717 | I45: 0.751 | J45: 0.787 | K45: 0.827 | L45: 0.871 | M45: 0.918 | N45: 0.97 | O45: 1
B46: 6 | C46: 0.582 | D46: 0.605 | E46: 0.631 | F46: 0.658 | G46: 0.688 | H46: 0.719 | I46: 0.754 | J46: 0.791 | K46: 0.831 | L46: 0.875 | M46: 0.923 | N46: 0.975 | O46: 1
B47: 7 | C47: 0.583 | D47: 0.607 | E47: 0.633 | F47: 0.661 | G47: 0.69 | H47: 0.722 | I47: 0.757 | J47: 0.794 | K47: 0.834 | L47: 0.879 | M47: 0.927 | N47: 0.98 | O47: 1
B48: 8 | C48: 0.585 | D48: 0.609 | E48: 0.635 | F48: 0.663 | G48: 0.693 | H48: 0.725 | I48: 0.759 | J48: 0.797 | K48: 0.838 | L48: 0.882 | M48: 0.931 | N48: 0.984 | O48: 1
B49: 9 | C49: 0.587 | D49: 0.611 | E49: 0.637 | F49: 0.665 | G49: 0.695 | H49: 0.728 | I49: 0.762 | J49: 0.8 | K49: 0.841 | L49: 0.886 | M49: 0.935 | N49: 0.989 | O49: 1
B50: 10 | C50: 0.589 | D50: 0.613 | E50: 0.64 | F50: 0.668 | G50: 0.698 | H50: 0.73 | I50: 0.765 | J50: 0.803 | K50: 0.845 | L50: 0.89 | M50: 0.939 | N50: 0.993 | O50: 1
B51: 11 | C51: 0.591 | D51: 0.616 | E51: 0.642 | F51: 0.67 | G51: 0.7 | H51: 0.733 | I51: 0.768 | J51: 0.807 | K51: 0.848 | L51: 0.894 | M51: 0.943 | N51: 0.998 | O51: 1
B54: TABLE ERF03
B55: Section: alpha
B56: Table Reference: x-403
B57: Early payment reduction factors for NPA/EPA 67
B58: P2ER67
B59: Age at early retirement (complete years and months, ignoring part months)
B61: Months/Age | C61: 54 | D61: 55 | E61: 56 | F61: 57 | G61: 58 | H61: 59 | I61: 60 | J61: 61 | K61: 62 | L61: 63 | M61: 64 | N61: 65 | O61: 66 | P61: 67
B62: 0 | C62: 0.539 | D62: 0.561 | E62: 0.584 | F62: 0.609 | G62: 0.635 | H62: 0.664 | I62: 0.695 | J62: 0.729 | K62: 0.765 | L62: 0.804 | M62: 0.847 | N62: 0.894 | O62: 0.946 | P62: 1
B63: 1 | C63: 0.541 | D63: 0.563 | E63: 0.586 | F63: 0.611 | G63: 0.638 | H63: 0.667 | I63: 0.698 | J63: 0.732 | K63: 0.768 | L63: 0.808 | M63: 0.851 | N63: 0.899 | O63: 0.951 | P63: 1
B64: 2 | C64: 0.543 | D64: 0.564 | E64: 0.588 | F64: 0.613 | G64: 0.64 | H64: 0.669 | I64: 0.701 | J64: 0.735 | K64: 0.771 | L64: 0.811 | M64: 0.855 | N64: 0.903 | O64: 0.955 | P64: 1
B65: 3 | C65: 0.544 | D65: 0.566 | E65: 0.59 | F65: 0.615 | G65: 0.642 | H65: 0.672 | I65: 0.703 | J65: 0.738 | K65: 0.775 | L65: 0.815 | M65: 0.859 | N65: 0.907 | O65: 0.96 | P65: 1
B66: 4 | C66: 0.546 | D66: 0.568 | E66: 0.592 | F66: 0.618 | G66: 0.645 | H66: 0.674 | I66: 0.706 | J66: 0.741 | K66: 0.778 | L66: 0.819 | M66: 0.863 | N66: 0.911 | O66: 0.965 | P66: 1
B67: 5 | C67: 0.548 | D67: 0.57 | E67: 0.594 | F67: 0.62 | G67: 0.647 | H67: 0.677 | I67: 0.709 | J67: 0.744 | K67: 0.781 | L67: 0.822 | M67: 0.867 | N67: 0.916 | O67: 0.969 | P67: 1
B68: 6 | C68: 0.55 | D68: 0.572 | E68: 0.596 | F68: 0.622 | G68: 0.65 | H68: 0.679 | I68: 0.712 | J68: 0.747 | K68: 0.784 | L68: 0.826 | M68: 0.871 | N68: 0.92 | O68: 0.974 | P68: 1
B69: 7 | C69: 0.552 | D69: 0.574 | E69: 0.598 | F69: 0.624 | G69: 0.652 | H69: 0.682 | I69: 0.715 | J69: 0.75 | K69: 0.788 | L69: 0.829 | M69: 0.875 | N69: 0.924 | O69: 0.979 | P69: 1
B70: 8 | C70: 0.553 | D70: 0.576 | E70: 0.6 | F70: 0.626 | G70: 0.654 | H70: 0.685 | I70: 0.717 | J70: 0.753 | K70: 0.791 | L70: 0.833 | M70: 0.879 | N70: 0.929 | O70: 0.984 | P70: 1
B71: 9 | C71: 0.555 | D71: 0.578 | E71: 0.602 | F71: 0.629 | G71: 0.657 | H71: 0.687 | I71: 0.72 | J71: 0.756 | K71: 0.794 | L71: 0.836 | M71: 0.882 | N71: 0.933 | O71: 0.988 | P71: 1
B72: 10 | C72: 0.557 | D72: 0.58 | E72: 0.604 | F72: 0.631 | G72: 0.659 | H72: 0.69 | I72: 0.723 | J72: 0.759 | K72: 0.798 | L72: 0.84 | M72: 0.886 | N72: 0.937 | O72: 0.993 | P72: 1
B73: 11 | C73: 0.559 | D73: 0.582 | E73: 0.607 | F73: 0.633 | G73: 0.662 | H73: 0.692 | I73: 0.726 | J73: 0.762 | K73: 0.801 | L73: 0.844 | M73: 0.89 | N73: 0.941 | O73: 0.998 | P73: 1
B76: TABLE ERF04
B77: Section: alpha
B78: Table Reference: x-404
B79: Early payment reduction factors for NPA/EPA 68
B80: P2ER68
B81: Age at early retirement (complete years and months, ignoring part months)
B83: Months/Age | C83: 54 | D83: 55 | E83: 56 | F83: 57 | G83: 58 | H83: 59 | I83: 60 | J83: 61 | K83: 62 | L83: 63 | M83: 64 | N83: 65 | O83: 66 | P83: 67 | Q83: 68
B84: 0 | C84: 0.509 | D84: 0.529 | E84: 0.551 | F84: 0.574 | G84: 0.599 | H84: 0.626 | I84: 0.655 | J84: 0.687 | K84: 0.721 | L84: 0.758 | M84: 0.798 | N84: 0.842 | O84: 0.891 | P84: 0.944 | Q84: 1
B85: 1 | C85: 0.511 | D85: 0.531 | E85: 0.553 | F85: 0.576 | G85: 0.601 | H85: 0.629 | I85: 0.658 | J85: 0.69 | K85: 0.724 | L85: 0.761 | M85: 0.802 | N85: 0.846 | O85: 0.895 | P85: 0.949 | Q85: 1
B86: 2 | C86: 0.512 | D86: 0.533 | E86: 0.555 | F86: 0.578 | G86: 0.604 | H86: 0.631 | I86: 0.66 | J86: 0.692 | K86: 0.727 | L86: 0.765 | M86: 0.806 | N86: 0.85 | O86: 0.9 | P86: 0.954 | Q86: 1
B87: 3 | C87: 0.514 | D87: 0.534 | E87: 0.557 | F87: 0.58 | G87: 0.606 | H87: 0.633 | I87: 0.663 | J87: 0.695 | K87: 0.73 | L87: 0.768 | M87: 0.809 | N87: 0.854 | O87: 0.904 | P87: 0.959 | Q87: 1
B88: 4 | C88: 0.516 | D88: 0.536 | E88: 0.559 | F88: 0.582 | G88: 0.608 | H88: 0.636 | I88: 0.666 | J88: 0.698 | K88: 0.733 | L88: 0.771 | M88: 0.813 | N88: 0.858 | O88: 0.908 | P88: 0.963 | Q88: 1
B89: 5 | C89: 0.517 | D89: 0.538 | E89: 0.561 | F89: 0.585 | G89: 0.61 | H89: 0.638 | I89: 0.668 | J89: 0.701 | K89: 0.736 | L89: 0.775 | M89: 0.817 | N89: 0.862 | O89: 0.913 | P89: 0.968 | Q89: 1
B90: 6 | C90: 0.519 | D90: 0.54 | E90: 0.562 | F90: 0.587 | G90: 0.613 | H90: 0.641 | I90: 0.671 | J90: 0.704 | K90: 0.739 | L90: 0.778 | M90: 0.82 | N90: 0.866 | O90: 0.917 | P90: 0.973 | Q90: 1
B91: 7 | C91: 0.521 | D91: 0.542 | E91: 0.564 | F91: 0.589 | G91: 0.615 | H91: 0.643 | I91: 0.674 | J91: 0.707 | K91: 0.742 | L91: 0.781 | M91: 0.824 | N91: 0.87 | O91: 0.922 | P91: 0.978 | Q91: 1
B92: 8 | C92: 0.522 | D92: 0.544 | E92: 0.566 | F92: 0.591 | G92: 0.617 | H92: 0.646 | I92: 0.676 | J92: 0.709 | K92: 0.745 | L92: 0.785 | M92: 0.827 | N92: 0.874 | O92: 0.926 | P92: 0.983 | Q92: 1
B93: 9 | C93: 0.524 | D93: 0.545 | E93: 0.568 | F93: 0.593 | G93: 0.619 | H93: 0.648 | I93: 0.679 | J93: 0.712 | K93: 0.748 | L93: 0.788 | M93: 0.831 | N93: 0.878 | O93: 0.93 | P93: 0.988 | Q93: 1
B94: 10 | C94: 0.526 | D94: 0.547 | E94: 0.57 | F94: 0.595 | G94: 0.622 | H94: 0.65 | I94: 0.681 | J94: 0.715 | K94: 0.752 | L94: 0.791 | M94: 0.835 | N94: 0.882 | O94: 0.935 | P94: 0.993 | Q94: 1
B95: 11 | C95: 0.527 | D95: 0.549 | E95: 0.572 | F95: 0.597 | G95: 0.624 | H95: 0.653 | I95: 0.684 | J95: 0.718 | K95: 0.755 | L95: 0.795 | M95: 0.838 | N95: 0.887 | O95: 0.939 | P95: 0.998 | Q95: 1
B98: TABLE ERF05
B99: Section: Classic and Premium
B100: Table Reference: x-405
B101: Early retirement direct from service and/or over age 55 - Classic and Premium NPA 60 members - Factors for calculating the actuarially reduced pension
B102: P1ER60PEN1
B103: Age at early retirement (in years and complete months)
B105: Months/Age | C105: 50 | D105: 51 | E105: 52 | F105: 53 | G105: 54 | H105: 55 | I105: 56 | J105: 57 | K105: 58 | L105: 59 | M105: 60
B106: 0 | C106: 0.668 | D106: 0.691 | E106: 0.716 | F106: 0.742 | G106: 0.772 | H106: 0.803 | I106: 0.837 | J106: 0.874 | K106: 0.914 | L106: 0.956 | M106: 1
B107: 1 | C107: 0.67 | D107: 0.693 | E107: 0.718 | F107: 0.745 | G107: 0.774 | H107: 0.806 | I107: 0.84 | J107: 0.877 | K107: 0.917 | L107: 0.96 | M107: 1
B108: 2 | C108: 0.671 | D108: 0.695 | E108: 0.72 | F108: 0.747 | G108: 0.777 | H108: 0.809 | I108: 0.844 | J108: 0.881 | K108: 0.921 | L108: 0.964 | M108: 1
B109: 3 | C109: 0.673 | D109: 0.697 | E109: 0.722 | F109: 0.75 | G109: 0.779 | H109: 0.812 | I109: 0.847 | J109: 0.884 | K109: 0.924 | L109: 0.968 | M109: 1
B110: 4 | C110: 0.675 | D110: 0.699 | E110: 0.724 | F110: 0.752 | G110: 0.782 | H110: 0.815 | I110: 0.85 | J110: 0.887 | K110: 0.928 | L110: 0.971 | M110: 1
B111: 5 | C111: 0.677 | D111: 0.701 | E111: 0.727 | F111: 0.754 | G111: 0.785 | H111: 0.817 | I111: 0.853 | J111: 0.891 | K111: 0.931 | L111: 0.975 | M111: 1
B112: 6 | C112: 0.679 | D112: 0.703 | E112: 0.729 | F112: 0.757 | G112: 0.787 | H112: 0.82 | I112: 0.856 | J112: 0.894 | K112: 0.935 | L112: 0.979 | M112: 1
B113: 7 | C113: 0.681 | D113: 0.705 | E113: 0.731 | F113: 0.759 | G113: 0.79 | H113: 0.823 | I113: 0.859 | J113: 0.897 | K113: 0.938 | L113: 0.983 | M113: 1
B114: 8 | C114: 0.683 | D114: 0.707 | E114: 0.733 | F114: 0.762 | G114: 0.793 | H114: 0.826 | I114: 0.862 | J114: 0.9 | K114: 0.942 | L114: 0.987 | M114: 1
B115: 9 | C115: 0.685 | D115: 0.709 | E115: 0.736 | F115: 0.764 | G115: 0.795 | H115: 0.829 | I115: 0.865 | J115: 0.904 | K115: 0.945 | L115: 0.99 | M115: 1
B116: 10 | C116: 0.687 | D116: 0.711 | E116: 0.738 | F116: 0.767 | G116: 0.798 | H116: 0.832 | I116: 0.868 | J116: 0.907 | K116: 0.949 | L116: 0.994 | M116: 1
B117: 11 | C117: 0.689 | D117: 0.713 | E117: 0.74 | F117: 0.769 | G117: 0.8 | H117: 0.834 | I117: 0.871 | J117: 0.91 | K117: 0.952 | L117: 0.998 | M117: 1
B120: TABLE ERF06
B121: Section: Classic
B122: Table Reference: x-406
B123: Early retirement direct from service and deferred status over age 55 - Classic NPA 60 members - Factors for calculating the actuarially reduced lump sum
B124: P1ER60LS1
B125: Age at early retirement (in years and complete months)
B127: Months/Age | C127: 50 | D127: 51 | E127: 52 | F127: 53 | G127: 54 | H127: 55 | I127: 56 | J127: 57 | K127: 58 | L127: 59 | M127: 60
B128: 0 | C128: 0.845 | D128: 0.86 | E128: 0.874 | F128: 0.889 | G128: 0.904 | H128: 0.92 | I128: 0.935 | J128: 0.951 | K128: 0.968 | L128: 0.984 | M128: 1
B129: 1 | C129: 0.847 | D129: 0.861 | E129: 0.876 | F129: 0.891 | G129: 0.906 | H129: 0.921 | I129: 0.937 | J129: 0.953 | K129: 0.969 | L129: 0.985 | M129: 1
B130: 2 | C130: 0.848 | D130: 0.862 | E130: 0.877 | F130: 0.892 | G130: 0.907 | H130: 0.922 | I130: 0.938 | J130: 0.954 | K130: 0.97 | L130: 0.987 | M130: 1
B131: 3 | C131: 0.849 | D131: 0.863 | E131: 0.878 | F131: 0.893 | G131: 0.908 | H131: 0.924 | I131: 0.939 | J131: 0.955 | K131: 0.972 | L131: 0.988 | M131: 1
B132: 4 | C132: 0.85 | D132: 0.865 | E132: 0.879 | F132: 0.894 | G132: 0.91 | H132: 0.925 | I132: 0.941 | J132: 0.957 | K132: 0.973 | L132: 0.99 | M132: 1
B133: 5 | C133: 0.851 | D133: 0.866 | E133: 0.881 | F133: 0.896 | G133: 0.911 | H133: 0.926 | I133: 0.942 | J133: 0.958 | K133: 0.974 | L133: 0.991 | M133: 1
B134: 6 | C134: 0.853 | D134: 0.867 | E134: 0.882 | F134: 0.897 | G134: 0.912 | H134: 0.928 | I134: 0.943 | J134: 0.959 | K134: 0.976 | L134: 0.992 | M134: 1
B135: 7 | C135: 0.854 | D135: 0.868 | E135: 0.883 | F135: 0.898 | G135: 0.913 | H135: 0.929 | I135: 0.945 | J135: 0.961 | K135: 0.977 | L135: 0.994 | M135: 1
B136: 8 | C136: 0.855 | D136: 0.87 | E136: 0.884 | F136: 0.899 | G136: 0.915 | H136: 0.93 | I136: 0.946 | J136: 0.962 | K136: 0.978 | L136: 0.995 | M136: 1
B137: 9 | C137: 0.856 | D137: 0.871 | E137: 0.886 | F137: 0.901 | G137: 0.916 | H137: 0.932 | I137: 0.947 | J137: 0.963 | K137: 0.98 | L137: 0.997 | M137: 1
B138: 10 | C138: 0.857 | D138: 0.872 | E138: 0.887 | F138: 0.902 | G138: 0.917 | H138: 0.933 | I138: 0.949 | J138: 0.965 | K138: 0.981 | L138: 0.998 | M138: 1
B139: 11 | C139: 0.859 | D139: 0.873 | E139: 0.888 | F139: 0.903 | G139: 0.919 | H139: 0.934 | I139: 0.95 | J139: 0.966 | K139: 0.983 | L139: 0.999 | M139: 1
B142: TABLE ERF07
B143: Section: Classic and Premium
B144: Table Reference: x-407
B145: Early retirement from deferment and under 55 - Classic and Premium NPA 60 members - Factors for calculating the actuarially reduced pension
B146: P1ER60PEN2
B147: Age at early retirement (in years and complete months)
B149: Months/Age | C149: 50 | D149: 51 | E149: 52 | F149: 53 | G149: 54 | H149: 55
B150: 0 | C150: 0.279 | D150: 0.222 | E150: 0.166 | F150: 0.11 | G150: 0.054 | H150: 0
B151: 1 | C151: 0.274 | D151: 0.218 | E151: 0.161 | F151: 0.105 | G151: 0.049
B152: 2 | C152: 0.269 | D152: 0.213 | E152: 0.157 | F152: 0.1 | G152: 0.044
B153: 3 | C153: 0.265 | D153: 0.208 | E153: 0.152 | F153: 0.096 | G153: 0.04
B154: 4 | C154: 0.26 | D154: 0.203 | E154: 0.147 | F154: 0.091 | G154: 0.035
B155: 5 | C155: 0.255 | D155: 0.199 | E155: 0.143 | F155: 0.086 | G155: 0.03
B156: 6 | C156: 0.25 | D156: 0.194 | E156: 0.138 | F156: 0.082 | G156: 0.026
B157: 7 | C157: 0.246 | D157: 0.189 | E157: 0.133 | F157: 0.077 | G157: 0.021
B158: 8 | C158: 0.241 | D158: 0.185 | E158: 0.128 | F158: 0.072 | G158: 0.016
B159: 9 | C159: 0.236 | D159: 0.18 | E159: 0.124 | F159: 0.068 | G159: 0.012
B160: 10 | C160: 0.232 | D160: 0.175 | E160: 0.119 | F160: 0.063 | G160: 0.007
B161: 11 | C161: 0.227 | D161: 0.171 | E161: 0.114 | F161: 0.058 | G161: 0.002
B164: TABLE ERF08A
B165: Section: Classic
B166: Table Reference: x-408A
B167: Early retirement from deferment and under 55 - Classic NPA 60 members - Factors for calculating the actuarially reduced lump sum
B168: P1ER60LS2 - Table B
B169: Age at early retirement (in years and complete months)
B171: Months/Age | C171: 50 | D171: 51 | E171: 52 | F171: 53 | G171: 54 | H171: 55
B172: 0 | C172: 0.246 | D172: 0.196 | E172: 0.146 | F172: 0.096 | G172: 0.047 | H172: 0
B173: 1 | C173: 0.242 | D173: 0.192 | E173: 0.142 | F173: 0.092 | G173: 0.043
B174: 2 | C174: 0.238 | D174: 0.187 | E174: 0.138 | F174: 0.088 | G174: 0.039
B175: 3 | C175: 0.233 | D175: 0.183 | E175: 0.134 | F175: 0.084 | G175: 0.035
B176: 4 | C176: 0.229 | D176: 0.179 | E176: 0.129 | F176: 0.08 | G176: 0.031
B177: 5 | C177: 0.225 | D177: 0.175 | E177: 0.125 | F177: 0.076 | G177: 0.027
B178: 6 | C178: 0.221 | D178: 0.171 | E178: 0.121 | F178: 0.072 | G178: 0.023
B179: 7 | C179: 0.217 | D179: 0.167 | E179: 0.117 | F179: 0.068 | G179: 0.018
B180: 8 | C180: 0.212 | D180: 0.163 | E180: 0.113 | F180: 0.064 | G180: 0.014
B181: 9 | C181: 0.208 | D181: 0.158 | E181: 0.109 | F181: 0.059 | G181: 0.01
B182: 10 | C182: 0.204 | D182: 0.154 | E182: 0.105 | F182: 0.055 | G182: 0.006
B183: 11 | C183: 0.2 | D183: 0.15 | E183: 0.101 | F183: 0.051 | G183: 0.002
B185: TABLE ERF08B
B186: Section: Classic
B187: Table Reference: x-408B
B188: Early retirement from deferment and under 55 - Classic NPA 60 members - Factors for calculating the actuarially reduced lump sum
B189: P1ER60LS2 - Table C
B190: Age at early retirement (in years and complete months)
B192: Months/Age | C192: 50 | D192: 51 | E192: 52 | F192: 53 | G192: 54 | H192: 55
B193: 0 | C193: 1.021 | D193: 1.041 | E193: 1.062 | F193: 1.083 | G193: 1.105 | H193: 0
B194: 1 | C194: 1.022 | D194: 1.043 | E194: 1.064 | F194: 1.085 | G194: 1.107
B195: 2 | C195: 1.024 | D195: 1.044 | E195: 1.065 | F195: 1.087 | G195: 1.108
B196: 3 | C196: 1.026 | D196: 1.046 | E196: 1.067 | F196: 1.088 | G196: 1.11
B197: 4 | C197: 1.027 | D197: 1.048 | E197: 1.069 | F197: 1.09 | G197: 1.112
B198: 5 | C198: 1.029 | D198: 1.05 | E198: 1.071 | F198: 1.092 | G198: 1.114
B199: 6 | C199: 1.031 | D199: 1.051 | E199: 1.072 | F199: 1.094 | G199: 1.116
B200: 7 | C200: 1.032 | D200: 1.053 | E200: 1.074 | F200: 1.096 | G200: 1.118
B201: 8 | C201: 1.034 | D201: 1.055 | E201: 1.076 | F201: 1.097 | G201: 1.119
B202: 9 | C202: 1.036 | D202: 1.057 | E202: 1.078 | F202: 1.099 | G202: 1.121
B203: 10 | C203: 1.038 | D203: 1.058 | E203: 1.079 | F203: 1.101 | G203: 1.123
B204: 11 | C204: 1.039 | D204: 1.06 | E204: 1.081 | F204: 1.103 | G204: 1.125
B206: TABLE ERF09
B207: Section: Classic and Premium
B208: Table Reference: x-409
B209: Early retirement direct from service or deferred status over age 55 - Classic and Premium NPA 65 members - Factors for calculating the actuarially reduced pension
B210: P1ER65PEN1
B211: Age at early retirement (in years and complete months)
B213: Months/Age | C213: 50 | D213: 51 | E213: 52 | F213: 53 | G213: 54 | H213: 55 | I213: 56 | J213: 57 | K213: 58 | L213: 59 | M213: 60 | N213: 61 | O213: 62 | P213: 63 | Q213: 64 | R213: 65
B214: 0 | C214: 0.501 | D214: 0.519 | E214: 0.539 | F214: 0.561 | G214: 0.584 | H214: 0.61 | I214: 0.637 | J214: 0.666 | K214: 0.698 | L214: 0.732 | M214: 0.768 | N214: 0.808 | O214: 0.851 | P214: 0.897 | Q214: 0.947 | R214: 1
B215: 1 | C215: 0.502 | D215: 0.521 | E215: 0.541 | F215: 0.563 | G215: 0.586 | H215: 0.612 | I215: 0.64 | J215: 0.669 | K215: 0.701 | L215: 0.735 | M215: 0.772 | N215: 0.811 | O215: 0.854 | P215: 0.901 | Q215: 0.952
B216: 2 | C216: 0.504 | D216: 0.522 | E216: 0.543 | F216: 0.565 | G216: 0.588 | H216: 0.614 | I216: 0.642 | J216: 0.672 | K216: 0.704 | L216: 0.738 | M216: 0.775 | N216: 0.815 | O216: 0.858 | P216: 0.905 | Q216: 0.957
B217: 3 | C217: 0.505 | D217: 0.524 | E217: 0.545 | F217: 0.567 | G217: 0.591 | H217: 0.617 | I217: 0.644 | J217: 0.674 | K217: 0.706 | L217: 0.741 | M217: 0.778 | N217: 0.818 | O217: 0.862 | P217: 0.91 | Q217: 0.961
B218: 4 | C218: 0.507 | D218: 0.526 | E218: 0.546 | F218: 0.569 | G218: 0.593 | H218: 0.619 | I218: 0.647 | J218: 0.677 | K218: 0.709 | L218: 0.744 | M218: 0.782 | N218: 0.822 | O218: 0.866 | P218: 0.914 | Q218: 0.966
B219: 5 | C219: 0.508 | D219: 0.527 | E219: 0.548 | F219: 0.571 | G219: 0.595 | H219: 0.621 | I219: 0.649 | J219: 0.68 | K219: 0.712 | L219: 0.747 | M219: 0.785 | N219: 0.826 | O219: 0.87 | P219: 0.918 | Q219: 0.97
B220: 6 | C220: 0.51 | D220: 0.529 | E220: 0.55 | F220: 0.572 | G220: 0.597 | H220: 0.623 | I220: 0.652 | J220: 0.682 | K220: 0.715 | L220: 0.75 | M220: 0.788 | N220: 0.829 | O220: 0.874 | P220: 0.922 | Q220: 0.975
B221: 7 | C221: 0.511 | D221: 0.531 | E221: 0.552 | F221: 0.574 | G221: 0.599 | H221: 0.626 | I221: 0.654 | J221: 0.685 | K221: 0.718 | L221: 0.753 | M221: 0.791 | N221: 0.833 | O221: 0.878 | P221: 0.926 | Q221: 0.979
B222: 8 | C222: 0.513 | D222: 0.532 | E222: 0.554 | F222: 0.576 | G222: 0.601 | H222: 0.628 | I222: 0.657 | J222: 0.687 | K222: 0.721 | L222: 0.756 | M222: 0.795 | N222: 0.836 | O222: 0.881 | P222: 0.93 | Q222: 0.984
B223: 9 | C223: 0.514 | D223: 0.534 | E223: 0.555 | F223: 0.578 | G223: 0.603 | H223: 0.63 | I223: 0.659 | J223: 0.69 | K223: 0.723 | L223: 0.759 | M223: 0.798 | N223: 0.84 | O223: 0.885 | P223: 0.935 | Q223: 0.989
B224: 10 | C224: 0.516 | D224: 0.536 | E224: 0.557 | F224: 0.58 | G224: 0.605 | H224: 0.632 | I224: 0.662 | J224: 0.693 | K224: 0.726 | L224: 0.762 | M224: 0.801 | N224: 0.843 | O224: 0.889 | P224: 0.939 | Q224: 0.993
B225: 11 | C225: 0.518 | D225: 0.537 | E225: 0.559 | F225: 0.582 | G225: 0.608 | H225: 0.635 | I225: 0.664 | J225: 0.695 | K225: 0.729 | L225: 0.765 | M225: 0.804 | N225: 0.847 | O225: 0.893 | P225: 0.943 | Q225: 0.998
B228: TABLE ERF10
B229: Section: Classic
B230: Table Reference: x-410
B231: Early retirement direct from service and/or over age 55 - Classic NPA 65 members - Factors for calculating the actuarially reduced lump sum
... 93 more rows

Sheet FS calcs (hidden)
A1: Government Actuary's Department
A2: =IF(title="> Enter workbook title here","Enter workbook title in Cover sheet",title) -> Northern Ireland Civil Service Pension Scheme Calculator
A3: Classic, premium, classic plus
A4: =CELL("filename",A1) -> C:\Users\dof-aytond\Desktop\[NICS - BenProjectCalculator v0.21.xlsm]FS calcs
C6: Exact Age (at start of scheme year) | D6: =(StartScheme_Current-DoB)/DoY -> 126.2505133
C7: Age at protection date | D7: =(ProtectDate-DoB)/DoY -> 112.2518823
C8: Age at entry exact | D8: =(DJS-DoB)/DoY -> 0
C9: Lower of retirement, protection date | D9: =MIN(D12,D25) -> 00:00:00
H10: Datedif uses the first year when determining leap years (!) | J10: http://www.cpearson.com/excel/datedif.aspx
D11: =Sch_Classic -> classic | E11: =Sch_ClassicPlus -> classic plus | F11: =Sch_Premium -> premium | G11: Results used
C12: Chosen retirement date | D12: =DoR -> 00:00:00 | E12: =DoR -> 00:00:00 | F12: =DoR -> 00:00:00 | G12: =IFERROR(INDEX(D12:F12,MATCH(CurrentScheme,$D$11:$F$11,0)),F12) -> 00:00:00
B13: Service Period Calcs | C13: DJS/ABS end date | D13: =IF(AND(Reck_Years="", Reck_Days=""),DATE(YEAR(DJS),MONTH(DJS),DAY(DJS)), IF(AND(ABSEndDate<>"",OR(Scheme_Full<>"alpha",Scheme_Full<>"nuvos",Scheme_Full<>"")),DATE(ABSEndDate,4,1),IF(AND(ABSEndDate="",alpha_ABSEndDate1<>"",Scheme_Full<>"alpha"),DATE(alpha_ABSEndDate1,4,1),(DATE(YEAR(DJS),MONTH(DJS),DAY(DJS)))))) -> 00:00:00 | E13: =D13 -> 00:00:00 | F13: 00:00:00 | G13: 00:00:00 | H13: Leap year? | I13: =MONTH(DATE(YEAR(D13),2,29))=2 -> TRUE
C14: DJS allowing for Tvin (for classic plus split) | D14: =DATE(YEAR(DJS)-TVinYears,MONTH(DJS),DAY(DJS))-TVinDays -> 00:00:00 | E14: 00:00:00 | F14: 00:00:00 | G14: =IFERROR(INDEX(D14:F14,MATCH(CurrentScheme,$D$11:$F$11,0)),F14) -> 00:00:00
C15: Service to date [Min(ABS date, start current scheme year)] | D15: =MAX(D13,StartScheme_Current) -> 2026-04-01 | E15: 2026-04-01 | F15: 2026-04-01 | G15: 2026-04-01 | H15: Leap year? | I15: =MONTH(DATE(YEAR(D15),2,29))=2 -> FALSE
C16: Past Service | D16: =IFERROR(MIN(DATEDIF(D13,D15,"y")+(DATEDIF(D13,D15,"yd")-IF(I13=TRUE,1,0))/DoY,DATEDIF(D13,D25+1,"y")+(DATEDIF(D13,D25+1,"yd")-IF(I13=TRUE,1,0))/DoY),0) -> 0 | E16: 0 | F16: 0 | G16: 0 | H16: =INT(D16) -> 0 | I16: =(D16-INT(D16))*365.25 -> 0
C17: Future service | D17: =IFERROR(MAX(DATEDIF(D15,$D9+1,"y")+(DATEDIF(D15,$D9+1,"yd")-IF(I15=TRUE,1,0))/DoY,0),0) -> 0 | E17: 0 | F17: 0 | G17: 0 | H17: =INT(D17) -> 0 | I17: =D17*365.25 -> 0
C18: NPA | D18: 60 | E18: 60 | F18: 60 | G18: =IFERROR(INDEX(D18:F18,MATCH(CurrentScheme,$D$11:$F$11,0)),F18) -> 60
C19: Age at 2012 | D19: =(ProtectDate-DoB)/DoY -> 112.2518823 | E19: =(ProtectDate-DoB)/DoY -> 112.2518823 | F19: =(ProtectDate-DoB)/DoY -> 112.2518823 | G19: 112.2518823
C20: Age (years) at 2012 | D20: =+INT(D19) -> 112 | E20: =+INT(E19) -> 112 | F20: =+INT(F19) -> 112 | G20: 112
C21: Remaining age (months) at 2012 | D21: =+ROUNDDOWN((D19-INT(D19))*12,0) -> 3 | E21: =+ROUNDDOWN((E19-INT(E19))*12,0) -> 3 | F21: =+ROUNDDOWN((F19-INT(F19))*12,0) -> 3 | G21: 3
C22: Protection end date | D22: =+IF(D20>=49,D12,IF(Parameters!$B$114=TRUE,NewSchDate,IFERROR(INDEX(Tapers!$J$13:$J$54,MATCH(D20&"_"&D21,Tapers!$A$13:$A$54,0)),FALSE))) -> 00:00:00 | E22: =+IF(E20>=49,E12,IF(Parameters!$B$114=TRUE,NewSchDate,IFERROR(INDEX(Tapers!$J$13:$J$54,MATCH(E20&"_"&E21,Tapers!$A$13:$A$54,0)),FALSE))) -> 00:00:00 | F22: =+IF(F20>=49,F12,IF(Parameters!$B$114=TRUE,NewSchDate,IFERROR(INDEX(Tapers!$J$13:$J$54,MATCH(F20&"_"&F21,Tapers!$A$13:$A$54,0)),FALSE))) -> 00:00:00 | G22: 00:00:00
C23: Active at 2015 | D23: =IF(DJS<=ProtectDate,TRUE,FALSE) -> TRUE | E23: =IF(DJS<=ProtectDate,TRUE,FALSE) -> TRUE | F23: =IF(DJS<=ProtectDate,TRUE,FALSE) -> TRUE | G23: TRUE
C24: Protection | D24: =+IF(AND(D23,ISNUMBER(D22)),TRUE,FALSE) -> TRUE | E24: =+IF(AND(E23,ISNUMBER(E22)),TRUE,FALSE) -> TRUE | F24: =+IF(AND(F23,ISNUMBER(F22)),TRUE,FALSE) -> TRUE | G24: TRUE
C25: Protection end date | D25: =+IF(D24=FALSE,NewSchDate-1,D22) -> 00:00:00 | E25: =+IF(E24=FALSE,NewSchDate-1,E22) -> 00:00:00 | F25: =+IF(F24=FALSE,NewSchDate-1,F22) -> 00:00:00 | G25: 00:00:00
B26: Service for Member | C26: Retiring After Protection Ends | D26: =IF(D12<=D25,"",MIN(IF(PT_Status="some Part-Time",IF(AND(Reck_Years="", Reck_Days=""), TVinYears+TVinDays/DoY+D16*future_PTP,D16*future_PTP+Reck_Years+Reck_Days/DoY)+MAX(0,D17*future_PTP),MAX(IF(AND(Reck_Years="", Reck_Days=""),D16+TVinYears+TVinDays/DoY,D16+Reck_Years+Reck_Days/DoY)+D17,0)),classic_max)) ->  | E26: =IF(E12<=E25,"",MIN(IF(PT_Status="some Part-Time",IF(AND(Reck_Years="", Reck_Days=""), TVinYears+TVinDays/DoY+E16*future_PTP,E16*future_PTP+Reck_Years+Reck_Days/DoY)+MAX(0,E17*future_PTP),MAX(IF(AND(Reck_Years="", Reck_Days=""),E16+TVinYears+TVinDays/DoY,E16+Reck_Years+Reck_Days/DoY)+E17,0)),classicplus_max)) ->  | F26: =IF(F12<=F25,"",MIN(IF(PT_Status="some Part-Time",IF(AND(Reck_Years="", Reck_Days=""), TVinYears+TVinDays/DoY+F16*future_PTP,F16*future_PTP+Reck_Years+Reck_Days/DoY)+MAX(0,F17*future_PTP),MAX(IF(AND(Reck_Years="", Reck_Days=""),F16+TVinYears+TVinDays/DoY,F16+Reck_Years+Reck_Days/DoY)+F17,0)),Max_service_premium)) ->  | G26: =IFERROR(INDEX(D26:F26,MATCH(CurrentScheme,$D$11:$F$11,0)),F26) -> 
C27: Retiring on or before Protection Ends | D27: =IF(D12<=D25,MIN(IF(PT_Status="some Part-Time",IF(AND(Reck_Years="", Reck_Days=""), TVinYears+TVinDays/DoY+D16*future_PTP,D16*future_PTP+Reck_Years+Reck_Days/DoY)+D17*future_PTP,MAX(IF(AND(Reck_Years="", Reck_Days=""),D16+TVinYears+TVinDays/DoY,D16+Reck_Years+Reck_Days/DoY)+D17,0)),classic_max),"") -> 0 | E27: =IF(E12<=E25,MIN(IF(PT_Status="some Part-Time",IF(AND(Reck_Years="", Reck_Days=""), TVinYears+TVinDays/DoY+E16*future_PTP,E16*future_PTP+Reck_Years+Reck_Days/DoY)+E17*future_PTP,MAX(IF(AND(Reck_Years="", Reck_Days=""),E16+TVinYears+TVinDays/DoY,E16+Reck_Years+Reck_Days/DoY)+E17,0)),classicplus_max),"") -> 0 | F27: =IF(F12<=F25,MIN(IF(PT_Status="some Part-Time",IF(AND(Reck_Years="", Reck_Days=""), TVinYears+TVinDays/DoY+F16*future_PTP,F16*future_PTP+Reck_Years+Reck_Days/DoY)+F17*future_PTP,MAX(IF(AND(Reck_Years="", Reck_Days=""),F16+TVinYears+TVinDays/DoY,F16+Reck_Years+Reck_Days/DoY)+F17,0)),Max_service_premium),"") -> 0 | G27: 0
C28: classis plus, pre-Oct 2002 proportion Retiring On Or After Protection Ends | D28: =FALSE -> FALSE | E28: =IF(E12<=E25,0,IF(E14<Start_date_classic,(Start_date_classic-E14)/(E25-E14),0)) -> 0 | F28: =FALSE -> FALSE | G28: FALSE | I28: =+DJS -> 00:00:00
C29: classic plus, pre-Oct 2002 proportion Retiring Before Protection Ends | D29: =FALSE -> FALSE | E29: =IF(E12<=E25,IF(E14<Start_date_classic,(Start_date_classic-E14)/(E12-E14),1),0) ->  | F29: =FALSE -> FALSE | G29: FALSE | I29: 2002-10-01
C30: Service to Retirement | D30: =DATEDIF(D15,D12,"y")+DATEDIF(D15,D12,"yd")/DoY ->  | E30: =DATEDIF(E15,E12,"y")+DATEDIF(E15,E12,"yd")/DoY ->  | F30: =DATEDIF(F15,F12,"y")+DATEDIF(F15,F12,"yd")/DoY -> 
B31: Salary Calcs | C31: Current Salary | D31: =CurrentSal -> 0 | E31: =CurrentSal -> 0 | F31: =CurrentSal -> 0 | G31: 0
C32: ="Project Salary - "&basis1 -> Project Salary - CPI + 0.0% | D32: =D$31*(1+cpi_1)^D$30 ->  | E32: =E$31*(1+cpi_1)^E$30 ->  | F32: =F$31*(1+cpi_1)^F$30 -> 
C33: ="Project Salary - "&basis2 -> Project Salary - CPI + 1.0% | D33: =D$31*(1+cpi_2)^D$30 ->  | E33: =E$31*(1+cpi_2)^E$30 ->  | F33: =F$31*(1+cpi_2)^F$30 -> 
C34: ="Project Salary - "&basis3 -> Project Salary - CPI + 2.0% | D34: =D$31*(1+cpi_3)^D$30 ->  | E34: =E$31*(1+cpi_3)^E$30 ->  | F34: =F$31*(1+cpi_3)^F$30 -> 
C35: ="Discount Projected Salary - "&basis1 -> Discount Projected Salary - CPI + 0.0% | D35: =D32/((1+cpi)^D$30)*(1+cpi)^((Date_curr-StartScheme_Current)/DoY) -> 
C36: ="Discount Projected Salary - "&basis2 -> Discount Projected Salary - CPI + 1.0%
C37: ="Discount Projected Salary - "&basis3 -> Discount Projected Salary - CPI + 2.0%
B38: Classic plus split pension post ERF (discounted) | C38: Classic - CPI + 0% | D38: 0 | E38: =IF($E$26="",$E$27*E35*Acc_classic*E29,$E$26*E35*Acc_classic*E28)*E61 ->  | F38: 0 | G38: 0 | H38: =SUM(E38:E39)=E63 ->  | I38: =SUM(E38:E39)/E63-1 -> 
C39: Premium - CPI + 0% | D39: 0 | E39: =IF($E$26="",$E$27*E35*Acc_premium*(1-E29),$E$26*E35*Acc_premium*(1-E28))*E61 ->  | F39: 0 | G39: 0
C40: Classic - CPI + 1% | D40: 0 | E40: =IF($E$26="",$E$27*E36*Acc_classic*E29,$E$26*E36*Acc_classic*E28)*E61 ->  | F40: 0 | G40: 0 | H40: =SUM(E40:E41)=E64 -> 
C41: Premium - CPI + 1% | D41: 0 | E41: =IF($E$26="",$E$27*E36*Acc_premium*(1-E29),$E$26*E36*Acc_premium*(1-E28))*E61 ->  | F41: 0 | G41: 0
C42: Classic - CPI + 2% | D42: 0 | E42: =IF($E$26="",$E$27*E37*Acc_classic*E29,$E$26*E37*Acc_classic*E28)*E61 ->  | F42: 0 | G42: 0 | H42: =SUM(E42:E43)=E65 -> 
C43: Premium - CPI + 2% | D43: 0 | E43: =IF($E$26="",$E$27*E37*Acc_premium*(1-E29),$E$26*E37*Acc_premium*(1-E28))*E61 ->  | F43: 0 | G43: 0
B44: Classic plus split pension post ERF (nominal) | C44: Classic - CPI + 0% | D44: 0 | E44: =IF($E$26="",$E$27*E32*Acc_classic*E29,$E$26*E32*Acc_classic*E28)*E61 ->  | F44: 0 | G44: =IFERROR(INDEX(D44:F44,MATCH(CurrentScheme,$D$11:$F$11,0)),F44) -> 0
C45: Premium - CPI + 0% | D45: 0 | E45: =IF($E$26="",$E$27*E32*Acc_premium*(1-E29),$E$26*E32*Acc_premium*(1-E28))*E61 ->  | F45: 0 | G45: 0
C46: Classic - CPI + 1% | D46: 0 | E46: =IF($E$26="",$E$27*E33*Acc_classic*E29,$E$26*E33*Acc_classic*E28)*E61 ->  | F46: 0 | G46: 0
C47: Premium - CPI + 1% | D47: 0 | E47: =IF($E$26="",$E$27*E33*Acc_premium*(1-E29),$E$26*E33*Acc_premium*(1-E28))*E61 ->  | F47: 0 | G47: 0
C48: Classic - CPI + 2% | D48: 0 | E48: =IF($E$26="",$E$27*E34*Acc_classic*E29,$E$26*E34*Acc_classic*E28)*E61 ->  | F48: 0 | G48: 0
C49: Premium - CPI + 2% | D49: 0 | E49: =IF($E$26="",$E$27*E34*Acc_premium*(1-E29),$E$26*E34*Acc_premium*(1-E28))*E61 ->  | F49: 0 | G49: 0
B50: Classic plus split pre ERF | C50: Classic - CPI + 0% | E50: =IF($E$26="",$E$27*E35*Acc_classic*E29,$E$26*E35*Acc_classic*E28) -> 
C51: Premium - CPI + 0% | E51: =IF($E$26="",$E$27*E35*Acc_premium*(1-E29),$E$26*E35*Acc_premium*(1-E28)) -> 
C52: Classic - CPI + 1% | E52: =IF($E$26="",$E$27*E36*Acc_classic*E29,$E$26*E36*Acc_classic*E28) -> 
C53: Premium - CPI + 1% | E53: =IF($E$26="",$E$27*E36*Acc_premium*(1-E29),$E$26*E36*Acc_premium*(1-E28)) -> 
C54: Classic - CPI + 2% | E54: =IF($E$26="",$E$27*E37*Acc_classic*E29,$E$26*E37*Acc_classic*E28) -> 
C55: Premium - CPI + 2% | E55: =IF($E$26="",$E$27*E37*Acc_premium*(1-E29),$E$26*E37*Acc_premium*(1-E28)) -> 
B56: NPA Pension pre ERF/LRF | C56: Final Salary / Pre NPA Pension - CPI + 0% | D56: =IF($D$26="",$D$27,$D$26)*D35*Acc_classic ->  | E56: =IF($E$26="",$E$27*E35*Acc_classic*E29+$E$27*E35*Acc_premium*(1-E29),$E$26*E35*Acc_classic*E28+$E$26*E35*Acc_premium*(1-E28)) ->  | F56: =IF($D$26="",$D$27,$D$26)*F35*Acc_premium ->  | H56: =IF(E26="",E29*D56+F56*(1-E29), E28*D56+F56*(1-E28))=E56 -> 
C57: Final Salary / Pre NPA Pension - CPI + 1% | D57: =IF($D$26="",$D$27,$D$26)*D36*Acc_classic ->  | E57: =IF($E$26="",$E$27*E36*Acc_classic*E29+$E$27*E36*Acc_premium*(1-E29),$E$26*E36*Acc_classic*E28+$E$26*E36*Acc_premium*(1-E28)) ->  | F57: =IF($D$26="",$D$27,$D$26)*F36*Acc_premium ->  | H57: =IF(E26="",E29*D57+F57*(1-E29), E28*D57+F57*(1-E28))=E57 -> 
C58: Final Salary / Pre NPA Pension - CPI + 2% | D58: =IF($D$26="",$D$27,$D$26)*D37*Acc_classic ->  | E58: =IF($E$26="",$E$27*E37*Acc_classic*E29+$E$27*E37*Acc_premium*(1-E29),$E$26*E37*Acc_classic*E28+$E$26*E37*Acc_premium*(1-E28)) ->  | F58: =IF($D$26="",$D$27,$D$26)*F37*Acc_premium ->  | H58: =IF(E26="",E29*D58+F58*(1-E29), E28*D58+F58*(1-E28))=E58 -> 
B59: ERF/LRF | C59: Age at Retirement less NPA | D59: =ChosenRA-D18 -> -60 | E59: =ChosenRA-E18 -> -60 | F59: =ChosenRA-F18 -> -60 | G59: -60
C60: LRF | D60: 1 | E60: 1 | F60: 1 | G60: 1 | H60: No late retirement allowed in FS schemes.
C61: ERF | D61: =IF(D59<0,IFERROR(VLOOKUP(RA_month,ERF05_table,RA_Year-48,FALSE),1),1) -> 1 | E61: =IF(E59<0,IFERROR(VLOOKUP(RA_month,ERF05_table,RA_Year-48,FALSE),1),1) -> 1 | F61: =IF(F59<0,IFERROR(VLOOKUP(RA_month,ERF05_table,RA_Year-48,FALSE),1),1) -> 1 | G61: 1
C62: Lump Sum ERF | D62: =IF(D59<0,IFERROR(VLOOKUP(RA_month,ERF06_table,RA_Year-48,FALSE),1),1) -> 1 | E62: =IF(E59<0,IFERROR(VLOOKUP(RA_month,ERF06_table,RA_Year-48,FALSE),1),1) -> 1 | F62: =IF(F59<0,IFERROR(VLOOKUP(RA_month,ERF06_table,RA_Year-48,FALSE),1),1) -> 1 | G62: 1
B63: Post ERF, Pre-2015 pension | C63: ="Pension - "&basis1 -> Pension - CPI + 0.0% | D63: =IFERROR($D$61*D56,0) -> 0 | E63: =IFERROR($E$61*E56,0) -> 0 | F63: =IFERROR($F$61*F56,0) -> 0 | G63: 0
C64: ="Pension - "&basis2 -> Pension - CPI + 1.0% | D64: =IFERROR($D$61*D57,0) -> 0 | E64: =IFERROR($E$61*E57,0) -> 0 | F64: =IFERROR($F$61*F57,0) -> 0 | G64: 0
C65: ="Pension - "&basis3 -> Pension - CPI + 2.0% | D65: =IFERROR($D$61*D58,0) -> 0 | E65: =IFERROR($E$61*E58,0) -> 0 | F65: =IFERROR($F$61*F58,0) -> 0 | G65: 0
C66: Non Comm LS - CPI + 0% | D66: =IFERROR(Lump_Sum_classic*ROUND(D56,0)*D$62,0) -> 0 | E66: =IFERROR(Lump_Sum_classicplus*ROUND(E50,0)*E62,0) -> 0 | F66: =IFERROR(Lump_Sum_premium*ROUND(F56,0)*F$62,0) -> 0 | G66: =IFERROR(INDEX(D66:F66,MATCH(CurrentScheme,$D$11:$F$11,0)),F66) -> 0
C67: Non Comm LS - CPI + 1% | D67: =IFERROR(Lump_Sum_classic*ROUND(D57,0)*D$62,0) -> 0 | E67: =IFERROR(Lump_Sum_classicplus*ROUND(E52,0)*E62,0) -> 0 | F67: =IFERROR(Lump_Sum_premium*ROUND(F57,0)*F$62,0) -> 0 | G67: =IFERROR(INDEX(D67:F67,MATCH(CurrentScheme,$D$11:$F$11,0)),F67) -> 0
C68: Non Comm LS - CPI + 2% | D68: =IFERROR(Lump_Sum_classic*ROUND(D58,0)*D$62,0) -> 0 | E68: =IFERROR(Lump_Sum_classicplus*ROUND(E54,0)*E62,0) -> 0 | F68: =IFERROR(Lump_Sum_premium*ROUND(F58,0)*F$62,0) -> 0 | G68: =IFERROR(INDEX(D68:F68,MATCH(CurrentScheme,$D$11:$F$11,0)),F68) -> 0
B69: Post ERF, pre-2015 pension - Nominal | C69: ="Nominal Pension - "&basis1 -> Nominal Pension - CPI + 0.0% | D69: =IFERROR($D$61*D56*D32/D35,0) -> 0 | E69: =IFERROR($E$61*E56*E32/E35,0) -> 0 | F69: =IFERROR($F$61*F56*F32/F35,0) -> 0 | G69: 0
C70: ="Nominal Pension - "&basis2 -> Nominal Pension - CPI + 1.0% | D70: =IFERROR($D$61*D57*D33/D36,0) -> 0 | E70: =IFERROR($E$61*E57*E33/E36,0) -> 0 | F70: =IFERROR($F$61*F57*F33/F36,0) -> 0 | G70: 0
C71: ="Nominal Pension - "&basis3 -> Nominal Pension - CPI + 2.0% | D71: =IFERROR($D$61*D58*D34/D37,0) -> 0 | E71: =IFERROR($E$61*E58*E34/E37,0) -> 0 | F71: =IFERROR($F$61*F58*F34/F37,0) -> 0 | G71: 0
C72: ="Nominal Lump Sum - "&basis1 -> Nominal Lump Sum - CPI + 0.0% | D72: =IFERROR(Lump_Sum_classic*ROUND(D56,0)*D$62*D32/D35,0) -> 0 | E72: =E66*E32/E35 ->  | F72: =IFERROR(Lump_Sum_premium*ROUND(F56,0)*F$62*F32/F35,0) -> 0 | G72: 0
C73: ="Nominal `Lump Sum - "&basis2 -> Nominal `Lump Sum - CPI + 1.0% | D73: =IFERROR(Lump_Sum_classic*ROUND(D57,0)*D$62*D33/D36,0) -> 0 | E73: =E67*E33/E36 ->  | F73: =IFERROR(Lump_Sum_premium*ROUND(F57,0)*F$62*F33/F36,0) -> 0 | G73: 0
C74: ="Nominal Lump Sum - "&basis3 -> Nominal Lump Sum - CPI + 2.0% | D74: =IFERROR(Lump_Sum_classic*ROUND(D58,0)*D$62*D34/D37,0) -> 0 | E74: =E68*E34/E37 ->  | F74: =IFERROR(Lump_Sum_premium*ROUND(F58,0)*F$62*F34/F37,0) -> 0 | G74: 0
H75: years | I75: days
C76: Pre-15 scheme service used to calculate FS pension | G76: =IF(G26="", G27,G26) -> 0 | H76: =ROUND(INT(G76),0)+IF(ROUND((G76-INT(G76))*DoY,0)>=365,1,0) -> 0 | I76: =IF(ROUND((G76-INT(G76))*DoY,0)>=365,0,ROUND((G76-H76)*DoY,0)) -> 0
H77: adjustment for case where days would equal 365

Sheet Lump Sum (hidden)
A1: Government Actuary's Department
A2: =IF(title="> Enter workbook title here","Enter workbook title in Cover sheet",title) -> Northern Ireland Civil Service Pension Scheme Calculator
A3: Lump Sum Commutation
A4: =CELL("filename",A1) -> C:\Users\dof-aytond\Desktop\[NICS - BenProjectCalculator v0.21.xlsm]Lump Sum
D9: Pre 2015 | E9: Post 2015 at SPA
C10: Commutation Factor | D10: =+VLOOKUP(Scheme_Full,Lump_sum_factors,2,0) ->  | E10: =+VLOOKUP("alpha",Lump_sum_factors,2,0) -> 12
C11: Max Lump Sum Factor | D11: =+VLOOKUP(Scheme_Full,Lump_sum_factors,4,0) ->  | E11: =+VLOOKUP("alpha",Lump_sum_factors,4,0) -> 4.285714286
C13: Pre 2015 FS | D13: =basis1 -> CPI + 0.0% | E13: =basis2 -> CPI + 1.0% | F13: =basis3 -> CPI + 2.0%
C14: Pre-Commutation Pension | D14: ='FS calcs'!G63 -> 0 | E14: ='FS calcs'!G64 -> 0 | F14: ='FS calcs'!G65 -> 0
C15: Classic plus - classic pension | D15: ='FS calcs'!G38 -> 0 | E15: ='FS calcs'!G40 -> 0 | F15: ='FS calcs'!G42 -> 0
C16: Classic plus - premium pension | D16: ='FS calcs'!G39 -> 0 | E16: ='FS calcs'!G41 -> 0 | F16: ='FS calcs'!G43 -> 0
C17: Max Commutation lump sum | D17: =IF(Scheme_Full=sch_2,D15*D11+D16*E11,IF(Scheme_Full=sch_1,D14*D11,D14*E11)) -> 0 | E17: =IF(Scheme_Full=sch_2,E15*D11+E16*E11,IF(Scheme_Full=sch_1,E14*D11,E14*E11)) -> 0 | F17: =IF(Scheme_Full=sch_2,F15*D11+F16*E11,IF(Scheme_Full=sch_1,F14*D11,F14*E11)) -> 0
C18: Max Commuted | D18: =+D17/$D$10 ->  | E18: =+E17/$D$10 ->  | F18: =+F17/$D$10 -> 
C19: Post-Commutation Pension | D19: =+D14-D18 ->  | E19: =+E14-E18 ->  | F19: =+F14-F18 -> 
C20: Non-Commutation Lump Sum | D20: ='FS calcs'!G66 -> 0 | E20: ='FS calcs'!G67 -> 0 | F20: ='FS calcs'!G68 -> 0
C21: Max Lump Sum | D21: =D20+D17 -> 0 | E21: =E20+E17 -> 0 | F21: =F20+F17 -> 0
C23: nuvos | D23: =basis1 -> CPI + 0.0% | E23: =basis2 -> CPI + 1.0% | F23: =basis3 -> CPI + 2.0%
C24: Pre-Commutation Pension | D24: ='nuvos Calcs'!D57 -> 0 | E24: ='nuvos Calcs'!D58 -> 0 | F24: ='nuvos Calcs'!D59 -> 0
C25: Max Lump Sum | D25: =+D24*$D$11 ->  | E25: =+E24*$D$11 ->  | F25: =+F24*$D$11 -> 
C26: Max Commutation | D26: =+D25/$D$10 ->  | E26: =+E25/$D$10 ->  | F26: =+F25/$D$10 -> 
C27: Post-Commutation Pension | D27: =D24-D26 ->  | E27: =E24-E26 ->  | F27: =F24-F26 -> 
C29: alpha | D29: =basis1 -> CPI + 0.0% | E29: =basis2 -> CPI + 1.0% | F29: =basis3 -> CPI + 2.0%
C30: Pre-Commutation Pension | D30: ='alpha calcs'!D56 -> 0 | E30: ='alpha calcs'!D57 -> 0 | F30: ='alpha calcs'!D58 -> 0
C31: Max Lump Sum | D31: =+D30*$E$11 -> 0 | E31: =+E30*$E$11 -> 0 | F31: =+F30*$E$11 -> 0
C32: Max Commutation | D32: =+D31/$E$10 -> 0 | E32: =+E31/$E$10 -> 0 | F32: =+F31/$E$10 -> 0
C33: Post-Commutation Pension | D33: =D30-D32 -> 0 | E33: =E30-E32 -> 0 | F33: =F30-F32 -> 0
C35: Nominal
C37: Pre 2015 | D37: =basis1 -> CPI + 0.0% | E37: =basis2 -> CPI + 1.0% | F37: =basis3 -> CPI + 2.0%
C38: Pre-Commutation Pension | D38: ='FS calcs'!G69 -> 0 | E38: ='FS calcs'!G70 -> 0 | F38: ='FS calcs'!G71 -> 0
C39: Classic plus - classic pension | D39: ='FS calcs'!G44 -> 0 | E39: ='FS calcs'!G46 -> 0 | F39: ='FS calcs'!G48 -> 0
C40: Classic plus - premium pension | D40: ='FS calcs'!G45 -> 0 | E40: ='FS calcs'!G47 -> 0 | F40: ='FS calcs'!G49 -> 0
C41: Max Commutation lump sum | D41: =IF(Scheme_Full=sch_2,D39*$D$11+D40*$E$11,IF(Scheme_Full=sch_1,D38*$D$11,D38*$E$11)) -> 0 | E41: =IF(Scheme_Full=sch_2,E39*$D$11+E40*$E$11,IF(Scheme_Full=sch_1,E38*$D$11,E38*$E$11)) -> 0 | F41: =IF(Scheme_Full=sch_2,F39*$D$11+F40*$E$11,IF(Scheme_Full=sch_1,F38*$D$11,F38*$E$11)) -> 0
C42: Max Commuted | D42: =+D41/$D$10 ->  | E42: =+E41/$D$10 ->  | F42: =+F41/$D$10 -> 
C43: Post-Commutation Pension | D43: =+D38-D42 ->  | E43: =+E38-E42 ->  | F43: =+F38-F42 -> 
C44: Non-Commutation lump sum | D44: ='FS calcs'!G72 -> 0 | E44: ='FS calcs'!G73 -> 0 | F44: ='FS calcs'!G74 -> 0
C45: Max Lump Sum | D45: =D41+D44 -> 0 | E45: =E41+E44 -> 0 | F45: =F41+F44 -> 0
C47: nuvos | D47: =basis1 -> CPI + 0.0% | E47: =basis2 -> CPI + 1.0% | F47: =basis3 -> CPI + 2.0%
C48: Pre-Commutation Pension | D48: ='nuvos Calcs'!D54 -> 0 | E48: ='nuvos Calcs'!D55 -> 0 | F48: ='nuvos Calcs'!D56 -> 0
C49: Max Commutation | D49: =+D48*$D$11 ->  | E49: =+E48*$D$11 ->  | F49: =+F48*$D$11 -> 
C50: Post-Commutation Pension | D50: =+D49/$D$10 ->  | E50: =+E49/$D$10 ->  | F50: =+F49/$D$10 -> 
C51: Max Lump Sum | D51: =D48-D50 ->  | E51: =E48-E50 ->  | F51: =F48-F50 -> 
C53: alpha | D53: =basis1 -> CPI + 0.0% | E53: =basis2 -> CPI + 1.0% | F53: =basis3 -> CPI + 2.0%
C54: Pre-Commutation Pension | D54: ='alpha calcs'!D53 -> 0 | E54: ='alpha calcs'!D54 -> 0 | F54: ='alpha calcs'!D55 -> 0
C55: Max Commutation | D55: =+D54*$E$11 -> 0 | E55: =+E54*$E$11 -> 0 | F55: =+F54*$E$11 -> 0
C56: Post-Commutation Pension | D56: =+D55/$E$10 -> 0 | E56: =+E55/$E$10 -> 0 | F56: =+F55/$E$10 -> 0
C57: Max Lump Sum | D57: =D54-D56 -> 0 | E57: =E54-E56 -> 0 | F57: =F54-F56 -> 0

Sheet nuvos Calcs (hidden)
A1: Government Actuary's Department
A2: =IF(title="> Enter workbook title here","Enter workbook title in Cover sheet",title) -> Northern Ireland Civil Service Pension Scheme Calculator
A3: Nuvos pension
A4: =CELL("filename",A1) -> C:\Users\dof-aytond\Desktop\[NICS - BenProjectCalculator v0.21.xlsm]nuvos Calcs
B8: Current Date | D8: =DoStartSchYear_nuvos -> 2026-04-01
B9: CPI (%) | D9: =cpi -> 0.02
B10: Revaluation Rate - CPI + 0% | D10: =care_rev -> 0.02
B11: Age at 1 Apr 2015 | D11: =+ROUND((Parameters!E45-DoB)/DoY,2) -> 115.25 | F11: DoR
B12: Protection | D12: =+IF(D11>=54.5,TRUE,FALSE) -> TRUE | F12: =+DoR -> 00:00:00
B13: DJS | D13: =DJS -> 00:00:00
B14: 2015 scheme start | D14: 2015-04-01
B15: Protected 2015 scheme start | D15: ='FS calcs'!DoProtEnd -> 00:00:00
B17: Age at start of year | D17: =ROUND((D19-DoB)/DoY,0) -> 108 | E17: 108 | F17: 109 | G17: 110 | H17: 111 | I17: 112 | J17: 113 | K17: 114 | L17: 115 | M17: 116 | N17: 117 | O17: 118 | P17: 119 | Q17: 120 | R17: 121 | S17: 122 | T17: 123 | U17: 124 | V17: 125 | W17: 126 | X17: 127 | Y17: 128 | Z17: 129 | AA17: 130 | AB17: 131 | AC17: 132 | AD17: 133 | AE17: 134 | AF17: 135 | AG17: 136 | AH17: 137 | AI17: 138 | AJ17: =ROUND((AJ19-DoB)/DoY,0) -> 139 | AK17: 140 | AL17: 141 | AM17: 142 | AN17: 143 | AO17: 144 | AP17: 145 | AQ17: 146 | AR17: 147 | AS17: 148 | AT17: 149 | AU17: 150 | AV17: 151 | AW17: 152 | AX17: 153 | AY17: 154 | AZ17: 155 | BA17: 156 | BB17: 157 | BC17: 158 | BD17: 159 | BE17: 160 | BF17: 161 | BG17: 162 | BH17: 163 | BI17: 164 | BJ17: 165 | BK17: 166 | BL17: 167 | BM17: 168 | BN17: 169 | BO17: 170 | BP17: =ROUND((BP19-DoB)/DoY,0) -> 171 | BQ17: 172 | BR17: 173 | BS17: 174 | BT17: 175 | BU17: 176 | BV17: 177 | BW17: 178 | BX17: 179 | BY17: 180 | BZ17: 181 | CA17: 182 | CB17: 183 | CC17: 184 | CD17: 185 | CE17: 186 | CF17: 187 | CG17: 188 | CH17: 189 | CI17: 190
D18: 2007 | E18: =+D18+1 -> 2008 | F18: =+E18+1 -> 2009 | G18: 2010 | H18: 2011 | I18: 2012 | J18: 2013 | K18: 2014 | L18: 2015 | M18: 2016 | N18: 2017 | O18: 2018 | P18: 2019 | Q18: 2020 | R18: 2021 | S18: 2022 | T18: 2023 | U18: 2024 | V18: =+U18+1 -> 2025 | W18: 2026 | X18: 2027 | Y18: 2028 | Z18: 2029 | AA18: 2030 | AB18: 2031 | AC18: 2032 | AD18: 2033 | AE18: 2034 | AF18: 2035 | AG18: 2036 | AH18: 2037 | AI18: 2038 | AJ18: 2039 | AK18: 2040 | AL18: 2041 | AM18: 2042 | AN18: 2043 | AO18: 2044 | AP18: 2045 | AQ18: 2046 | AR18: 2047 | AS18: 2048 | AT18: 2049 | AU18: 2050 | AV18: 2051 | AW18: 2052 | AX18: 2053 | AY18: 2054 | AZ18: 2055 | BA18: 2056 | BB18: =+BA18+1 -> 2057 | BC18: 2058 | BD18: 2059 | BE18: 2060 | BF18: 2061 | BG18: 2062 | BH18: 2063 | BI18: 2064 | BJ18: 2065 | BK18: 2066 | BL18: 2067 | BM18: 2068 | BN18: 2069 | BO18: 2070 | BP18: 2071 | BQ18: 2072 | BR18: 2073 | BS18: 2074 | BT18: 2075 | BU18: 2076 | BV18: 2077 | BW18: 2078 | BX18: 2079 | BY18: 2080 | BZ18: 2081 | CA18: 2082 | CB18: 2083 | CC18: 2084 | CD18: 2085 | CE18: 2086 | CF18: 2087 | CG18: 2088 | CH18: 2089 | CI18: 2090
B19: Start Date of Year | D19: 2007-07-30 | E19: =DATE(E18,4,1) -> 2008-04-01 | F19: =DATE(F18,4,1) -> 2009-04-01 | G19: 2010-04-01 | H19: 2011-04-01 | I19: 2012-04-01 | J19: 2013-04-01 | K19: 2014-04-01 | L19: 2015-04-01 | M19: 2016-04-01 | N19: 2017-04-01 | O19: 2018-04-01 | P19: 2019-04-01 | Q19: 2020-04-01 | R19: 2021-04-01 | S19: 2022-04-01 | T19: 2023-04-01 | U19: 2024-04-01 | V19: =DATE(V18,4,1) -> 2025-04-01 | W19: 2026-04-01 | X19: 2027-04-01 | Y19: 2028-04-01 | Z19: 2029-04-01 | AA19: 2030-04-01 | AB19: 2031-04-01 | AC19: 2032-04-01 | AD19: 2033-04-01 | AE19: 2034-04-01 | AF19: 2035-04-01 | AG19: 2036-04-01 | AH19: 2037-04-01 | AI19: 2038-04-01 | AJ19: 2039-04-01 | AK19: 2040-04-01 | AL19: 2041-04-01 | AM19: 2042-04-01 | AN19: 2043-04-01 | AO19: 2044-04-01 | AP19: 2045-04-01 | AQ19: 2046-04-01 | AR19: 2047-04-01 | AS19: 2048-04-01 | AT19: 2049-04-01 | AU19: 2050-04-01 | AV19: 2051-04-01 | AW19: 2052-04-01 | AX19: 2053-04-01 | AY19: 2054-04-01 | AZ19: 2055-04-01 | BA19: 2056-04-01 | BB19: 2057-04-01 | BC19: 2058-04-01 | BD19: 2059-04-01 | BE19: 2060-04-01 | BF19: 2061-04-01 | BG19: 2062-04-01 | BH19: 2063-04-01 | BI19: =DATE(BI18,4,1) -> 2064-04-01 | BJ19: 2065-04-01 | BK19: 2066-04-01 | BL19: 2067-04-01 | BM19: 2068-04-01 | BN19: 2069-04-01 | BO19: 2070-04-01 | BP19: 2071-04-01 | BQ19: 2072-04-01 | BR19: 2073-04-01 | BS19: 2074-04-01 | BT19: 2075-04-01 | BU19: 2076-04-01 | BV19: 2077-04-01 | BW19: 2078-04-01 | BX19: 2079-04-01 | BY19: 2080-04-01 | BZ19: 2081-04-01 | CA19: 2082-04-01 | CB19: 2083-04-01 | CC19: 2084-04-01 | CD19: 2085-04-01 | CE19: 2086-04-01 | CF19: 2087-04-01 | CG19: 2088-04-01 | CH19: 2089-04-01 | CI19: 2090-04-01
B20: End Date of Year | D20: =DATE(D18+1,3,31) -> 2008-03-31 | E20: =DATE(E18+1,3,31) -> 2009-03-31 | F20: 2010-03-31 | G20: 2011-03-31 | H20: 2012-03-31 | I20: 2013-03-31 | J20: 2014-03-31 | K20: 2015-03-31 | L20: 2016-03-31 | M20: 2017-03-31 | N20: 2018-03-31 | O20: 2019-03-31 | P20: 2020-03-31 | Q20: 2021-03-31 | R20: 2022-03-31 | S20: 2023-03-31 | T20: 2024-03-31 | U20: 2025-03-31 | V20: =DATE(V18+1,3,31) -> 2026-03-31 | W20: 2027-03-31 | X20: 2028-03-31 | Y20: 2029-03-31 | Z20: 2030-03-31 | AA20: 2031-03-31 | AB20: 2032-03-31 | AC20: 2033-03-31 | AD20: 2034-03-31 | AE20: 2035-03-31 | AF20: 2036-03-31 | AG20: 2037-03-31 | AH20: 2038-03-31 | AI20: 2039-03-31 | AJ20: 2040-03-31 | AK20: 2041-03-31 | AL20: 2042-03-31 | AM20: 2043-03-31 | AN20: 2044-03-31 | AO20: 2045-03-31 | AP20: 2046-03-31 | AQ20: 2047-03-31 | AR20: 2048-03-31 | AS20: 2049-03-31 | AT20: 2050-03-31 | AU20: 2051-03-31 | AV20: 2052-03-31 | AW20: 2053-03-31 | AX20: 2054-03-31 | AY20: 2055-03-31 | AZ20: 2056-03-31 | BA20: 2057-03-31 | BB20: 2058-03-31 | BC20: 2059-03-31 | BD20: 2060-03-31 | BE20: 2061-03-31 | BF20: 2062-03-31 | BG20: 2063-03-31 | BH20: 2064-03-31 | BI20: =DATE(BI18+1,3,31) -> 2065-03-31 | BJ20: 2066-03-31 | BK20: 2067-03-31 | BL20: 2068-03-31 | BM20: 2069-03-31 | BN20: 2070-03-31 | BO20: 2071-03-31 | BP20: 2072-03-31 | BQ20: 2073-03-31 | BR20: 2074-03-31 | BS20: 2075-03-31 | BT20: 2076-03-31 | BU20: 2077-03-31 | BV20: 2078-03-31 | BW20: 2079-03-31 | BX20: 2080-03-31 | BY20: 2081-03-31 | BZ20: 2082-03-31 | CA20: 2083-03-31 | CB20: 2084-03-31 | CC20: 2085-03-31 | CD20: 2086-03-31 | CE20: 2087-03-31 | CF20: 2088-03-31 | CG20: 2089-03-31 | CH20: 2090-03-31 | CI20: 2091-03-31
B21: is today greater than the end of year? | D21: =Date_curr>D20 -> TRUE | E21: TRUE | F21: TRUE | G21: TRUE | H21: TRUE | I21: TRUE | J21: TRUE | K21: TRUE | L21: TRUE | M21: TRUE | N21: TRUE | O21: TRUE | P21: TRUE | Q21: TRUE | R21: TRUE | S21: TRUE | T21: TRUE | U21: TRUE | V21: =Date_curr>V20 -> TRUE | W21: FALSE | X21: FALSE | Y21: FALSE | Z21: FALSE | AA21: FALSE | AB21: FALSE | AC21: FALSE | AD21: FALSE | AE21: FALSE | AF21: FALSE | AG21: FALSE | AH21: FALSE | AI21: FALSE | AJ21: FALSE | AK21: FALSE | AL21: FALSE | AM21: FALSE | AN21: FALSE | AO21: FALSE | AP21: FALSE | AQ21: FALSE | AR21: FALSE | AS21: FALSE | AT21: FALSE | AU21: FALSE | AV21: FALSE | AW21: FALSE | AX21: FALSE | AY21: FALSE | AZ21: FALSE | BA21: FALSE | BB21: FALSE | BC21: FALSE | BD21: FALSE | BE21: FALSE | BF21: FALSE | BG21: FALSE | BH21: FALSE | BI21: =Date_curr>BI20 -> FALSE | BJ21: FALSE | BK21: FALSE | BL21: FALSE | BM21: FALSE | BN21: FALSE | BO21: FALSE | BP21: FALSE | BQ21: FALSE | BR21: FALSE | BS21: FALSE | BT21: FALSE | BU21: FALSE | BV21: FALSE | BW21: FALSE | BX21: FALSE | BY21: FALSE | BZ21: FALSE | CA21: FALSE | CB21: FALSE | CC21: FALSE | CD21: FALSE | CE21: FALSE | CF21: FALSE | CG21: FALSE | CH21: FALSE | CI21: FALSE
B22: did nuvos scheme service start before the end of the year? | D22: =$D13<E19 -> TRUE | E22: =$D13<F19 -> TRUE | F22: =$D13<G19 -> TRUE | G22: TRUE | H22: TRUE | I22: TRUE | J22: TRUE | K22: TRUE | L22: TRUE | M22: TRUE | N22: TRUE | O22: TRUE | P22: TRUE | Q22: TRUE | R22: TRUE | S22: TRUE | T22: TRUE | U22: TRUE | V22: =$D13<W19 -> TRUE | W22: TRUE | X22: TRUE | Y22: TRUE | Z22: TRUE | AA22: TRUE | AB22: TRUE | AC22: TRUE | AD22: TRUE | AE22: TRUE | AF22: TRUE | AG22: TRUE | AH22: TRUE | AI22: TRUE | AJ22: TRUE | AK22: TRUE | AL22: TRUE | AM22: TRUE | AN22: TRUE | AO22: TRUE | AP22: TRUE | AQ22: TRUE | AR22: TRUE | AS22: TRUE | AT22: TRUE | AU22: TRUE | AV22: TRUE | AW22: TRUE | AX22: TRUE | AY22: TRUE | AZ22: TRUE | BA22: TRUE | BB22: =$D13<BC19 -> TRUE | BC22: TRUE | BD22: TRUE | BE22: TRUE | BF22: TRUE | BG22: TRUE | BH22: TRUE | BI22: TRUE | BJ22: TRUE | BK22: TRUE | BL22: TRUE | BM22: TRUE | BN22: TRUE | BO22: TRUE | BP22: TRUE | BQ22: TRUE | BR22: TRUE | BS22: TRUE | BT22: TRUE | BU22: TRUE | BV22: TRUE | BW22: TRUE | BX22: TRUE | BY22: TRUE | BZ22: TRUE | CA22: TRUE | CB22: TRUE | CC22: TRUE | CD22: TRUE | CE22: TRUE | CF22: TRUE | CG22: TRUE | CH22: TRUE | CI22: FALSE
B23: still in nuvos at beginning of the year? | D23: =+D19<$D$15 -> FALSE | E23: =+E19<$D$15 -> FALSE | F23: FALSE | G23: FALSE | H23: FALSE | I23: FALSE | J23: FALSE | K23: FALSE | L23: FALSE | M23: FALSE | N23: FALSE | O23: FALSE | P23: FALSE | Q23: FALSE | R23: FALSE | S23: FALSE | T23: FALSE | U23: FALSE | V23: =+V19<$D$15 -> FALSE | W23: FALSE | X23: FALSE | Y23: FALSE | Z23: FALSE | AA23: FALSE | AB23: FALSE | AC23: FALSE | AD23: FALSE | AE23: FALSE | AF23: FALSE | AG23: FALSE | AH23: FALSE | AI23: FALSE | AJ23: FALSE | AK23: FALSE | AL23: FALSE | AM23: FALSE | AN23: FALSE | AO23: FALSE | AP23: FALSE | AQ23: FALSE | AR23: FALSE | AS23: FALSE | AT23: FALSE | AU23: FALSE | AV23: FALSE | AW23: FALSE | AX23: FALSE | AY23: FALSE | AZ23: FALSE | BA23: FALSE | BB23: FALSE | BC23: FALSE | BD23: FALSE | BE23: FALSE | BF23: FALSE | BG23: FALSE | BH23: FALSE | BI23: =+BI19<$D$15 -> FALSE | BJ23: FALSE | BK23: FALSE | BL23: FALSE | BM23: FALSE | BN23: FALSE | BO23: FALSE | BP23: FALSE | BQ23: FALSE | BR23: FALSE | BS23: FALSE | BT23: FALSE | BU23: FALSE | BV23: FALSE | BW23: FALSE | BX23: FALSE | BY23: FALSE | BZ23: FALSE | CA23: FALSE | CB23: FALSE | CC23: FALSE | CD23: FALSE | CE23: FALSE | CF23: FALSE | CG23: FALSE | CH23: FALSE | CI23: FALSE
B24: already included in statement? | D24: =AND($D$53,$D$51>D20) -> FALSE | E24: =AND($D$53,$D$51>E20) -> FALSE | F24: FALSE | G24: FALSE | H24: FALSE | I24: FALSE | J24: FALSE | K24: FALSE | L24: FALSE | M24: FALSE | N24: FALSE | O24: FALSE | P24: FALSE | Q24: FALSE | R24: FALSE | S24: FALSE | T24: FALSE | U24: FALSE | V24: =AND($D$53,$D$51>V20) -> FALSE | W24: FALSE | X24: FALSE | Y24: FALSE | Z24: FALSE | AA24: FALSE | AB24: FALSE | AC24: FALSE | AD24: FALSE | AE24: FALSE | AF24: FALSE | AG24: FALSE | AH24: FALSE | AI24: FALSE | AJ24: FALSE | AK24: FALSE | AL24: FALSE | AM24: FALSE | AN24: FALSE | AO24: FALSE | AP24: FALSE | AQ24: FALSE | AR24: FALSE | AS24: FALSE | AT24: FALSE | AU24: FALSE | AV24: FALSE | AW24: FALSE | AX24: FALSE | AY24: FALSE | AZ24: FALSE | BA24: FALSE | BB24: FALSE | BC24: FALSE | BD24: FALSE | BE24: FALSE | BF24: FALSE | BG24: FALSE | BH24: FALSE | BI24: =AND($D$53,$D$51>BI20) -> FALSE | BJ24: FALSE | BK24: FALSE | BL24: FALSE | BM24: FALSE | BN24: FALSE | BO24: FALSE | BP24: FALSE | BQ24: FALSE | BR24: FALSE | BS24: FALSE | BT24: FALSE | BU24: FALSE | BV24: FALSE | BW24: FALSE | BX24: FALSE | BY24: FALSE | BZ24: FALSE | CA24: FALSE | CB24: FALSE | CC24: FALSE | CD24: FALSE | CE24: FALSE | CF24: FALSE | CG24: FALSE | CH24: FALSE | CI24: FALSE
B25: service during year part 1 | D25: =+MAX((MIN($D$15,D20)-MAX(D19,$D$13))/DoY,0) -> 0 | E25: 0 | F25: 0 | G25: 0 | H25: 0 | I25: 0 | J25: 0 | K25: 0 | L25: 0 | M25: 0 | N25: 0 | O25: 0 | P25: 0 | Q25: 0 | R25: 0 | S25: 0 | T25: 0 | U25: 0 | V25: =+MAX((MIN($D$15,V20)-MAX(V19,$D$13))/DoY,0) -> 0 | W25: 0 | X25: 0 | Y25: 0 | Z25: 0 | AA25: 0 | AB25: 0 | AC25: 0 | AD25: 0 | AE25: 0 | AF25: 0 | AG25: 0 | AH25: 0 | AI25: 0 | AJ25: 0 | AK25: 0 | AL25: 0 | AM25: 0 | AN25: 0 | AO25: 0 | AP25: 0 | AQ25: 0 | AR25: 0 | AS25: 0 | AT25: 0 | AU25: 0 | AV25: 0 | AW25: 0 | AX25: 0 | AY25: 0 | AZ25: 0 | BA25: 0 | BB25: 0 | BC25: 0 | BD25: 0 | BE25: 0 | BF25: 0 | BG25: 0 | BH25: 0 | BI25: =+MAX((MIN($D$15,BI20)-MAX(BI19,$D$13))/DoY,0) -> 0 | BJ25: 0 | BK25: 0 | BL25: 0 | BM25: 0 | BN25: 0 | BO25: 0 | BP25: 0 | BQ25: 0 | BR25: 0 | BS25: 0 | BT25: 0 | BU25: 0 | BV25: 0 | BW25: 0 | BX25: 0 | BY25: 0 | BZ25: 0 | CA25: 0 | CB25: 0 | CC25: 0 | CD25: 0 | CE25: 0 | CF25: 0 | CG25: 0 | CH25: 0 | CI25: 0
B26: service during year part 2 | D26: =+IF(AND(D22,D23,NOT(D24)),D25,0)*IF(OR(Scheme_Full="alpha",Scheme_Full="nuvos",Scheme_Full=""),1,IF(PT_Status="some part-time", future_PTP,1)) -> 0 | E26: 0 | F26: 0 | G26: 0 | H26: 0 | I26: 0 | J26: 0 | K26: 0 | L26: 0 | M26: 0 | N26: 0 | O26: 0 | P26: 0 | Q26: 0 | R26: 0 | S26: 0 | T26: 0 | U26: 0 | V26: 0 | W26: 0 | X26: 0 | Y26: 0 | Z26: 0 | AA26: 0 | AB26: 0 | AC26: 0 | AD26: 0 | AE26: 0 | AF26: 0 | AG26: 0 | AH26: 0 | AI26: 0 | AJ26: =+IF(AND(AJ22,AJ23,NOT(AJ24)),AJ25,0)*IF(OR(Scheme_Full="alpha",Scheme_Full="nuvos",Scheme_Full=""),1,IF(PT_Status="some part-time", future_PTP,1)) -> 0 | AK26: 0 | AL26: 0 | AM26: 0 | AN26: 0 | AO26: 0 | AP26: 0 | AQ26: 0 | AR26: 0 | AS26: 0 | AT26: 0 | AU26: 0 | AV26: 0 | AW26: 0 | AX26: 0 | AY26: 0 | AZ26: 0 | BA26: 0 | BB26: 0 | BC26: 0 | BD26: 0 | BE26: 0 | BF26: 0 | BG26: 0 | BH26: 0 | BI26: 0 | BJ26: 0 | BK26: 0 | BL26: 0 | BM26: 0 | BN26: 0 | BO26: 0 | BP26: =+IF(AND(BP22,BP23,NOT(BP24)),BP25,0)*IF(OR(Scheme_Full="alpha",Scheme_Full="nuvos",Scheme_Full=""),1,IF(PT_Status="some part-time", future_PTP,1)) -> 0 | BQ26: 0 | BR26: 0 | BS26: 0 | BT26: 0 | BU26: 0 | BV26: 0 | BW26: 0 | BX26: 0 | BY26: 0 | BZ26: 0 | CA26: 0 | CB26: 0 | CC26: 0 | CD26: 0 | CE26: 0 | CF26: 0 | CG26: 0 | CH26: 0 | CI26: 0
B27: No years to wind back current salary | D27: =MAX(0,(StartScheme_Current-D19)/DoY) -> 18.67214237 | E27: 17.99863107 | F27: 16.99931554 | G27: 16 | H27: 15.00068446 | I27: 13.99863107 | J27: 12.99931554 | K27: 12 | L27: 11.00068446 | M27: 9.998631075 | N27: 8.999315537 | O27: 8 | P27: 7.000684463 | Q27: 5.998631075 | R27: 4.999315537 | S27: 4 | T27: 3.000684463 | U27: 1.998631075 | V27: 0.9993155373 | W27: 0 | X27: 0 | Y27: 0 | Z27: 0 | AA27: 0 | AB27: 0 | AC27: 0 | AD27: 0 | AE27: 0 | AF27: 0 | AG27: 0 | AH27: 0 | AI27: 0 | AJ27: =MAX(0,(StartScheme_Current-AJ19)/DoY) -> 0 | AK27: 0 | AL27: 0 | AM27: 0 | AN27: 0 | AO27: 0 | AP27: 0 | AQ27: 0 | AR27: 0 | AS27: 0 | AT27: 0 | AU27: 0 | AV27: 0 | AW27: 0 | AX27: 0 | AY27: 0 | AZ27: 0 | BA27: 0 | BB27: 0 | BC27: 0 | BD27: 0 | BE27: 0 | BF27: 0 | BG27: 0 | BH27: 0 | BI27: 0 | BJ27: 0 | BK27: 0 | BL27: 0 | BM27: 0 | BN27: 0 | BO27: 0 | BP27: =MAX(0,(StartScheme_Current-BP19)/DoY) -> 0 | BQ27: 0 | BR27: 0 | BS27: 0 | BT27: 0 | BU27: 0 | BV27: 0 | BW27: 0 | BX27: 0 | BY27: 0 | BZ27: 0 | CA27: 0 | CB27: 0 | CC27: 0 | CD27: 0 | CE27: 0 | CF27: 0 | CG27: 0 | CH27: 0 | CI27: 0
B28: ="Salary " & basis1 -> Salary CPI + 0.0% | D28: =IF(D19=StartScheme_Current,CurrentSal,IF(D27>0,CurrentSal/(1+cpi_2)^D27,IF(D27=0,C28*(1+cpi_1),CurrentSal))) -> 0 | E28: 0 | F28: 0 | G28: 0 | H28: 0 | I28: 0 | J28: 0 | K28: 0 | L28: 0 | M28: 0 | N28: 0 | O28: 0 | P28: 0 | Q28: 0 | R28: 0 | S28: 0 | T28: 0 | U28: 0 | V28: 0 | W28: 0 | X28: 0 | Y28: 0 | Z28: 0 | AA28: 0 | AB28: 0 | AC28: 0 | AD28: 0 | AE28: 0 | AF28: 0 | AG28: 0 | AH28: 0 | AI28: 0 | AJ28: =IF(AJ19=StartScheme_Current,CurrentSal,IF(AJ27>0,CurrentSal/(1+cpi_2)^AJ27,IF(AJ27=0,AI28*(1+cpi_1),CurrentSal))) -> 0 | AK28: 0 | AL28: 0 | AM28: 0 | AN28: 0 | AO28: 0 | AP28: 0 | AQ28: 0 | AR28: 0 | AS28: 0 | AT28: 0 | AU28: 0 | AV28: 0 | AW28: 0 | AX28: 0 | AY28: 0 | AZ28: 0 | BA28: 0 | BB28: 0 | BC28: 0 | BD28: 0 | BE28: 0 | BF28: 0 | BG28: 0 | BH28: 0 | BI28: 0 | BJ28: 0 | BK28: 0 | BL28: 0 | BM28: 0 | BN28: 0 | BO28: 0 | BP28: =IF(BP19=StartScheme_Current,CurrentSal,IF(BP27>0,CurrentSal/(1+cpi_2)^BP27,IF(BP27=0,BO28*(1+cpi_1),CurrentSal))) -> 0 | BQ28: 0 | BR28: 0 | BS28: 0 | BT28: 0 | BU28: 0 | BV28: 0 | BW28: 0 | BX28: 0 | BY28: 0 | BZ28: 0 | CA28: 0 | CB28: 0 | CC28: 0 | CD28: 0 | CE28: 0 | CF28: 0 | CG28: 0 | CH28: 0 | CI28: 0
B29: ="Salary " & basis2 -> Salary CPI + 1.0% | D29: =IF(D19=StartScheme_Current,CurrentSal,IF(D27>0,CurrentSal/(1+cpi_2)^D27,IF(D27=0,C29*(1+cpi_2),CurrentSal))) -> 0 | E29: 0 | F29: 0 | G29: 0 | H29: 0 | I29: 0 | J29: 0 | K29: 0 | L29: 0 | M29: 0 | N29: 0 | O29: 0 | P29: 0 | Q29: 0 | R29: 0 | S29: 0 | T29: 0 | U29: 0 | V29: 0 | W29: 0 | X29: 0 | Y29: 0 | Z29: 0 | AA29: 0 | AB29: 0 | AC29: 0 | AD29: 0 | AE29: 0 | AF29: 0 | AG29: 0 | AH29: 0 | AI29: 0 | AJ29: =IF(AJ19=StartScheme_Current,CurrentSal,IF(AJ27>0,CurrentSal/(1+cpi_2)^AJ27,IF(AJ27=0,AI29*(1+cpi_2),CurrentSal))) -> 0 | AK29: 0 | AL29: 0 | AM29: 0 | AN29: 0 | AO29: 0 | AP29: 0 | AQ29: 0 | AR29: 0 | AS29: 0 | AT29: 0 | AU29: 0 | AV29: 0 | AW29: 0 | AX29: 0 | AY29: 0 | AZ29: 0 | BA29: 0 | BB29: 0 | BC29: 0 | BD29: 0 | BE29: 0 | BF29: 0 | BG29: 0 | BH29: 0 | BI29: 0 | BJ29: 0 | BK29: 0 | BL29: 0 | BM29: 0 | BN29: 0 | BO29: 0 | BP29: =IF(BP19=StartScheme_Current,CurrentSal,IF(BP27>0,CurrentSal/(1+cpi_2)^BP27,IF(BP27=0,BO29*(1+cpi_2),CurrentSal))) -> 0 | BQ29: 0 | BR29: 0 | BS29: 0 | BT29: 0 | BU29: 0 | BV29: 0 | BW29: 0 | BX29: 0 | BY29: 0 | BZ29: 0 | CA29: 0 | CB29: 0 | CC29: 0 | CD29: 0 | CE29: 0 | CF29: 0 | CG29: 0 | CH29: 0 | CI29: 0
B30: ="Salary " & basis3 -> Salary CPI + 2.0% | D30: =IF(D19=StartScheme_Current,CurrentSal,IF(D27>0,CurrentSal/(1+cpi_2)^D27,IF(D27=0,C30*(1+cpi_3),CurrentSal))) -> 0 | E30: 0 | F30: 0 | G30: 0 | H30: 0 | I30: 0 | J30: 0 | K30: 0 | L30: 0 | M30: 0 | N30: 0 | O30: 0 | P30: 0 | Q30: 0 | R30: 0 | S30: 0 | T30: 0 | U30: 0 | V30: 0 | W30: 0 | X30: 0 | Y30: 0 | Z30: 0 | AA30: 0 | AB30: 0 | AC30: 0 | AD30: 0 | AE30: 0 | AF30: 0 | AG30: 0 | AH30: 0 | AI30: 0 | AJ30: =IF(AJ19=StartScheme_Current,CurrentSal,IF(AJ27>0,CurrentSal/(1+cpi_2)^AJ27,IF(AJ27=0,AI30*(1+cpi_3),CurrentSal))) -> 0 | AK30: 0 | AL30: 0 | AM30: 0 | AN30: 0 | AO30: 0 | AP30: 0 | AQ30: 0 | AR30: 0 | AS30: 0 | AT30: 0 | AU30: 0 | AV30: 0 | AW30: 0 | AX30: 0 | AY30: 0 | AZ30: 0 | BA30: 0 | BB30: 0 | BC30: 0 | BD30: 0 | BE30: 0 | BF30: 0 | BG30: 0 | BH30: 0 | BI30: 0 | BJ30: 0 | BK30: 0 | BL30: 0 | BM30: 0 | BN30: 0 | BO30: 0 | BP30: =IF(BP19=StartScheme_Current,CurrentSal,IF(BP27>0,CurrentSal/(1+cpi_2)^BP27,IF(BP27=0,BO30*(1+cpi_3),CurrentSal))) -> 0 | BQ30: 0 | BR30: 0 | BS30: 0 | BT30: 0 | BU30: 0 | BV30: 0 | BW30: 0 | BX30: 0 | BY30: 0 | BZ30: 0 | CA30: 0 | CB30: 0 | CC30: 0 | CD30: 0 | CE30: 0 | CF30: 0 | CG30: 0 | CH30: 0 | CI30: 0
B31: ="Accrued CARE benefit " & basis1 -> Accrued CARE benefit CPI + 0.0% | D31: =D28*Acc_nuvos*D26 -> 0 | E31: =E28*Acc_nuvos*E26 -> 0 | F31: 0 | G31: 0 | H31: 0 | I31: 0 | J31: 0 | K31: 0 | L31: 0 | M31: 0 | N31: 0 | O31: 0 | P31: 0 | Q31: 0 | R31: 0 | S31: 0 | T31: 0 | U31: 0 | V31: 0 | W31: 0 | X31: 0 | Y31: 0 | Z31: 0 | AA31: 0 | AB31: 0 | AC31: 0 | AD31: 0 | AE31: 0 | AF31: 0 | AG31: 0 | AH31: 0 | AI31: 0 | AJ31: =AJ28*Acc_nuvos*AJ26 -> 0 | AK31: 0 | AL31: 0 | AM31: 0 | AN31: 0 | AO31: 0 | AP31: 0 | AQ31: 0 | AR31: 0 | AS31: 0 | AT31: 0 | AU31: 0 | AV31: 0 | AW31: 0 | AX31: 0 | AY31: 0 | AZ31: 0 | BA31: 0 | BB31: 0 | BC31: 0 | BD31: 0 | BE31: 0 | BF31: 0 | BG31: 0 | BH31: 0 | BI31: 0 | BJ31: 0 | BK31: 0 | BL31: 0 | BM31: 0 | BN31: 0 | BO31: 0 | BP31: =BP28*Acc_nuvos*BP26 -> 0 | BQ31: 0 | BR31: 0 | BS31: 0 | BT31: 0 | BU31: 0 | BV31: 0 | BW31: 0 | BX31: 0 | BY31: 0 | BZ31: 0 | CA31: 0 | CB31: 0 | CC31: 0 | CD31: 0 | CE31: 0 | CF31: 0 | CG31: 0 | CH31: 0 | CI31: 0
B32: ="Accrued CARE benefit " & basis2 -> Accrued CARE benefit CPI + 1.0% | D32: =D29*Acc_nuvos*D26 -> 0 | E32: 0 | F32: 0 | G32: 0 | H32: 0 | I32: 0 | J32: 0 | K32: 0 | L32: 0 | M32: 0 | N32: 0 | O32: 0 | P32: 0 | Q32: 0 | R32: 0 | S32: 0 | T32: 0 | U32: 0 | V32: 0 | W32: 0 | X32: 0 | Y32: 0 | Z32: 0 | AA32: 0 | AB32: 0 | AC32: 0 | AD32: 0 | AE32: 0 | AF32: 0 | AG32: 0 | AH32: 0 | AI32: 0 | AJ32: =AJ29*Acc_nuvos*AJ26 -> 0 | AK32: 0 | AL32: 0 | AM32: 0 | AN32: 0 | AO32: 0 | AP32: 0 | AQ32: 0 | AR32: 0 | AS32: 0 | AT32: 0 | AU32: 0 | AV32: 0 | AW32: 0 | AX32: 0 | AY32: 0 | AZ32: 0 | BA32: 0 | BB32: 0 | BC32: 0 | BD32: 0 | BE32: 0 | BF32: 0 | BG32: 0 | BH32: 0 | BI32: 0 | BJ32: 0 | BK32: 0 | BL32: 0 | BM32: 0 | BN32: 0 | BO32: 0 | BP32: =BP29*Acc_nuvos*BP26 -> 0 | BQ32: 0 | BR32: 0 | BS32: 0 | BT32: 0 | BU32: 0 | BV32: 0 | BW32: 0 | BX32: 0 | BY32: 0 | BZ32: 0 | CA32: 0 | CB32: 0 | CC32: 0 | CD32: 0 | CE32: 0 | CF32: 0 | CG32: 0 | CH32: 0 | CI32: 0
B33: ="Accrued CARE benefit " & basis3 -> Accrued CARE benefit CPI + 2.0% | D33: =D30*Acc_nuvos*D26 -> 0 | E33: 0 | F33: 0 | G33: 0 | H33: 0 | I33: 0 | J33: 0 | K33: 0 | L33: 0 | M33: 0 | N33: 0 | O33: 0 | P33: 0 | Q33: 0 | R33: 0 | S33: 0 | T33: 0 | U33: 0 | V33: 0 | W33: 0 | X33: 0 | Y33: 0 | Z33: 0 | AA33: 0 | AB33: 0 | AC33: 0 | AD33: 0 | AE33: 0 | AF33: 0 | AG33: 0 | AH33: 0 | AI33: 0 | AJ33: =AJ30*Acc_nuvos*AJ26 -> 0 | AK33: 0 | AL33: 0 | AM33: 0 | AN33: 0 | AO33: 0 | AP33: 0 | AQ33: 0 | AR33: 0 | AS33: 0 | AT33: 0 | AU33: 0 | AV33: 0 | AW33: 0 | AX33: 0 | AY33: 0 | AZ33: 0 | BA33: 0 | BB33: 0 | BC33: 0 | BD33: 0 | BE33: 0 | BF33: 0 | BG33: 0 | BH33: 0 | BI33: 0 | BJ33: 0 | BK33: 0 | BL33: 0 | BM33: 0 | BN33: 0 | BO33: 0 | BP33: =BP30*Acc_nuvos*BP26 -> 0 | BQ33: 0 | BR33: 0 | BS33: 0 | BT33: 0 | BU33: 0 | BV33: 0 | BW33: 0 | BX33: 0 | BY33: 0 | BZ33: 0 | CA33: 0 | CB33: 0 | CC33: 0 | CD33: 0 | CE33: 0 | CF33: 0 | CG33: 0 | CH33: 0 | CI33: 0
B34: ="CARE revalued to date of retirement " & basis1 -> CARE revalued to date of retirement CPI + 0.0% | D34: =D31*(1+care_rev)^((DoR-D20)/DoY) -> 0 | E34: =E31*(1+care_rev)^((DoR-E20)/DoY) -> 0 | F34: =F31*(1+care_rev)^((DoR-F20)/DoY) -> 0 | G34: =G31*(1+care_rev)^((DoR-G20)/DoY) -> 0 | H34: =H31*(1+care_rev)^((DoR-H20)/DoY) -> 0 | I34: 0 | J34: 0 | K34: 0 | L34: 0 | M34: 0 | N34: 0 | O34: 0 | P34: 0 | Q34: 0 | R34: =R31*(1+care_rev)^((DoR-R20)/DoY) -> 0 | S34: 0 | T34: 0 | U34: 0 | V34: 0 | W34: 0 | X34: 0 | Y34: 0 | Z34: 0 | AA34: 0 | AB34: 0 | AC34: 0 | AD34: 0 | AE34: 0 | AF34: 0 | AG34: 0 | AH34: 0 | AI34: 0 | AJ34: 0 | AK34: 0 | AL34: 0 | AM34: 0 | AN34: 0 | AO34: 0 | AP34: 0 | AQ34: 0 | AR34: =AR31*(1+care_rev)^((DoR-AR20)/DoY) -> 0 | AS34: 0 | AT34: 0 | AU34: 0 | AV34: 0 | AW34: 0 | AX34: 0 | AY34: 0 | AZ34: 0 | BA34: 0 | BB34: 0 | BC34: 0 | BD34: 0 | BE34: 0 | BF34: 0 | BG34: 0 | BH34: 0 | BI34: 0 | BJ34: 0 | BK34: 0 | BL34: 0 | BM34: 0 | BN34: 0 | BO34: 0 | BP34: 0 | BQ34: 0 | BR34: 0 | BS34: 0 | BT34: 0 | BU34: 0 | BV34: 0 | BW34: 0 | BX34: 0 | BY34: 0 | BZ34: 0 | CA34: 0 | CB34: 0 | CC34: 0 | CD34: 0 | CE34: 0 | CF34: 0 | CG34: 0 | CH34: 0 | CI34: 0
B35: ="CARE revalued to date of retirement " & basis2 -> CARE revalued to date of retirement CPI + 1.0% | D35: =D32*(1+care_rev)^((DoR-D20)/DoY) -> 0 | E35: 0 | F35: 0 | G35: 0 | H35: 0 | I35: 0 | J35: 0 | K35: 0 | L35: 0 | M35: 0 | N35: 0 | O35: 0 | P35: 0 | Q35: 0 | R35: 0 | S35: 0 | T35: 0 | U35: 0 | V35: 0 | W35: 0 | X35: 0 | Y35: 0 | Z35: 0 | AA35: 0 | AB35: 0 | AC35: 0 | AD35: 0 | AE35: 0 | AF35: 0 | AG35: 0 | AH35: 0 | AI35: 0 | AJ35: =AJ32*(1+care_rev)^((DoR-AJ20)/DoY) -> 0 | AK35: 0 | AL35: 0 | AM35: 0 | AN35: 0 | AO35: 0 | AP35: 0 | AQ35: 0 | AR35: 0 | AS35: 0 | AT35: 0 | AU35: 0 | AV35: 0 | AW35: 0 | AX35: 0 | AY35: 0 | AZ35: 0 | BA35: 0 | BB35: 0 | BC35: 0 | BD35: 0 | BE35: 0 | BF35: 0 | BG35: 0 | BH35: 0 | BI35: 0 | BJ35: 0 | BK35: 0 | BL35: 0 | BM35: 0 | BN35: 0 | BO35: 0 | BP35: =BP32*(1+care_rev)^((DoR-BP20)/DoY) -> 0 | BQ35: 0 | BR35: 0 | BS35: 0 | BT35: 0 | BU35: 0 | BV35: 0 | BW35: 0 | BX35: 0 | BY35: 0 | BZ35: 0 | CA35: 0 | CB35: 0 | CC35: 0 | CD35: 0 | CE35: 0 | CF35: 0 | CG35: 0 | CH35: 0 | CI35: 0
B36: ="CARE revalued to date of retirement " & basis3 -> CARE revalued to date of retirement CPI + 2.0% | D36: =D33*(1+care_rev)^((DoR-D20)/DoY) -> 0 | E36: 0 | F36: 0 | G36: 0 | H36: 0 | I36: 0 | J36: 0 | K36: 0 | L36: 0 | M36: 0 | N36: 0 | O36: 0 | P36: 0 | Q36: 0 | R36: 0 | S36: 0 | T36: 0 | U36: 0 | V36: 0 | W36: 0 | X36: 0 | Y36: 0 | Z36: 0 | AA36: 0 | AB36: 0 | AC36: 0 | AD36: 0 | AE36: 0 | AF36: 0 | AG36: 0 | AH36: 0 | AI36: 0 | AJ36: =AJ33*(1+care_rev)^((DoR-AJ20)/DoY) -> 0 | AK36: 0 | AL36: 0 | AM36: 0 | AN36: 0 | AO36: 0 | AP36: 0 | AQ36: 0 | AR36: 0 | AS36: 0 | AT36: 0 | AU36: 0 | AV36: 0 | AW36: 0 | AX36: 0 | AY36: 0 | AZ36: 0 | BA36: 0 | BB36: 0 | BC36: 0 | BD36: 0 | BE36: 0 | BF36: 0 | BG36: 0 | BH36: 0 | BI36: 0 | BJ36: 0 | BK36: 0 | BL36: 0 | BM36: 0 | BN36: 0 | BO36: 0 | BP36: =BP33*(1+care_rev)^((DoR-BP20)/DoY) -> 0 | BQ36: 0 | BR36: 0 | BS36: 0 | BT36: 0 | BU36: 0 | BV36: 0 | BW36: 0 | BX36: 0 | BY36: 0 | BZ36: 0 | CA36: 0 | CB36: 0 | CC36: 0 | CD36: 0 | CE36: 0 | CF36: 0 | CG36: 0 | CH36: 0 | CI36: 0
B37: ERF | D37: =IFERROR(VLOOKUP(RA_month,ERF01_table,RA_Year-52,FALSE),1) -> 1
B38: LRF projected | D38: =IFERROR(IF(D17>65,HLOOKUP(D17,LRF!$C$43:$R$44,2,FALSE)/HLOOKUP(D17-1,LRF!$C$43:$R$44,2,FALSE),1),1)-1 -> 0 | E38: =IFERROR(IF(E17>65,HLOOKUP(E17,LRF!$C$43:$R$44,2,FALSE)/HLOOKUP(E17-1,LRF!$C$43:$R$44,2,FALSE),1),1)-1 -> 0 | F38: =IFERROR(IF(F17>65,HLOOKUP(F17,LRF!$C$43:$R$44,2,FALSE)/HLOOKUP(F17-1,LRF!$C$43:$R$44,2,FALSE),1),1)-1 -> 0 | G38: =IFERROR(IF(G17>65,HLOOKUP(G17,LRF!$C$43:$R$44,2,FALSE)/HLOOKUP(G17-1,LRF!$C$43:$R$44,2,FALSE),1),1)-1 -> 0 | H38: =IFERROR(IF(H17>65,HLOOKUP(H17,LRF!$C$43:$R$44,2,FALSE)/HLOOKUP(H17-1,LRF!$C$43:$R$44,2,FALSE),1),1)-1 -> 0 | I38: =IFERROR(IF(I17>65,HLOOKUP(I17,LRF!$C$43:$R$44,2,FALSE)/HLOOKUP(I17-1,LRF!$C$43:$R$44,2,FALSE),1),1)-1 -> 0 | J38: =IFERROR(IF(J17>65,HLOOKUP(J17,LRF!$C$43:$R$44,2,FALSE)/HLOOKUP(J17-1,LRF!$C$43:$R$44,2,FALSE),1),1)-1 -> 0 | K38: =IFERROR(IF(K17>65,HLOOKUP(K17,LRF!$C$43:$R$44,2,FALSE)/HLOOKUP(K17-1,LRF!$C$43:$R$44,2,FALSE),1),1)-1 -> 0 | L38: =IFERROR(IF(L17>65,HLOOKUP(L17,LRF!$C$43:$R$44,2,FALSE)/HLOOKUP(L17-1,LRF!$C$43:$R$44,2,FALSE),1),1)-1 -> 0 | M38: =IFERROR(IF(M17>65,HLOOKUP(M17,LRF!$C$43:$R$44,2,FALSE)/HLOOKUP(M17-1,LRF!$C$43:$R$44,2,FALSE),1),1)-1 -> 0 | N38: =IFERROR(IF(N17>65,HLOOKUP(N17,LRF!$C$43:$R$44,2,FALSE)/HLOOKUP(N17-1,LRF!$C$43:$R$44,2,FALSE),1),1)-1 -> 0 | O38: =IFERROR(IF(O17>65,HLOOKUP(O17,LRF!$C$43:$R$44,2,FALSE)/HLOOKUP(O17-1,LRF!$C$43:$R$44,2,FALSE),1),1)-1 -> 0 | P38: =IFERROR(IF(P17>65,HLOOKUP(P17,LRF!$C$43:$R$44,2,FALSE)/HLOOKUP(P17-1,LRF!$C$43:$R$44,2,FALSE),1),1)-1 -> 0 | Q38: =IFERROR(IF(Q17>65,HLOOKUP(Q17,LRF!$C$43:$R$44,2,FALSE)/HLOOKUP(Q17-1,LRF!$C$43:$R$44,2,FALSE),1),1)-1 -> 0 | R38: =IFERROR(IF(R17>65,HLOOKUP(R17,LRF!$C$43:$R$44,2,FALSE)/HLOOKUP(R17-1,LRF!$C$43:$R$44,2,FALSE),1),1)-1 -> 0 | S38: =IFERROR(IF(S17>65,HLOOKUP(S17,LRF!$C$43:$R$44,2,FALSE)/HLOOKUP(S17-1,LRF!$C$43:$R$44,2,FALSE),1),1)-1 -> 0 | T38: =IFERROR(IF(T17>65,HLOOKUP(T17,LRF!$C$43:$R$44,2,FALSE)/HLOOKUP(T17-1,LRF!$C$43:$R$44,2,FALSE),1),1)-1 -> 0 | U38: =IFERROR(IF(U17>65,HLOOKUP(U17,LRF!$C$43:$R$44,2,FALSE)/HLOOKUP(U17-1,LRF!$C$43:$R$44,2,FALSE),1),1)-1 -> 0 | V38: =IFERROR(IF(V17>65,HLOOKUP(V17,LRF!$C$43:$R$44,2,FALSE)/HLOOKUP(V17-1,LRF!$C$43:$R$44,2,FALSE),1),1)-1 -> 0 | W38: =IFERROR(IF(W17>65,HLOOKUP(W17,LRF!$C$43:$R$44,2,FALSE)/HLOOKUP(W17-1,LRF!$C$43:$R$44,2,FALSE),1),1)-1 -> 0 | X38: =IFERROR(IF(X17>65,HLOOKUP(X17,LRF!$C$43:$R$44,2,FALSE)/HLOOKUP(X17-1,LRF!$C$43:$R$44,2,FALSE),1),1)-1 -> 0 | Y38: =IFERROR(IF(Y17>65,HLOOKUP(Y17,LRF!$C$43:$R$44,2,FALSE)/HLOOKUP(Y17-1,LRF!$C$43:$R$44,2,FALSE),1),1)-1 -> 0 | Z38: =IFERROR(IF(Z17>65,HLOOKUP(Z17,LRF!$C$43:$R$44,2,FALSE)/HLOOKUP(Z17-1,LRF!$C$43:$R$44,2,FALSE),1),1)-1 -> 0 | AA38: =IFERROR(IF(AA17>65,HLOOKUP(AA17,LRF!$C$43:$R$44,2,FALSE)/HLOOKUP(AA17-1,LRF!$C$43:$R$44,2,FALSE),1),1)-1 -> 0 | AB38: =IFERROR(IF(AB17>65,HLOOKUP(AB17,LRF!$C$43:$R$44,2,FALSE)/HLOOKUP(AB17-1,LRF!$C$43:$R$44,2,FALSE),1),1)-1 -> 0 | AC38: =IFERROR(IF(AC17>65,HLOOKUP(AC17,LRF!$C$43:$R$44,2,FALSE)/HLOOKUP(AC17-1,LRF!$C$43:$R$44,2,FALSE),1),1)-1 -> 0 | AD38: =IFERROR(IF(AD17>65,HLOOKUP(AD17,LRF!$C$43:$R$44,2,FALSE)/HLOOKUP(AD17-1,LRF!$C$43:$R$44,2,FALSE),1),1)-1 -> 0 | AE38: =IFERROR(IF(AE17>65,HLOOKUP(AE17,LRF!$C$43:$R$44,2,FALSE)/HLOOKUP(AE17-1,LRF!$C$43:$R$44,2,FALSE),1),1)-1 -> 0 | AF38: =IFERROR(IF(AF17>65,HLOOKUP(AF17,LRF!$C$43:$R$44,2,FALSE)/HLOOKUP(AF17-1,LRF!$C$43:$R$44,2,FALSE),1),1)-1 -> 0 | AG38: =IFERROR(IF(AG17>65,HLOOKUP(AG17,LRF!$C$43:$R$44,2,FALSE)/HLOOKUP(AG17-1,LRF!$C$43:$R$44,2,FALSE),1),1)-1 -> 0 | AH38: =IFERROR(IF(AH17>65,HLOOKUP(AH17,LRF!$C$43:$R$44,2,FALSE)/HLOOKUP(AH17-1,LRF!$C$43:$R$44,2,FALSE),1),1)-1 -> 0 | AI38: =IFERROR(IF(AI17>65,HLOOKUP(AI17,LRF!$C$43:$R$44,2,FALSE)/HLOOKUP(AI17-1,LRF!$C$43:$R$44,2,FALSE),1),1)-1 -> 0 | AJ38: =IFERROR(IF(AJ17>65,HLOOKUP(AJ17,LRF!$C$43:$R$44,2,FALSE)/HLOOKUP(AJ17-1,LRF!$C$43:$R$44,2,FALSE),1),1)-1 -> 0 | AK38: =IFERROR(IF(AK17>65,HLOOKUP(AK17,LRF!$C$43:$R$44,2,FALSE)/HLOOKUP(AK17-1,LRF!$C$43:$R$44,2,FALSE),1),1)-1 -> 0 | AL38: =IFERROR(IF(AL17>65,HLOOKUP(AL17,LRF!$C$43:$R$44,2,FALSE)/HLOOKUP(AL17-1,LRF!$C$43:$R$44,2,FALSE),1),1)-1 -> 0 | AM38: =IFERROR(IF(AM17>65,HLOOKUP(AM17,LRF!$C$43:$R$44,2,FALSE)/HLOOKUP(AM17-1,LRF!$C$43:$R$44,2,FALSE),1),1)-1 -> 0 | AN38: =IFERROR(IF(AN17>65,HLOOKUP(AN17,LRF!$C$43:$R$44,2,FALSE)/HLOOKUP(AN17-1,LRF!$C$43:$R$44,2,FALSE),1),1)-1 -> 0 | AO38: =IFERROR(IF(AO17>65,HLOOKUP(AO17,LRF!$C$43:$R$44,2,FALSE)/HLOOKUP(AO17-1,LRF!$C$43:$R$44,2,FALSE),1),1)-1 -> 0 | AP38: =IFERROR(IF(AP17>65,HLOOKUP(AP17,LRF!$C$43:$R$44,2,FALSE)/HLOOKUP(AP17-1,LRF!$C$43:$R$44,2,FALSE),1),1)-1 -> 0 | AQ38: =IFERROR(IF(AQ17>65,HLOOKUP(AQ17,LRF!$C$43:$R$44,2,FALSE)/HLOOKUP(AQ17-1,LRF!$C$43:$R$44,2,FALSE),1),1)-1 -> 0 | AR38: =IFERROR(IF(AR17>65,HLOOKUP(AR17,LRF!$C$43:$R$44,2,FALSE)/HLOOKUP(AR17-1,LRF!$C$43:$R$44,2,FALSE),1),1)-1 -> 0 | AS38: =IFERROR(IF(AS17>65,HLOOKUP(AS17,LRF!$C$43:$R$44,2,FALSE)/HLOOKUP(AS17-1,LRF!$C$43:$R$44,2,FALSE),1),1)-1 -> 0 | AT38: =IFERROR(IF(AT17>65,HLOOKUP(AT17,LRF!$C$43:$R$44,2,FALSE)/HLOOKUP(AT17-1,LRF!$C$43:$R$44,2,FALSE),1),1)-1 -> 0 | AU38: =IFERROR(IF(AU17>65,HLOOKUP(AU17,LRF!$C$43:$R$44,2,FALSE)/HLOOKUP(AU17-1,LRF!$C$43:$R$44,2,FALSE),1),1)-1 -> 0 | AV38: =IFERROR(IF(AV17>65,HLOOKUP(AV17,LRF!$C$43:$R$44,2,FALSE)/HLOOKUP(AV17-1,LRF!$C$43:$R$44,2,FALSE),1),1)-1 -> 0 | AW38: =IFERROR(IF(AW17>65,HLOOKUP(AW17,LRF!$C$43:$R$44,2,FALSE)/HLOOKUP(AW17-1,LRF!$C$43:$R$44,2,FALSE),1),1)-1 -> 0 | AX38: =IFERROR(IF(AX17>65,HLOOKUP(AX17,LRF!$C$43:$R$44,2,FALSE)/HLOOKUP(AX17-1,LRF!$C$43:$R$44,2,FALSE),1),1)-1 -> 0 | AY38: =IFERROR(IF(AY17>65,HLOOKUP(AY17,LRF!$C$43:$R$44,2,FALSE)/HLOOKUP(AY17-1,LRF!$C$43:$R$44,2,FALSE),1),1)-1 -> 0 | AZ38: =IFERROR(IF(AZ17>65,HLOOKUP(AZ17,LRF!$C$43:$R$44,2,FALSE)/HLOOKUP(AZ17-1,LRF!$C$43:$R$44,2,FALSE),1),1)-1 -> 0 | BA38: =IFERROR(IF(BA17>65,HLOOKUP(BA17,LRF!$C$43:$R$44,2,FALSE)/HLOOKUP(BA17-1,LRF!$C$43:$R$44,2,FALSE),1),1)-1 -> 0 | BB38: =IFERROR(IF(BB17>65,HLOOKUP(BB17,LRF!$C$43:$R$44,2,FALSE)/HLOOKUP(BB17-1,LRF!$C$43:$R$44,2,FALSE),1),1)-1 -> 0 | BC38: =IFERROR(IF(BC17>65,HLOOKUP(BC17,LRF!$C$43:$R$44,2,FALSE)/HLOOKUP(BC17-1,LRF!$C$43:$R$44,2,FALSE),1),1)-1 -> 0 | BD38: =IFERROR(IF(BD17>65,HLOOKUP(BD17,LRF!$C$43:$R$44,2,FALSE)/HLOOKUP(BD17-1,LRF!$C$43:$R$44,2,FALSE),1),1)-1 -> 0 | BE38: =IFERROR(IF(BE17>65,HLOOKUP(BE17,LRF!$C$43:$R$44,2,FALSE)/HLOOKUP(BE17-1,LRF!$C$43:$R$44,2,FALSE),1),1)-1 -> 0 | BF38: =IFERROR(IF(BF17>65,HLOOKUP(BF17,LRF!$C$43:$R$44,2,FALSE)/HLOOKUP(BF17-1,LRF!$C$43:$R$44,2,FALSE),1),1)-1 -> 0 | BG38: =IFERROR(IF(BG17>65,HLOOKUP(BG17,LRF!$C$43:$R$44,2,FALSE)/HLOOKUP(BG17-1,LRF!$C$43:$R$44,2,FALSE),1),1)-1 -> 0 | BH38: =IFERROR(IF(BH17>65,HLOOKUP(BH17,LRF!$C$43:$R$44,2,FALSE)/HLOOKUP(BH17-1,LRF!$C$43:$R$44,2,FALSE),1),1)-1 -> 0 | BI38: =IFERROR(IF(BI17>65,HLOOKUP(BI17,LRF!$C$43:$R$44,2,FALSE)/HLOOKUP(BI17-1,LRF!$C$43:$R$44,2,FALSE),1),1)-1 -> 0 | BJ38: =IFERROR(IF(BJ17>65,HLOOKUP(BJ17,LRF!$C$43:$R$44,2,FALSE)/HLOOKUP(BJ17-1,LRF!$C$43:$R$44,2,FALSE),1),1)-1 -> 0 | BK38: =IFERROR(IF(BK17>65,HLOOKUP(BK17,LRF!$C$43:$R$44,2,FALSE)/HLOOKUP(BK17-1,LRF!$C$43:$R$44,2,FALSE),1),1)-1 -> 0 | BL38: =IFERROR(IF(BL17>65,HLOOKUP(BL17,LRF!$C$43:$R$44,2,FALSE)/HLOOKUP(BL17-1,LRF!$C$43:$R$44,2,FALSE),1),1)-1 -> 0 | BM38: =IFERROR(IF(BM17>65,HLOOKUP(BM17,LRF!$C$43:$R$44,2,FALSE)/HLOOKUP(BM17-1,LRF!$C$43:$R$44,2,FALSE),1),1)-1 -> 0 | BN38: =IFERROR(IF(BN17>65,HLOOKUP(BN17,LRF!$C$43:$R$44,2,FALSE)/HLOOKUP(BN17-1,LRF!$C$43:$R$44,2,FALSE),1),1)-1 -> 0 | BO38: =IFERROR(IF(BO17>65,HLOOKUP(BO17,LRF!$C$43:$R$44,2,FALSE)/HLOOKUP(BO17-1,LRF!$C$43:$R$44,2,FALSE),1),1)-1 -> 0 | BP38: =IFERROR(IF(BP17>65,HLOOKUP(BP17,LRF!$C$43:$R$44,2,FALSE)/HLOOKUP(BP17-1,LRF!$C$43:$R$44,2,FALSE),1),1)-1 -> 0 | BQ38: =IFERROR(IF(BQ17>65,HLOOKUP(BQ17,LRF!$C$43:$R$44,2,FALSE)/HLOOKUP(BQ17-1,LRF!$C$43:$R$44,2,FALSE),1),1)-1 -> 0 | BR38: =IFERROR(IF(BR17>65,HLOOKUP(BR17,LRF!$C$43:$R$44,2,FALSE)/HLOOKUP(BR17-1,LRF!$C$43:$R$44,2,FALSE),1),1)-1 -> 0 | BS38: =IFERROR(IF(BS17>65,HLOOKUP(BS17,LRF!$C$43:$R$44,2,FALSE)/HLOOKUP(BS17-1,LRF!$C$43:$R$44,2,FALSE),1),1)-1 -> 0 | BT38: =IFERROR(IF(BT17>65,HLOOKUP(BT17,LRF!$C$43:$R$44,2,FALSE)/HLOOKUP(BT17-1,LRF!$C$43:$R$44,2,FALSE),1),1)-1 -> 0 | BU38: =IFERROR(IF(BU17>65,HLOOKUP(BU17,LRF!$C$43:$R$44,2,FALSE)/HLOOKUP(BU17-1,LRF!$C$43:$R$44,2,FALSE),1),1)-1 -> 0 | BV38: =IFERROR(IF(BV17>65,HLOOKUP(BV17,LRF!$C$43:$R$44,2,FALSE)/HLOOKUP(BV17-1,LRF!$C$43:$R$44,2,FALSE),1),1)-1 -> 0 | BW38: =IFERROR(IF(BW17>65,HLOOKUP(BW17,LRF!$C$43:$R$44,2,FALSE)/HLOOKUP(BW17-1,LRF!$C$43:$R$44,2,FALSE),1),1)-1 -> 0 | BX38: =IFERROR(IF(BX17>65,HLOOKUP(BX17,LRF!$C$43:$R$44,2,FALSE)/HLOOKUP(BX17-1,LRF!$C$43:$R$44,2,FALSE),1),1)-1 -> 0 | BY38: =IFERROR(IF(BY17>65,HLOOKUP(BY17,LRF!$C$43:$R$44,2,FALSE)/HLOOKUP(BY17-1,LRF!$C$43:$R$44,2,FALSE),1),1)-1 -> 0 | BZ38: =IFERROR(IF(BZ17>65,HLOOKUP(BZ17,LRF!$C$43:$R$44,2,FALSE)/HLOOKUP(BZ17-1,LRF!$C$43:$R$44,2,FALSE),1),1)-1 -> 0 | CA38: =IFERROR(IF(CA17>65,HLOOKUP(CA17,LRF!$C$43:$R$44,2,FALSE)/HLOOKUP(CA17-1,LRF!$C$43:$R$44,2,FALSE),1),1)-1 -> 0 | CB38: =IFERROR(IF(CB17>65,HLOOKUP(CB17,LRF!$C$43:$R$44,2,FALSE)/HLOOKUP(CB17-1,LRF!$C$43:$R$44,2,FALSE),1),1)-1 -> 0 | CC38: =IFERROR(IF(CC17>65,HLOOKUP(CC17,LRF!$C$43:$R$44,2,FALSE)/HLOOKUP(CC17-1,LRF!$C$43:$R$44,2,FALSE),1),1)-1 -> 0 | CD38: =IFERROR(IF(CD17>65,HLOOKUP(CD17,LRF!$C$43:$R$44,2,FALSE)/HLOOKUP(CD17-1,LRF!$C$43:$R$44,2,FALSE),1),1)-1 -> 0 | CE38: =IFERROR(IF(CE17>65,HLOOKUP(CE17,LRF!$C$43:$R$44,2,FALSE)/HLOOKUP(CE17-1,LRF!$C$43:$R$44,2,FALSE),1),1)-1 -> 0 | CF38: =IFERROR(IF(CF17>65,HLOOKUP(CF17,LRF!$C$43:$R$44,2,FALSE)/HLOOKUP(CF17-1,LRF!$C$43:$R$44,2,FALSE),1),1)-1 -> 0 | CG38: =IFERROR(IF(CG17>65,HLOOKUP(CG17,LRF!$C$43:$R$44,2,FALSE)/HLOOKUP(CG17-1,LRF!$C$43:$R$44,2,FALSE),1),1)-1 -> 0 | CH38: =IFERROR(IF(CH17>65,HLOOKUP(CH17,LRF!$C$43:$R$44,2,FALSE)/HLOOKUP(CH17-1,LRF!$C$43:$R$44,2,FALSE),1),1)-1 -> 0 | CI38: =IFERROR(IF(CI17>65,HLOOKUP(CI17,LRF!$C$43:$R$44,2,FALSE)/HLOOKUP(CI17-1,LRF!$C$43:$R$44,2,FALSE),1),1)-1 -> 0
B39: LRF applied to ABS | D39: =IF(D31=0,1,1+D38) -> 1 | E39: =IF(E31=0,1,1+E38) -> 1 | F39: 1 | G39: 1 | H39: 1 | I39: 1 | J39: 1 | K39: 1 | L39: 1 | M39: 1 | N39: 1 | O39: 1 | P39: 1 | Q39: 1 | R39: 1 | S39: 1 | T39: 1 | U39: 1 | V39: 1 | W39: 1 | X39: 1 | Y39: 1 | Z39: 1 | AA39: 1 | AB39: 1 | AC39: 1 | AD39: 1 | AE39: 1 | AF39: 1 | AG39: 1 | AH39: 1 | AI39: 1 | AJ39: 1 | AK39: 1 | AL39: 1 | AM39: 1 | AN39: 1 | AO39: 1 | AP39: 1 | AQ39: 1 | AR39: 1 | AS39: 1 | AT39: 1 | AU39: 1 | AV39: 1 | AW39: 1 | AX39: 1 | AY39: 1 | AZ39: 1 | BA39: 1 | BB39: 1 | BC39: 1 | BD39: 1 | BE39: 1 | BF39: 1 | BG39: 1 | BH39: 1 | BI39: 1 | BJ39: 1 | BK39: 1 | BL39: 1 | BM39: 1 | BN39: 1 | BO39: 1 | BP39: 1 | BQ39: =IF(BQ31=0,1,1+BQ38) -> 1 | BR39: 1 | BS39: 1 | BT39: 1 | BU39: 1 | BV39: 1 | BW39: 1 | BX39: 1 | BY39: 1 | BZ39: 1 | CA39: 1 | CB39: 1 | CC39: 1 | CD39: 1 | CE39: 1 | CF39: 1 | CG39: 1 | CH39: 1 | CI39: 1
B40: LRF post transition | D40: =IF(AND(D31=0,D19<$F$12), 1+D38,1) -> 1 | E40: =IF(AND(E31=0,E19<$F$12), 1+E38,1) -> 1 | F40: 1 | G40: 1 | H40: 1 | I40: 1 | J40: 1 | K40: 1 | L40: 1 | M40: 1 | N40: 1 | O40: 1 | P40: 1 | Q40: 1 | R40: 1 | S40: 1 | T40: 1 | U40: 1 | V40: 1 | W40: 1 | X40: 1 | Y40: 1 | Z40: 1 | AA40: 1 | AB40: 1 | AC40: 1 | AD40: 1 | AE40: 1 | AF40: 1 | AG40: 1 | AH40: 1 | AI40: 1 | AJ40: 1 | AK40: 1 | AL40: 1 | AM40: 1 | AN40: 1 | AO40: 1 | AP40: 1 | AQ40: 1 | AR40: 1 | AS40: 1 | AT40: 1 | AU40: 1 | AV40: 1 | AW40: =IF(AND(AW31=0,AW19<$F$12), 1+AW38,1) -> 1 | AX40: 1 | AY40: 1 | AZ40: =IF(AND(AZ31=0,AZ19<$F$12), 1+AZ38,1) -> 1 | BA40: 1 | BB40: 1 | BC40: 1 | BD40: 1 | BE40: 1 | BF40: 1 | BG40: 1 | BH40: 1 | BI40: 1 | BJ40: 1 | BK40: 1 | BL40: 1 | BM40: 1 | BN40: 1 | BO40: 1 | BP40: 1 | BQ40: =IF(AND(BQ31=0,BQ19<$F$12), 1+BQ38,1) -> 1 | BR40: 1 | BS40: 1 | BT40: 1 | BU40: 1 | BV40: 1 | BW40: 1 | BX40: 1 | BY40: 1 | BZ40: 1 | CA40: 1 | CB40: 1 | CC40: 1 | CD40: 1 | CE40: 1 | CF40: 1 | CG40: 1 | CH40: 1 | CI40: 1
B41: ="Balance " & basis1 -> Balance CPI + 0.0% | D41: =IF(AND(D31=0,D$19<$F$12),C41*(1+care_rev),IF(D$19>=$F$12,0, C41*(1+care_rev)+C41*D$38+D31)) -> 0 | E41: 0 | F41: 0 | G41: 0 | H41: 0 | I41: 0 | J41: 0 | K41: 0 | L41: 0 | M41: 0 | N41: 0 | O41: 0 | P41: 0 | Q41: 0 | R41: 0 | S41: 0 | T41: 0 | U41: 0 | V41: 0 | W41: 0 | X41: 0 | Y41: 0 | Z41: 0 | AA41: 0 | AB41: 0 | AC41: 0 | AD41: 0 | AE41: 0 | AF41: 0 | AG41: 0 | AH41: 0 | AI41: 0 | AJ41: =IF(AND(AJ31=0,AJ$19<$F$12),AI41*(1+care_rev),IF(AJ$19>=$F$12,0, AI41*(1+care_rev)+AI41*AJ$38+AJ31)) -> 0 | AK41: 0 | AL41: 0 | AM41: 0 | AN41: 0 | AO41: 0 | AP41: 0 | AQ41: 0 | AR41: 0 | AS41: 0 | AT41: 0 | AU41: 0 | AV41: 0 | AW41: 0 | AX41: 0 | AY41: 0 | AZ41: 0 | BA41: 0 | BB41: 0 | BC41: 0 | BD41: 0 | BE41: 0 | BF41: 0 | BG41: 0 | BH41: 0 | BI41: 0 | BJ41: 0 | BK41: 0 | BL41: 0 | BM41: 0 | BN41: 0 | BO41: 0 | BP41: =IF(AND(BP31=0,BP$19<$F$12),BO41*(1+care_rev),IF(BP$19>=$F$12,0, BO41*(1+care_rev)+BO41*BP$38+BP31)) -> 0 | BQ41: 0 | BR41: 0 | BS41: 0 | BT41: 0 | BU41: 0 | BV41: 0 | BW41: 0 | BX41: 0 | BY41: 0 | BZ41: 0 | CA41: 0 | CB41: 0 | CC41: 0 | CD41: 0 | CE41: 0 | CF41: 0 | CG41: 0 | CH41: 0 | CI41: 0
B42: ="Balance " & basis2 -> Balance CPI + 1.0% | D42: =IF(AND(D32=0,D$19<$F$12),C42*(1+care_rev),IF(D$19>=$F$12,0, C42*(1+care_rev)+C42*D$38+D32)) -> 0 | E42: 0 | F42: 0 | G42: 0 | H42: 0 | I42: 0 | J42: 0 | K42: 0 | L42: 0 | M42: 0 | N42: 0 | O42: 0 | P42: 0 | Q42: 0 | R42: 0 | S42: 0 | T42: 0 | U42: 0 | V42: 0 | W42: 0 | X42: 0 | Y42: 0 | Z42: 0 | AA42: 0 | AB42: 0 | AC42: 0 | AD42: 0 | AE42: 0 | AF42: 0 | AG42: 0 | AH42: 0 | AI42: 0 | AJ42: =IF(AND(AJ32=0,AJ$19<$F$12),AI42*(1+care_rev),IF(AJ$19>=$F$12,0, AI42*(1+care_rev)+AI42*AJ$38+AJ32)) -> 0 | AK42: 0 | AL42: 0 | AM42: 0 | AN42: 0 | AO42: 0 | AP42: 0 | AQ42: 0 | AR42: 0 | AS42: 0 | AT42: 0 | AU42: 0 | AV42: 0 | AW42: 0 | AX42: 0 | AY42: 0 | AZ42: 0 | BA42: 0 | BB42: 0 | BC42: 0 | BD42: 0 | BE42: 0 | BF42: 0 | BG42: 0 | BH42: 0 | BI42: 0 | BJ42: 0 | BK42: 0 | BL42: 0 | BM42: 0 | BN42: 0 | BO42: 0 | BP42: =IF(AND(BP32=0,BP$19<$F$12),BO42*(1+care_rev),IF(BP$19>=$F$12,0, BO42*(1+care_rev)+BO42*BP$38+BP32)) -> 0 | BQ42: 0 | BR42: 0 | BS42: 0 | BT42: 0 | BU42: 0 | BV42: 0 | BW42: 0 | BX42: 0 | BY42: 0 | BZ42: 0 | CA42: 0 | CB42: 0 | CC42: 0 | CD42: 0 | CE42: 0 | CF42: 0 | CG42: 0 | CH42: 0 | CI42: 0
B43: ="Balance " & basis3 -> Balance CPI + 2.0% | D43: =IF(AND(D33=0,D$19<$F$12),C43*(1+care_rev),IF(D$19>=$F$12,0, C43*(1+care_rev)+C43*D$38+D33)) -> 0 | E43: 0 | F43: 0 | G43: 0 | H43: 0 | I43: 0 | J43: 0 | K43: 0 | L43: 0 | M43: 0 | N43: 0 | O43: 0 | P43: 0 | Q43: 0 | R43: 0 | S43: 0 | T43: 0 | U43: 0 | V43: 0 | W43: 0 | X43: 0 | Y43: 0 | Z43: 0 | AA43: 0 | AB43: 0 | AC43: 0 | AD43: 0 | AE43: 0 | AF43: 0 | AG43: 0 | AH43: 0 | AI43: 0 | AJ43: =IF(AND(AJ33=0,AJ$19<$F$12),AI43*(1+care_rev),IF(AJ$19>=$F$12,0, AI43*(1+care_rev)+AI43*AJ$38+AJ33)) -> 0 | AK43: 0 | AL43: 0 | AM43: 0 | AN43: 0 | AO43: 0 | AP43: 0 | AQ43: 0 | AR43: 0 | AS43: 0 | AT43: 0 | AU43: 0 | AV43: 0 | AW43: 0 | AX43: 0 | AY43: 0 | AZ43: 0 | BA43: 0 | BB43: 0 | BC43: 0 | BD43: 0 | BE43: 0 | BF43: 0 | BG43: 0 | BH43: 0 | BI43: 0 | BJ43: 0 | BK43: 0 | BL43: 0 | BM43: 0 | BN43: 0 | BO43: 0 | BP43: =IF(AND(BP33=0,BP$19<$F$12),BO43*(1+care_rev),IF(BP$19>=$F$12,0, BO43*(1+care_rev)+BO43*BP$38+BP33)) -> 0 | BQ43: 0 | BR43: 0 | BS43: 0 | BT43: 0 | BU43: 0 | BV43: 0 | BW43: 0 | BX43: 0 | BY43: 0 | BZ43: 0 | CA43: 0 | CB43: 0 | CC43: 0 | CD43: 0 | CE43: 0 | CF43: 0 | CG43: 0 | CH43: 0 | CI43: 0
B45: ="Sum " & basis1 -> Sum CPI + 0.0% | D45: =MAX(D41:CI41)*$D$37*$D$49 -> 0
B46: ="Sum " & basis2 -> Sum CPI + 1.0% | D46: =MAX(D42:CI42)*$D$37*$D$49 -> 0
B47: ="Sum " & basis3 -> Sum CPI + 2.0% | D47: =MAX(D43:CI43)*$D$37*$D$49 -> 0
B49: Post transition LRF | D49: =PRODUCT(D40:CI40) -> 1
B50: Input accrued CARE | D50: =Calculator!L33 -> 0
B51: As at date | D51: =DATE(nuvos_ABSEndDate1,4,1) -> 1900-04-01
B52: revalued to date of ret + LRF/ERF | D52: =D37*D50*IF(D49=1, PRODUCT(D39:CI39),D49)*(1+D10)^((DoR-D51)/DoY) -> 0
B53: Accrued Care from ABS? | D53: =Parameters!B90 -> FALSE
B54: ="accrued benefit at retirement date " & basis1 -> accrued benefit at retirement date CPI + 0.0% | D54: =D45+IF(D53,D52,0) -> 0
B55: ="accrued benefit at retirement date " & basis2 -> accrued benefit at retirement date CPI + 1.0% | D55: =D46+IF(D53,D52,0) -> 0
B56: ="accrued benefit at retirement date " & basis3 -> accrued benefit at retirement date CPI + 2.0% | D56: =D47+IF(D53,D52,0) -> 0
B57: ="Accrued benefit discounted to current date " & basis1 -> Accrued benefit discounted to current date CPI + 0.0% | D57: =D54*(1+cpi)^((Date_curr-$F$12)/DoY) -> 0
B58: ="Accrued benefit discounted to current date " & basis2 -> Accrued benefit discounted to current date CPI + 1.0% | D58: =D55*(1+cpi)^((Date_curr-$F$12)/DoY) -> 0
B59: ="Accrued benefit discounted to current date " & basis3 -> Accrued benefit discounted to current date CPI + 2.0% | D59: =D56*(1+cpi)^((Date_curr-$F$12)/DoY) -> 0

Sheet alpha calcs (hidden)
A1: Government Actuary's Department
A2: =IF(title="> Enter workbook title here","Enter workbook title in Cover sheet",title) -> Northern Ireland Civil Service Pension Scheme Calculator
A3: Alpha pension
A4: =CELL("filename",A1) -> C:\Users\dof-aytond\Desktop\[NICS - BenProjectCalculator v0.21.xlsm]alpha calcs
B8: Current Date | D8: =DoStartSchYear_alpha -> 2026-04-01
B9: CPI (%) | D9: =cpi -> 0.02
B10: Revaluation Rate - CPI + 0% | D10: =care_rev -> 0.02
B11: Date reached SPA | D11: =Parameters!B84 -> 
B12: Age at 1 Apr 2015 | D12: =+ROUND((Parameters!E45-DoB)/DoY,2) -> 115.25 | F12: DoR
B13: Protection | D13: =+IF(D12>=54.5,TRUE,FALSE) -> TRUE | F13: =+DoR -> 00:00:00
B14: DJS | D14: =DJS -> 00:00:00
B15: 2015 scheme start | D15: 2015-04-01
B16: Protected 2015 scheme start | D16: ='FS calcs'!DoProtEnd -> 00:00:00
B18: Age at start of year | D18: =ROUND((D20-DoB)/DoY,0) -> 115 | E18: 116 | F18: 117 | G18: 118 | H18: 119 | I18: 120 | J18: 121 | K18: 122 | L18: 123 | M18: 124 | N18: 125 | O18: 126 | P18: 127 | Q18: 128 | R18: 129 | S18: 130 | T18: 131 | U18: 132 | V18: 133 | W18: 134 | X18: 135 | Y18: 136 | Z18: 137 | AA18: 138 | AB18: 139 | AC18: 140 | AD18: 141 | AE18: 142 | AF18: 143 | AG18: 144 | AH18: 145 | AI18: 146 | AJ18: =ROUND((AJ20-DoB)/DoY,0) -> 147 | AK18: 148 | AL18: 149 | AM18: 150 | AN18: 151 | AO18: 152 | AP18: 153 | AQ18: 154 | AR18: 155 | AS18: 156 | AT18: 157 | AU18: 158 | AV18: 159 | AW18: 160 | AX18: 161 | AY18: 162 | AZ18: 163 | BA18: 164 | BB18: 165 | BC18: 166 | BD18: 167 | BE18: 168 | BF18: 169 | BG18: 170 | BH18: 171 | BI18: 172 | BJ18: 173 | BK18: 174 | BL18: 175 | BM18: 176 | BN18: 177 | BO18: 178 | BP18: =ROUND((BP20-DoB)/DoY,0) -> 179 | BQ18: 180 | BR18: 181 | BS18: 182 | BT18: 183 | BU18: 184 | BV18: 185 | BW18: 186 | BX18: 187 | BY18: 188 | BZ18: 189 | CA18: 190 | CB18: 191 | CC18: 192 | CD18: 193 | CE18: 194 | CF18: 195 | CG18: 196 | CH18: 197 | CI18: 198
D19: 2015 | E19: =+D19+1 -> 2016 | F19: =+E19+1 -> 2017 | G19: 2018 | H19: 2019 | I19: 2020 | J19: 2021 | K19: 2022 | L19: 2023 | M19: 2024 | N19: 2025 | O19: 2026 | P19: 2027 | Q19: 2028 | R19: 2029 | S19: 2030 | T19: 2031 | U19: 2032 | V19: 2033 | W19: 2034 | X19: 2035 | Y19: 2036 | Z19: 2037 | AA19: 2038 | AB19: 2039 | AC19: 2040 | AD19: 2041 | AE19: 2042 | AF19: 2043 | AG19: 2044 | AH19: 2045 | AI19: 2046 | AJ19: 2047 | AK19: 2048 | AL19: 2049 | AM19: 2050 | AN19: 2051 | AO19: 2052 | AP19: 2053 | AQ19: 2054 | AR19: 2055 | AS19: 2056 | AT19: 2057 | AU19: 2058 | AV19: 2059 | AW19: 2060 | AX19: 2061 | AY19: 2062 | AZ19: 2063 | BA19: 2064 | BB19: 2065 | BC19: 2066 | BD19: 2067 | BE19: 2068 | BF19: 2069 | BG19: 2070 | BH19: 2071 | BI19: 2072 | BJ19: 2073 | BK19: 2074 | BL19: 2075 | BM19: 2076 | BN19: 2077 | BO19: 2078 | BP19: 2079 | BQ19: 2080 | BR19: =+BQ19+1 -> 2081 | BS19: 2082 | BT19: 2083 | BU19: 2084 | BV19: 2085 | BW19: 2086 | BX19: 2087 | BY19: 2088 | BZ19: 2089 | CA19: 2090 | CB19: 2091 | CC19: 2092 | CD19: 2093 | CE19: 2094 | CF19: 2095 | CG19: 2096 | CH19: 2097 | CI19: 2098
B20: Start Date of Year | D20: 2015-04-01 | E20: =DATE(E19,4,1) -> 2016-04-01 | F20: =DATE(F19,4,1) -> 2017-04-01 | G20: 2018-04-01 | H20: 2019-04-01 | I20: 2020-04-01 | J20: 2021-04-01 | K20: 2022-04-01 | L20: 2023-04-01 | M20: 2024-04-01 | N20: 2025-04-01 | O20: 2026-04-01 | P20: 2027-04-01 | Q20: 2028-04-01 | R20: 2029-04-01 | S20: 2030-04-01 | T20: 2031-04-01 | U20: 2032-04-01 | V20: 2033-04-01 | W20: 2034-04-01 | X20: 2035-04-01 | Y20: 2036-04-01 | Z20: 2037-04-01 | AA20: 2038-04-01 | AB20: 2039-04-01 | AC20: 2040-04-01 | AD20: 2041-04-01 | AE20: 2042-04-01 | AF20: 2043-04-01 | AG20: 2044-04-01 | AH20: 2045-04-01 | AI20: 2046-04-01 | AJ20: 2047-04-01 | AK20: 2048-04-01 | AL20: 2049-04-01 | AM20: 2050-04-01 | AN20: 2051-04-01 | AO20: 2052-04-01 | AP20: 2053-04-01 | AQ20: 2054-04-01 | AR20: 2055-04-01 | AS20: 2056-04-01 | AT20: 2057-04-01 | AU20: 2058-04-01 | AV20: 2059-04-01 | AW20: 2060-04-01 | AX20: 2061-04-01 | AY20: 2062-04-01 | AZ20: 2063-04-01 | BA20: 2064-04-01 | BB20: 2065-04-01 | BC20: 2066-04-01 | BD20: 2067-04-01 | BE20: 2068-04-01 | BF20: 2069-04-01 | BG20: 2070-04-01 | BH20: 2071-04-01 | BI20: 2072-04-01 | BJ20: 2073-04-01 | BK20: 2074-04-01 | BL20: 2075-04-01 | BM20: 2076-04-01 | BN20: 2077-04-01 | BO20: 2078-04-01 | BP20: 2079-04-01 | BQ20: 2080-04-01 | BR20: =DATE(BR19,4,1) -> 2081-04-01 | BS20: 2082-04-01 | BT20: 2083-04-01 | BU20: 2084-04-01 | BV20: 2085-04-01 | BW20: 2086-04-01 | BX20: 2087-04-01 | BY20: 2088-04-01 | BZ20: 2089-04-01 | CA20: 2090-04-01 | CB20: 2091-04-01 | CC20: 2092-04-01 | CD20: 2093-04-01 | CE20: 2094-04-01 | CF20: 2095-04-01 | CG20: 2096-04-01 | CH20: 2097-04-01 | CI20: 2098-04-01
B21: End Date of Year | D21: =DATE(D19+1,3,31) -> 2016-03-31 | E21: =DATE(E19+1,3,31) -> 2017-03-31 | F21: 2018-03-31 | G21: 2019-03-31 | H21: 2020-03-31 | I21: 2021-03-31 | J21: 2022-03-31 | K21: 2023-03-31 | L21: 2024-03-31 | M21: 2025-03-31 | N21: 2026-03-31 | O21: 2027-03-31 | P21: 2028-03-31 | Q21: 2029-03-31 | R21: 2030-03-31 | S21: 2031-03-31 | T21: 2032-03-31 | U21: 2033-03-31 | V21: 2034-03-31 | W21: 2035-03-31 | X21: 2036-03-31 | Y21: 2037-03-31 | Z21: 2038-03-31 | AA21: 2039-03-31 | AB21: 2040-03-31 | AC21: 2041-03-31 | AD21: 2042-03-31 | AE21: 2043-03-31 | AF21: 2044-03-31 | AG21: 2045-03-31 | AH21: 2046-03-31 | AI21: 2047-03-31 | AJ21: 2048-03-31 | AK21: 2049-03-31 | AL21: 2050-03-31 | AM21: 2051-03-31 | AN21: 2052-03-31 | AO21: 2053-03-31 | AP21: 2054-03-31 | AQ21: 2055-03-31 | AR21: 2056-03-31 | AS21: 2057-03-31 | AT21: 2058-03-31 | AU21: 2059-03-31 | AV21: 2060-03-31 | AW21: 2061-03-31 | AX21: 2062-03-31 | AY21: 2063-03-31 | AZ21: 2064-03-31 | BA21: 2065-03-31 | BB21: 2066-03-31 | BC21: 2067-03-31 | BD21: 2068-03-31 | BE21: 2069-03-31 | BF21: 2070-03-31 | BG21: 2071-03-31 | BH21: 2072-03-31 | BI21: 2073-03-31 | BJ21: 2074-03-31 | BK21: 2075-03-31 | BL21: 2076-03-31 | BM21: 2077-03-31 | BN21: 2078-03-31 | BO21: 2079-03-31 | BP21: 2080-03-31 | BQ21: =DATE(BQ19+1,3,31) -> 2081-03-31 | BR21: 2082-03-31 | BS21: 2083-03-31 | BT21: 2084-03-31 | BU21: 2085-03-31 | BV21: 2086-03-31 | BW21: 2087-03-31 | BX21: 2088-03-31 | BY21: 2089-03-31 | BZ21: 2090-03-31 | CA21: 2091-03-31 | CB21: 2092-03-31 | CC21: 2093-03-31 | CD21: 2094-03-31 | CE21: 2095-03-31 | CF21: 2096-03-31 | CG21: 2097-03-31 | CH21: 2098-03-31 | CI21: 2099-03-31
B22: is today greater than the end of year? | D22: =Date_curr>D21 -> TRUE | E22: TRUE | F22: TRUE | G22: TRUE | H22: TRUE | I22: TRUE | J22: =Date_curr>J21 -> TRUE | K22: TRUE | L22: TRUE | M22: TRUE | N22: TRUE | O22: FALSE | P22: FALSE | Q22: FALSE | R22: =Date_curr>R21 -> FALSE | S22: FALSE | T22: FALSE | U22: FALSE | V22: FALSE | W22: FALSE | X22: FALSE | Y22: FALSE | Z22: FALSE | AA22: FALSE | AB22: FALSE | AC22: FALSE | AD22: FALSE | AE22: FALSE | AF22: FALSE | AG22: FALSE | AH22: FALSE | AI22: FALSE | AJ22: FALSE | AK22: FALSE | AL22: FALSE | AM22: FALSE | AN22: FALSE | AO22: FALSE | AP22: FALSE | AQ22: FALSE | AR22: FALSE | AS22: FALSE | AT22: FALSE | AU22: FALSE | AV22: FALSE | AW22: FALSE | AX22: FALSE | AY22: FALSE | AZ22: FALSE | BA22: FALSE | BB22: FALSE | BC22: FALSE | BD22: FALSE | BE22: FALSE | BF22: FALSE | BG22: FALSE | BH22: FALSE | BI22: FALSE | BJ22: FALSE | BK22: FALSE | BL22: FALSE | BM22: FALSE | BN22: FALSE | BO22: FALSE | BP22: FALSE | BQ22: FALSE | BR22: FALSE | BS22: FALSE | BT22: FALSE | BU22: FALSE | BV22: FALSE | BW22: FALSE | BX22: =Date_curr>BX21 -> FALSE | BY22: FALSE | BZ22: FALSE | CA22: FALSE | CB22: FALSE | CC22: FALSE | CD22: FALSE | CE22: FALSE | CF22: FALSE | CG22: FALSE | CH22: FALSE | CI22: FALSE
B23: did alpha scheme service start before the end of the year? | D23: =$D16<E20 -> TRUE | E23: TRUE | F23: TRUE | G23: TRUE | H23: TRUE | I23: TRUE | J23: =$D16<K20 -> TRUE | K23: TRUE | L23: TRUE | M23: TRUE | N23: TRUE | O23: TRUE | P23: TRUE | Q23: TRUE | R23: =$D16<S20 -> TRUE | S23: TRUE | T23: TRUE | U23: TRUE | V23: TRUE | W23: TRUE | X23: TRUE | Y23: TRUE | Z23: TRUE | AA23: TRUE | AB23: TRUE | AC23: TRUE | AD23: TRUE | AE23: TRUE | AF23: TRUE | AG23: TRUE | AH23: TRUE | AI23: TRUE | AJ23: TRUE | AK23: TRUE | AL23: TRUE | AM23: TRUE | AN23: TRUE | AO23: TRUE | AP23: TRUE | AQ23: TRUE | AR23: TRUE | AS23: TRUE | AT23: TRUE | AU23: TRUE | AV23: TRUE | AW23: TRUE | AX23: TRUE | AY23: TRUE | AZ23: TRUE | BA23: TRUE | BB23: TRUE | BC23: TRUE | BD23: TRUE | BE23: TRUE | BF23: TRUE | BG23: TRUE | BH23: TRUE | BI23: TRUE | BJ23: TRUE | BK23: TRUE | BL23: TRUE | BM23: TRUE | BN23: TRUE | BO23: TRUE | BP23: TRUE | BQ23: TRUE | BR23: TRUE | BS23: TRUE | BT23: TRUE | BU23: TRUE | BV23: TRUE | BW23: TRUE | BX23: =$D16<BY20 -> TRUE | BY23: TRUE | BZ23: TRUE | CA23: TRUE | CB23: TRUE | CC23: TRUE | CD23: TRUE | CE23: TRUE | CF23: TRUE | CG23: TRUE | CH23: TRUE | CI23: FALSE
B24: still in alpha at beginning of the year? | D24: =+D20>$D$16 -> TRUE | E24: =+E20>$D$16 -> TRUE | F24: TRUE | G24: TRUE | H24: TRUE | I24: TRUE | J24: TRUE | K24: TRUE | L24: TRUE | M24: TRUE | N24: TRUE | O24: TRUE | P24: TRUE | Q24: TRUE | R24: TRUE | S24: TRUE | T24: TRUE | U24: TRUE | V24: TRUE | W24: TRUE | X24: TRUE | Y24: TRUE | Z24: TRUE | AA24: TRUE | AB24: TRUE | AC24: TRUE | AD24: TRUE | AE24: TRUE | AF24: TRUE | AG24: TRUE | AH24: TRUE | AI24: TRUE | AJ24: TRUE | AK24: TRUE | AL24: TRUE | AM24: TRUE | AN24: TRUE | AO24: TRUE | AP24: TRUE | AQ24: TRUE | AR24: TRUE | AS24: TRUE | AT24: TRUE | AU24: TRUE | AV24: TRUE | AW24: TRUE | AX24: TRUE | AY24: TRUE | AZ24: TRUE | BA24: TRUE | BB24: TRUE | BC24: TRUE | BD24: TRUE | BE24: TRUE | BF24: TRUE | BG24: TRUE | BH24: TRUE | BI24: TRUE | BJ24: TRUE | BK24: TRUE | BL24: TRUE | BM24: TRUE | BN24: TRUE | BO24: TRUE | BP24: TRUE | BQ24: =+BQ20>$D$16 -> TRUE | BR24: TRUE | BS24: TRUE | BT24: TRUE | BU24: TRUE | BV24: TRUE | BW24: TRUE | BX24: TRUE | BY24: TRUE | BZ24: TRUE | CA24: TRUE | CB24: TRUE | CC24: TRUE | CD24: TRUE | CE24: TRUE | CF24: TRUE | CG24: TRUE | CH24: TRUE | CI24: TRUE
B25: already included in statement? | D25: =AND($D$52,$D$50>D21) -> FALSE | E25: FALSE | F25: FALSE | G25: FALSE | H25: FALSE | I25: FALSE | J25: =AND($D$52,$D$50>J21) -> FALSE | K25: FALSE | L25: FALSE | M25: FALSE | N25: FALSE | O25: FALSE | P25: FALSE | Q25: FALSE | R25: =AND($D$52,$D$50>R21) -> FALSE | S25: FALSE | T25: FALSE | U25: FALSE | V25: FALSE | W25: FALSE | X25: FALSE | Y25: FALSE | Z25: FALSE | AA25: FALSE | AB25: FALSE | AC25: FALSE | AD25: FALSE | AE25: FALSE | AF25: FALSE | AG25: FALSE | AH25: FALSE | AI25: FALSE | AJ25: FALSE | AK25: FALSE | AL25: FALSE | AM25: FALSE | AN25: FALSE | AO25: FALSE | AP25: FALSE | AQ25: FALSE | AR25: FALSE | AS25: FALSE | AT25: FALSE | AU25: FALSE | AV25: FALSE | AW25: FALSE | AX25: FALSE | AY25: FALSE | AZ25: FALSE | BA25: FALSE | BB25: FALSE | BC25: FALSE | BD25: FALSE | BE25: FALSE | BF25: FALSE | BG25: FALSE | BH25: FALSE | BI25: FALSE | BJ25: FALSE | BK25: FALSE | BL25: FALSE | BM25: FALSE | BN25: FALSE | BO25: FALSE | BP25: FALSE | BQ25: FALSE | BR25: FALSE | BS25: FALSE | BT25: FALSE | BU25: FALSE | BV25: FALSE | BW25: FALSE | BX25: =AND($D$52,$D$50>BX21) -> FALSE | BY25: FALSE | BZ25: FALSE | CA25: FALSE | CB25: FALSE | CC25: FALSE | CD25: FALSE | CE25: FALSE | CF25: FALSE | CG25: FALSE | CH25: FALSE | CI25: FALSE
B26: service during year part 1 | D26: =MAX(0,MIN(D21,DoR)-MAX($D16,D14))/365.25 -> 116.2491444 | E26: =MAX(0,MIN(E21,DoR)-MAX(D21,$D16,$D$14))/365.25 -> 0.9993155373 | F26: 0.9993155373 | G26: 0.9993155373 | H26: 1.002053388 | I26: 0.9993155373 | J26: 0.9993155373 | K26: 0.9993155373 | L26: 1.002053388 | M26: 0.9993155373 | N26: 0.9993155373 | O26: 0.9993155373 | P26: 1.002053388 | Q26: 0.9993155373 | R26: 0.9993155373 | S26: 0.9993155373 | T26: 1.002053388 | U26: 0.9993155373 | V26: 0.9993155373 | W26: 0.9993155373 | X26: 1.002053388 | Y26: 0.9993155373 | Z26: 0.9993155373 | AA26: 0.9993155373 | AB26: 1.002053388 | AC26: 0.9993155373 | AD26: 0.9993155373 | AE26: 0.9993155373 | AF26: 1.002053388 | AG26: 0.9993155373 | AH26: 0.9993155373 | AI26: 0.9993155373 | AJ26: 1.002053388 | AK26: =MAX(0,MIN(AK21,DoR)-MAX(AJ21,$D16,$D$14))/365.25 -> 0.9993155373 | AL26: 0.9993155373 | AM26: 0.9993155373 | AN26: 1.002053388 | AO26: 0.9993155373 | AP26: 0.9993155373 | AQ26: 0.9993155373 | AR26: 1.002053388 | AS26: 0.9993155373 | AT26: 0.9993155373 | AU26: 0.9993155373 | AV26: 1.002053388 | AW26: 0.9993155373 | AX26: 0.9993155373 | AY26: 0.9993155373 | AZ26: 1.002053388 | BA26: 0.9993155373 | BB26: 0.9993155373 | BC26: 0.9993155373 | BD26: 1.002053388 | BE26: 0.9993155373 | BF26: 0.9993155373 | BG26: 0.9993155373 | BH26: 1.002053388 | BI26: 0.9993155373 | BJ26: 0.9993155373 | BK26: 0.9993155373 | BL26: 1.002053388 | BM26: 0.9993155373 | BN26: 0.9993155373 | BO26: 0.9993155373 | BP26: 1.002053388 | BQ26: =MAX(0,MIN(BQ21,DoR)-MAX(BP21,$D16,$D$14))/365.25 -> 0.9993155373 | BR26: 0.9993155373 | BS26: 0.9993155373 | BT26: 1.002053388 | BU26: 0.9993155373 | BV26: 0.9993155373 | BW26: 0.9993155373 | BX26: 1.002053388 | BY26: 0.9993155373 | BZ26: 0.9993155373 | CA26: 0.9993155373 | CB26: 1.002053388 | CC26: 0.9993155373 | CD26: 0.9993155373 | CE26: 0.9993155373 | CF26: 1.002053388 | CG26: 0.9993155373 | CH26: 0.9993155373 | CI26: 0.9993155373
B27: service during year part 2 | D27: =IF(AND(D23,NOT(D25)),D26,0)*IF(OR(Scheme_Full="alpha",Scheme_Full="nuvos",Scheme_Full=""),1,IF(PT_Status="some part-time", future_PTP,1)) -> 116.2491444 | E27: 0.9993155373 | F27: 0.9993155373 | G27: 0.9993155373 | H27: 1.002053388 | I27: 0.9993155373 | J27: 0.9993155373 | K27: 0.9993155373 | L27: 1.002053388 | M27: 0.9993155373 | N27: 0.9993155373 | O27: 0.9993155373 | P27: 1.002053388 | Q27: 0.9993155373 | R27: 0.9993155373 | S27: 0.9993155373 | T27: 1.002053388 | U27: 0.9993155373 | V27: 0.9993155373 | W27: 0.9993155373 | X27: 1.002053388 | Y27: 0.9993155373 | Z27: 0.9993155373 | AA27: 0.9993155373 | AB27: 1.002053388 | AC27: 0.9993155373 | AD27: 0.9993155373 | AE27: 0.9993155373 | AF27: 1.002053388 | AG27: 0.9993155373 | AH27: 0.9993155373 | AI27: 0.9993155373 | AJ27: =IF(AND(AJ23,NOT(AJ25)),AJ26,0)*IF(OR(Scheme_Full="alpha",Scheme_Full="nuvos",Scheme_Full=""),1,IF(PT_Status="some part-time", future_PTP,1)) -> 1.002053388 | AK27: 0.9993155373 | AL27: 0.9993155373 | AM27: 0.9993155373 | AN27: 1.002053388 | AO27: 0.9993155373 | AP27: 0.9993155373 | AQ27: 0.9993155373 | AR27: 1.002053388 | AS27: 0.9993155373 | AT27: 0.9993155373 | AU27: 0.9993155373 | AV27: 1.002053388 | AW27: 0.9993155373 | AX27: 0.9993155373 | AY27: 0.9993155373 | AZ27: 1.002053388 | BA27: 0.9993155373 | BB27: 0.9993155373 | BC27: 0.9993155373 | BD27: 1.002053388 | BE27: 0.9993155373 | BF27: 0.9993155373 | BG27: 0.9993155373 | BH27: 1.002053388 | BI27: 0.9993155373 | BJ27: 0.9993155373 | BK27: 0.9993155373 | BL27: 1.002053388 | BM27: 0.9993155373 | BN27: 0.9993155373 | BO27: 0.9993155373 | BP27: =IF(AND(BP23,NOT(BP25)),BP26,0)*IF(OR(Scheme_Full="alpha",Scheme_Full="nuvos",Scheme_Full=""),1,IF(PT_Status="some part-time", future_PTP,1)) -> 1.002053388 | BQ27: 0.9993155373 | BR27: 0.9993155373 | BS27: 0.9993155373 | BT27: 1.002053388 | BU27: 0.9993155373 | BV27: 0.9993155373 | BW27: 0.9993155373 | BX27: 1.002053388 | BY27: 0.9993155373 | BZ27: 0.9993155373 | CA27: 0.9993155373 | CB27: 1.002053388 | CC27: 0.9993155373 | CD27: 0.9993155373 | CE27: 0.9993155373 | CF27: 1.002053388 | CG27: 0.9993155373 | CH27: 0.9993155373 | CI27: 0
B28: No years to wind back current salary | D28: =MAX(0,(StartScheme_Current-D20)/DoY) -> 11.00068446 | E28: 9.998631075 | F28: 8.999315537 | G28: 8 | H28: 7.000684463 | I28: 5.998631075 | J28: 4.999315537 | K28: 4 | L28: 3.000684463 | M28: 1.998631075 | N28: 0.9993155373 | O28: 0 | P28: 0 | Q28: 0 | R28: 0 | S28: 0 | T28: 0 | U28: 0 | V28: 0 | W28: 0 | X28: 0 | Y28: 0 | Z28: 0 | AA28: 0 | AB28: 0 | AC28: 0 | AD28: 0 | AE28: 0 | AF28: 0 | AG28: 0 | AH28: 0 | AI28: 0 | AJ28: =MAX(0,(StartScheme_Current-AJ20)/DoY) -> 0 | AK28: 0 | AL28: 0 | AM28: 0 | AN28: 0 | AO28: 0 | AP28: 0 | AQ28: 0 | AR28: 0 | AS28: 0 | AT28: 0 | AU28: 0 | AV28: 0 | AW28: 0 | AX28: 0 | AY28: 0 | AZ28: 0 | BA28: 0 | BB28: 0 | BC28: 0 | BD28: 0 | BE28: 0 | BF28: 0 | BG28: 0 | BH28: 0 | BI28: 0 | BJ28: 0 | BK28: 0 | BL28: 0 | BM28: 0 | BN28: 0 | BO28: 0 | BP28: =MAX(0,(StartScheme_Current-BP20)/DoY) -> 0 | BQ28: 0 | BR28: 0 | BS28: 0 | BT28: 0 | BU28: 0 | BV28: 0 | BW28: 0 | BX28: 0 | BY28: 0 | BZ28: 0 | CA28: 0 | CB28: 0 | CC28: 0 | CD28: 0 | CE28: 0 | CF28: 0 | CG28: 0 | CH28: 0 | CI28: 0
B29: ="Salary " & basis1 -> Salary CPI + 0.0% | D29: =IF(D20=StartScheme_Current,CurrentSal,IF(D28>0,CurrentSal/(1+cpi_2)^D28,IF(D28=0,C29*(1+cpi_1),CurrentSal))) -> 0 | E29: =IF(E20=StartScheme_Current,CurrentSal,IF(E28>0,CurrentSal/(1+cpi_2)^E28,IF(E28=0,D29*(1+cpi_1),CurrentSal))) -> 0 | F29: 0 | G29: 0 | H29: 0 | I29: 0 | J29: 0 | K29: 0 | L29: 0 | M29: 0 | N29: 0 | O29: 0 | P29: 0 | Q29: 0 | R29: 0 | S29: 0 | T29: 0 | U29: 0 | V29: 0 | W29: 0 | X29: 0 | Y29: 0 | Z29: 0 | AA29: 0 | AB29: 0 | AC29: 0 | AD29: 0 | AE29: 0 | AF29: 0 | AG29: 0 | AH29: 0 | AI29: 0 | AJ29: =IF(AJ20=StartScheme_Current,CurrentSal,IF(AJ28>0,CurrentSal/(1+cpi_2)^AJ28,IF(AJ28=0,AI29*(1+cpi_1),CurrentSal))) -> 0 | AK29: 0 | AL29: 0 | AM29: 0 | AN29: 0 | AO29: 0 | AP29: 0 | AQ29: 0 | AR29: 0 | AS29: 0 | AT29: 0 | AU29: 0 | AV29: 0 | AW29: 0 | AX29: 0 | AY29: 0 | AZ29: 0 | BA29: 0 | BB29: 0 | BC29: 0 | BD29: 0 | BE29: 0 | BF29: 0 | BG29: 0 | BH29: 0 | BI29: 0 | BJ29: 0 | BK29: 0 | BL29: 0 | BM29: 0 | BN29: 0 | BO29: 0 | BP29: =IF(BP20=StartScheme_Current,CurrentSal,IF(BP28>0,CurrentSal/(1+cpi_2)^BP28,IF(BP28=0,BO29*(1+cpi_1),CurrentSal))) -> 0 | BQ29: 0 | BR29: 0 | BS29: 0 | BT29: 0 | BU29: 0 | BV29: 0 | BW29: 0 | BX29: 0 | BY29: 0 | BZ29: 0 | CA29: 0 | CB29: 0 | CC29: 0 | CD29: 0 | CE29: 0 | CF29: 0 | CG29: 0 | CH29: 0 | CI29: 0
B30: ="Salary " & basis2 -> Salary CPI + 1.0% | D30: =IF(D20=StartScheme_Current,CurrentSal,IF(D28>0,CurrentSal/(1+cpi_2)^D28,IF(D28=0,C30*(1+cpi_2),CurrentSal))) -> 0 | E30: 0 | F30: 0 | G30: 0 | H30: 0 | I30: 0 | J30: 0 | K30: 0 | L30: 0 | M30: 0 | N30: 0 | O30: 0 | P30: 0 | Q30: 0 | R30: 0 | S30: 0 | T30: 0 | U30: 0 | V30: 0 | W30: 0 | X30: 0 | Y30: 0 | Z30: 0 | AA30: 0 | AB30: 0 | AC30: 0 | AD30: 0 | AE30: 0 | AF30: 0 | AG30: 0 | AH30: 0 | AI30: 0 | AJ30: =IF(AJ20=StartScheme_Current,CurrentSal,IF(AJ28>0,CurrentSal/(1+cpi_2)^AJ28,IF(AJ28=0,AI30*(1+cpi_2),CurrentSal))) -> 0 | AK30: 0 | AL30: 0 | AM30: 0 | AN30: 0 | AO30: 0 | AP30: 0 | AQ30: 0 | AR30: 0 | AS30: 0 | AT30: 0 | AU30: 0 | AV30: 0 | AW30: 0 | AX30: 0 | AY30: 0 | AZ30: 0 | BA30: 0 | BB30: 0 | BC30: 0 | BD30: 0 | BE30: 0 | BF30: 0 | BG30: 0 | BH30: 0 | BI30: 0 | BJ30: 0 | BK30: 0 | BL30: 0 | BM30: 0 | BN30: 0 | BO30: 0 | BP30: =IF(BP20=StartScheme_Current,CurrentSal,IF(BP28>0,CurrentSal/(1+cpi_2)^BP28,IF(BP28=0,BO30*(1+cpi_2),CurrentSal))) -> 0 | BQ30: 0 | BR30: 0 | BS30: 0 | BT30: 0 | BU30: 0 | BV30: 0 | BW30: 0 | BX30: 0 | BY30: 0 | BZ30: 0 | CA30: 0 | CB30: 0 | CC30: 0 | CD30: 0 | CE30: 0 | CF30: 0 | CG30: 0 | CH30: 0 | CI30: 0
B31: ="Salary " & basis3 -> Salary CPI + 2.0% | D31: =IF(D20=StartScheme_Current,CurrentSal,IF(D28>0,CurrentSal/(1+cpi_2)^D28,IF(D28=0,C31*(1+cpi_3),CurrentSal))) -> 0 | E31: 0 | F31: 0 | G31: 0 | H31: 0 | I31: 0 | J31: 0 | K31: 0 | L31: 0 | M31: 0 | N31: 0 | O31: 0 | P31: 0 | Q31: 0 | R31: 0 | S31: 0 | T31: 0 | U31: 0 | V31: 0 | W31: 0 | X31: 0 | Y31: 0 | Z31: 0 | AA31: 0 | AB31: 0 | AC31: 0 | AD31: 0 | AE31: 0 | AF31: 0 | AG31: 0 | AH31: 0 | AI31: 0 | AJ31: =IF(AJ20=StartScheme_Current,CurrentSal,IF(AJ28>0,CurrentSal/(1+cpi_2)^AJ28,IF(AJ28=0,AI31*(1+cpi_3),CurrentSal))) -> 0 | AK31: 0 | AL31: 0 | AM31: 0 | AN31: 0 | AO31: 0 | AP31: 0 | AQ31: 0 | AR31: 0 | AS31: 0 | AT31: 0 | AU31: 0 | AV31: 0 | AW31: 0 | AX31: 0 | AY31: 0 | AZ31: 0 | BA31: 0 | BB31: 0 | BC31: 0 | BD31: 0 | BE31: 0 | BF31: 0 | BG31: 0 | BH31: 0 | BI31: 0 | BJ31: 0 | BK31: 0 | BL31: 0 | BM31: 0 | BN31: 0 | BO31: 0 | BP31: =IF(BP20=StartScheme_Current,CurrentSal,IF(BP28>0,CurrentSal/(1+cpi_2)^BP28,IF(BP28=0,BO31*(1+cpi_3),CurrentSal))) -> 0 | BQ31: 0 | BR31: 0 | BS31: 0 | BT31: 0 | BU31: 0 | BV31: 0 | BW31: 0 | BX31: 0 | BY31: 0 | BZ31: 0 | CA31: 0 | CB31: 0 | CC31: 0 | CD31: 0 | CE31: 0 | CF31: 0 | CG31: 0 | CH31: 0 | CI31: 0
B32: ="Accrued CARE benefit " & basis1 -> Accrued CARE benefit CPI + 0.0% | D32: =D29*Acc_alpha*D27 -> 0 | E32: 0 | F32: 0 | G32: 0 | H32: 0 | I32: 0 | J32: 0 | K32: 0 | L32: 0 | M32: 0 | N32: 0 | O32: 0 | P32: 0 | Q32: 0 | R32: 0 | S32: 0 | T32: 0 | U32: 0 | V32: 0 | W32: 0 | X32: 0 | Y32: 0 | Z32: 0 | AA32: 0 | AB32: 0 | AC32: 0 | AD32: 0 | AE32: 0 | AF32: 0 | AG32: 0 | AH32: 0 | AI32: 0 | AJ32: =AJ29*Acc_alpha*AJ27 -> 0 | AK32: 0 | AL32: 0 | AM32: 0 | AN32: 0 | AO32: 0 | AP32: 0 | AQ32: 0 | AR32: 0 | AS32: 0 | AT32: 0 | AU32: 0 | AV32: 0 | AW32: 0 | AX32: 0 | AY32: 0 | AZ32: 0 | BA32: 0 | BB32: 0 | BC32: 0 | BD32: 0 | BE32: 0 | BF32: 0 | BG32: 0 | BH32: 0 | BI32: 0 | BJ32: 0 | BK32: 0 | BL32: 0 | BM32: 0 | BN32: 0 | BO32: 0 | BP32: =BP29*Acc_alpha*BP27 -> 0 | BQ32: 0 | BR32: 0 | BS32: 0 | BT32: 0 | BU32: 0 | BV32: 0 | BW32: 0 | BX32: 0 | BY32: 0 | BZ32: 0 | CA32: 0 | CB32: 0 | CC32: 0 | CD32: 0 | CE32: 0 | CF32: 0 | CG32: 0 | CH32: 0 | CI32: 0
B33: ="Accrued CARE benefit " & basis2 -> Accrued CARE benefit CPI + 1.0% | D33: =D30*Acc_alpha*D27 -> 0 | E33: 0 | F33: 0 | G33: 0 | H33: 0 | I33: 0 | J33: 0 | K33: 0 | L33: 0 | M33: 0 | N33: 0 | O33: 0 | P33: 0 | Q33: 0 | R33: 0 | S33: 0 | T33: 0 | U33: 0 | V33: 0 | W33: 0 | X33: 0 | Y33: 0 | Z33: 0 | AA33: 0 | AB33: 0 | AC33: 0 | AD33: 0 | AE33: 0 | AF33: 0 | AG33: 0 | AH33: 0 | AI33: 0 | AJ33: =AJ30*Acc_alpha*AJ27 -> 0 | AK33: 0 | AL33: 0 | AM33: 0 | AN33: 0 | AO33: 0 | AP33: 0 | AQ33: 0 | AR33: 0 | AS33: 0 | AT33: 0 | AU33: 0 | AV33: 0 | AW33: 0 | AX33: 0 | AY33: 0 | AZ33: 0 | BA33: 0 | BB33: 0 | BC33: 0 | BD33: 0 | BE33: 0 | BF33: 0 | BG33: 0 | BH33: 0 | BI33: 0 | BJ33: 0 | BK33: 0 | BL33: 0 | BM33: 0 | BN33: 0 | BO33: 0 | BP33: =BP30*Acc_alpha*BP27 -> 0 | BQ33: 0 | BR33: 0 | BS33: 0 | BT33: 0 | BU33: 0 | BV33: 0 | BW33: 0 | BX33: 0 | BY33: 0 | BZ33: 0 | CA33: 0 | CB33: 0 | CC33: 0 | CD33: 0 | CE33: 0 | CF33: 0 | CG33: 0 | CH33: 0 | CI33: 0
B34: ="Accrued CARE benefit " & basis3 -> Accrued CARE benefit CPI + 2.0% | D34: =D31*Acc_alpha*D27 -> 0 | E34: 0 | F34: 0 | G34: 0 | H34: 0 | I34: 0 | J34: 0 | K34: 0 | L34: 0 | M34: 0 | N34: 0 | O34: 0 | P34: 0 | Q34: 0 | R34: 0 | S34: 0 | T34: 0 | U34: 0 | V34: 0 | W34: 0 | X34: 0 | Y34: 0 | Z34: 0 | AA34: 0 | AB34: 0 | AC34: 0 | AD34: 0 | AE34: 0 | AF34: 0 | AG34: 0 | AH34: 0 | AI34: 0 | AJ34: =AJ31*Acc_alpha*AJ27 -> 0 | AK34: 0 | AL34: 0 | AM34: 0 | AN34: 0 | AO34: 0 | AP34: 0 | AQ34: 0 | AR34: 0 | AS34: 0 | AT34: 0 | AU34: 0 | AV34: 0 | AW34: 0 | AX34: 0 | AY34: 0 | AZ34: 0 | BA34: 0 | BB34: 0 | BC34: 0 | BD34: 0 | BE34: 0 | BF34: 0 | BG34: 0 | BH34: 0 | BI34: 0 | BJ34: 0 | BK34: 0 | BL34: 0 | BM34: 0 | BN34: 0 | BO34: 0 | BP34: =BP31*Acc_alpha*BP27 -> 0 | BQ34: 0 | BR34: 0 | BS34: 0 | BT34: 0 | BU34: 0 | BV34: 0 | BW34: 0 | BX34: 0 | BY34: 0 | BZ34: 0 | CA34: 0 | CB34: 0 | CC34: 0 | CD34: 0 | CE34: 0 | CF34: 0 | CG34: 0 | CH34: 0 | CI34: 0
B35: ="CARE revalued to date of retirement " & basis1 -> CARE revalued to date of retirement CPI + 0.0% | D35: =D32*(1+care_rev)^((DoR-D21)/DoY) -> 0 | E35: =E32*(1+care_rev)^((DoR-E21)/DoY) -> 0 | F35: =F32*(1+care_rev)^((DoR-F21)/DoY) -> 0 | G35: =G32*(1+care_rev)^((DoR-G21)/DoY) -> 0 | H35: =H32*(1+care_rev)^((DoR-H21)/DoY) -> 0 | I35: =I32*(1+care_rev)^((DoR-I21)/DoY) -> 0 | J35: =J32*(1+care_rev)^((DoR-J21)/DoY) -> 0 | K35: 0 | L35: 0 | M35: 0 | N35: 0 | O35: 0 | P35: 0 | Q35: 0 | R35: 0 | S35: 0 | T35: 0 | U35: 0 | V35: 0 | W35: 0 | X35: 0 | Y35: 0 | Z35: 0 | AA35: 0 | AB35: 0 | AC35: 0 | AD35: 0 | AE35: 0 | AF35: 0 | AG35: 0 | AH35: 0 | AI35: 0 | AJ35: 0 | AK35: 0 | AL35: 0 | AM35: 0 | AN35: 0 | AO35: 0 | AP35: 0 | AQ35: 0 | AR35: 0 | AS35: 0 | AT35: 0 | AU35: 0 | AV35: 0 | AW35: 0 | AX35: 0 | AY35: 0 | AZ35: 0 | BA35: 0 | BB35: 0 | BC35: 0 | BD35: 0 | BE35: 0 | BF35: 0 | BG35: 0 | BH35: 0 | BI35: 0 | BJ35: 0 | BK35: 0 | BL35: 0 | BM35: 0 | BN35: 0 | BO35: 0 | BP35: =BP32*(1+care_rev)^((DoR-BP21)/DoY) -> 0 | BQ35: 0 | BR35: 0 | BS35: 0 | BT35: 0 | BU35: 0 | BV35: 0 | BW35: 0 | BX35: 0 | BY35: 0 | BZ35: 0 | CA35: 0 | CB35: 0 | CC35: 0 | CD35: 0 | CE35: 0 | CF35: 0 | CG35: 0 | CH35: 0 | CI35: 0
B36: ="CARE revalued to date of retirement " & basis2 -> CARE revalued to date of retirement CPI + 1.0% | D36: =D33*(1+care_rev)^((DoR-D21)/DoY) -> 0 | E36: 0 | F36: 0 | G36: 0 | H36: 0 | I36: 0 | J36: 0 | K36: 0 | L36: 0 | M36: 0 | N36: 0 | O36: 0 | P36: 0 | Q36: 0 | R36: 0 | S36: 0 | T36: 0 | U36: 0 | V36: 0 | W36: 0 | X36: 0 | Y36: 0 | Z36: 0 | AA36: 0 | AB36: 0 | AC36: 0 | AD36: 0 | AE36: 0 | AF36: 0 | AG36: 0 | AH36: 0 | AI36: 0 | AJ36: =AJ33*(1+care_rev)^((DoR-AJ21)/DoY) -> 0 | AK36: 0 | AL36: 0 | AM36: 0 | AN36: 0 | AO36: 0 | AP36: 0 | AQ36: 0 | AR36: 0 | AS36: 0 | AT36: 0 | AU36: 0 | AV36: 0 | AW36: 0 | AX36: 0 | AY36: 0 | AZ36: 0 | BA36: 0 | BB36: 0 | BC36: 0 | BD36: 0 | BE36: 0 | BF36: 0 | BG36: 0 | BH36: 0 | BI36: 0 | BJ36: 0 | BK36: 0 | BL36: 0 | BM36: 0 | BN36: 0 | BO36: 0 | BP36: =BP33*(1+care_rev)^((DoR-BP21)/DoY) -> 0 | BQ36: 0 | BR36: 0 | BS36: 0 | BT36: 0 | BU36: 0 | BV36: 0 | BW36: 0 | BX36: 0 | BY36: 0 | BZ36: 0 | CA36: 0 | CB36: 0 | CC36: 0 | CD36: 0 | CE36: 0 | CF36: 0 | CG36: 0 | CH36: 0 | CI36: 0
B37: ="CARE revalued to date of retirement " & basis3 -> CARE revalued to date of retirement CPI + 2.0% | D37: =D34*(1+care_rev)^((DoR-D21)/DoY) -> 0 | E37: 0 | F37: 0 | G37: 0 | H37: 0 | I37: 0 | J37: 0 | K37: 0 | L37: 0 | M37: 0 | N37: 0 | O37: 0 | P37: 0 | Q37: 0 | R37: 0 | S37: 0 | T37: 0 | U37: 0 | V37: 0 | W37: 0 | X37: 0 | Y37: 0 | Z37: 0 | AA37: 0 | AB37: 0 | AC37: 0 | AD37: 0 | AE37: 0 | AF37: 0 | AG37: 0 | AH37: 0 | AI37: 0 | AJ37: =AJ34*(1+care_rev)^((DoR-AJ21)/DoY) -> 0 | AK37: 0 | AL37: 0 | AM37: 0 | AN37: 0 | AO37: 0 | AP37: 0 | AQ37: 0 | AR37: 0 | AS37: 0 | AT37: 0 | AU37: 0 | AV37: 0 | AW37: 0 | AX37: 0 | AY37: 0 | AZ37: 0 | BA37: 0 | BB37: 0 | BC37: 0 | BD37: 0 | BE37: 0 | BF37: 0 | BG37: 0 | BH37: 0 | BI37: 0 | BJ37: 0 | BK37: 0 | BL37: 0 | BM37: 0 | BN37: 0 | BO37: 0 | BP37: =BP34*(1+care_rev)^((DoR-BP21)/DoY) -> 0 | BQ37: 0 | BR37: 0 | BS37: 0 | BT37: 0 | BU37: 0 | BV37: 0 | BW37: 0 | BX37: 0 | BY37: 0 | BZ37: 0 | CA37: 0 | CB37: 0 | CC37: 0 | CD37: 0 | CE37: 0 | CF37: 0 | CG37: 0 | CH37: 0 | CI37: 0
B38: ERF | D38: =IFERROR(VLOOKUP(RA_month,IF(SPA=Parameters!F34,ERF01_table,IF(SPA=Parameters!F35,ERF02_table,IF(SPA=Parameters!F36,ERF03_table,IF(SPA=Parameters!F37,ERF04_table,1)))),RA_Year-52,FALSE),1) -> 1
B39: LRF projected | D39: =IFERROR(IF(D18>SPA,HLOOKUP(D18,LRF!$C$43:$R$44,2,FALSE)/HLOOKUP(D18-1,LRF!$C$43:$R$44,2,FALSE),1),1)-1 -> 0 | E39: =IFERROR(IF(E18>SPA,HLOOKUP(E18,LRF!$C$43:$R$44,2,FALSE)/HLOOKUP(E18-1,LRF!$C$43:$R$44,2,FALSE),1),1)-1 -> 0 | F39: =IFERROR(IF(F18>SPA,HLOOKUP(F18,LRF!$C$43:$R$44,2,FALSE)/HLOOKUP(F18-1,LRF!$C$43:$R$44,2,FALSE),1),1)-1 -> 0 | G39: =IFERROR(IF(G18>SPA,HLOOKUP(G18,LRF!$C$43:$R$44,2,FALSE)/HLOOKUP(G18-1,LRF!$C$43:$R$44,2,FALSE),1),1)-1 -> 0 | H39: =IFERROR(IF(H18>SPA,HLOOKUP(H18,LRF!$C$43:$R$44,2,FALSE)/HLOOKUP(H18-1,LRF!$C$43:$R$44,2,FALSE),1),1)-1 -> 0 | I39: =IFERROR(IF(I18>SPA,HLOOKUP(I18,LRF!$C$43:$R$44,2,FALSE)/HLOOKUP(I18-1,LRF!$C$43:$R$44,2,FALSE),1),1)-1 -> 0 | J39: =IFERROR(IF(J18>SPA,HLOOKUP(J18,LRF!$C$43:$R$44,2,FALSE)/HLOOKUP(J18-1,LRF!$C$43:$R$44,2,FALSE),1),1)-1 -> 0 | K39: =IFERROR(IF(K18>SPA,HLOOKUP(K18,LRF!$C$43:$R$44,2,FALSE)/HLOOKUP(K18-1,LRF!$C$43:$R$44,2,FALSE),1),1)-1 -> 0 | L39: =IFERROR(IF(L18>SPA,HLOOKUP(L18,LRF!$C$43:$R$44,2,FALSE)/HLOOKUP(L18-1,LRF!$C$43:$R$44,2,FALSE),1),1)-1 -> 0 | M39: =IFERROR(IF(M18>SPA,HLOOKUP(M18,LRF!$C$43:$R$44,2,FALSE)/HLOOKUP(M18-1,LRF!$C$43:$R$44,2,FALSE),1),1)-1 -> 0 | N39: =IFERROR(IF(N18>SPA,HLOOKUP(N18,LRF!$C$43:$R$44,2,FALSE)/HLOOKUP(N18-1,LRF!$C$43:$R$44,2,FALSE),1),1)-1 -> 0 | O39: =IFERROR(IF(O18>SPA,HLOOKUP(O18,LRF!$C$43:$R$44,2,FALSE)/HLOOKUP(O18-1,LRF!$C$43:$R$44,2,FALSE),1),1)-1 -> 0 | P39: =IFERROR(IF(P18>SPA,HLOOKUP(P18,LRF!$C$43:$R$44,2,FALSE)/HLOOKUP(P18-1,LRF!$C$43:$R$44,2,FALSE),1),1)-1 -> 0 | Q39: =IFERROR(IF(Q18>SPA,HLOOKUP(Q18,LRF!$C$43:$R$44,2,FALSE)/HLOOKUP(Q18-1,LRF!$C$43:$R$44,2,FALSE),1),1)-1 -> 0 | R39: =IFERROR(IF(R18>SPA,HLOOKUP(R18,LRF!$C$43:$R$44,2,FALSE)/HLOOKUP(R18-1,LRF!$C$43:$R$44,2,FALSE),1),1)-1 -> 0 | S39: =IFERROR(IF(S18>SPA,HLOOKUP(S18,LRF!$C$43:$R$44,2,FALSE)/HLOOKUP(S18-1,LRF!$C$43:$R$44,2,FALSE),1),1)-1 -> 0 | T39: =IFERROR(IF(T18>SPA,HLOOKUP(T18,LRF!$C$43:$R$44,2,FALSE)/HLOOKUP(T18-1,LRF!$C$43:$R$44,2,FALSE),1),1)-1 -> 0 | U39: =IFERROR(IF(U18>SPA,HLOOKUP(U18,LRF!$C$43:$R$44,2,FALSE)/HLOOKUP(U18-1,LRF!$C$43:$R$44,2,FALSE),1),1)-1 -> 0 | V39: =IFERROR(IF(V18>SPA,HLOOKUP(V18,LRF!$C$43:$R$44,2,FALSE)/HLOOKUP(V18-1,LRF!$C$43:$R$44,2,FALSE),1),1)-1 -> 0 | W39: =IFERROR(IF(W18>SPA,HLOOKUP(W18,LRF!$C$43:$R$44,2,FALSE)/HLOOKUP(W18-1,LRF!$C$43:$R$44,2,FALSE),1),1)-1 -> 0 | X39: =IFERROR(IF(X18>SPA,HLOOKUP(X18,LRF!$C$43:$R$44,2,FALSE)/HLOOKUP(X18-1,LRF!$C$43:$R$44,2,FALSE),1),1)-1 -> 0 | Y39: =IFERROR(IF(Y18>SPA,HLOOKUP(Y18,LRF!$C$43:$R$44,2,FALSE)/HLOOKUP(Y18-1,LRF!$C$43:$R$44,2,FALSE),1),1)-1 -> 0 | Z39: =IFERROR(IF(Z18>SPA,HLOOKUP(Z18,LRF!$C$43:$R$44,2,FALSE)/HLOOKUP(Z18-1,LRF!$C$43:$R$44,2,FALSE),1),1)-1 -> 0 | AA39: =IFERROR(IF(AA18>SPA,HLOOKUP(AA18,LRF!$C$43:$R$44,2,FALSE)/HLOOKUP(AA18-1,LRF!$C$43:$R$44,2,FALSE),1),1)-1 -> 0 | AB39: =IFERROR(IF(AB18>SPA,HLOOKUP(AB18,LRF!$C$43:$R$44,2,FALSE)/HLOOKUP(AB18-1,LRF!$C$43:$R$44,2,FALSE),1),1)-1 -> 0 | AC39: =IFERROR(IF(AC18>SPA,HLOOKUP(AC18,LRF!$C$43:$R$44,2,FALSE)/HLOOKUP(AC18-1,LRF!$C$43:$R$44,2,FALSE),1),1)-1 -> 0 | AD39: =IFERROR(IF(AD18>SPA,HLOOKUP(AD18,LRF!$C$43:$R$44,2,FALSE)/HLOOKUP(AD18-1,LRF!$C$43:$R$44,2,FALSE),1),1)-1 -> 0 | AE39: =IFERROR(IF(AE18>SPA,HLOOKUP(AE18,LRF!$C$43:$R$44,2,FALSE)/HLOOKUP(AE18-1,LRF!$C$43:$R$44,2,FALSE),1),1)-1 -> 0 | AF39: =IFERROR(IF(AF18>SPA,HLOOKUP(AF18,LRF!$C$43:$R$44,2,FALSE)/HLOOKUP(AF18-1,LRF!$C$43:$R$44,2,FALSE),1),1)-1 -> 0 | AG39: =IFERROR(IF(AG18>SPA,HLOOKUP(AG18,LRF!$C$43:$R$44,2,FALSE)/HLOOKUP(AG18-1,LRF!$C$43:$R$44,2,FALSE),1),1)-1 -> 0 | AH39: =IFERROR(IF(AH18>SPA,HLOOKUP(AH18,LRF!$C$43:$R$44,2,FALSE)/HLOOKUP(AH18-1,LRF!$C$43:$R$44,2,FALSE),1),1)-1 -> 0 | AI39: =IFERROR(IF(AI18>SPA,HLOOKUP(AI18,LRF!$C$43:$R$44,2,FALSE)/HLOOKUP(AI18-1,LRF!$C$43:$R$44,2,FALSE),1),1)-1 -> 0 | AJ39: =IFERROR(IF(AJ18>SPA,HLOOKUP(AJ18,LRF!$C$43:$R$44,2,FALSE)/HLOOKUP(AJ18-1,LRF!$C$43:$R$44,2,FALSE),1),1)-1 -> 0 | AK39: =IFERROR(IF(AK18>SPA,HLOOKUP(AK18,LRF!$C$43:$R$44,2,FALSE)/HLOOKUP(AK18-1,LRF!$C$43:$R$44,2,FALSE),1),1)-1 -> 0 | AL39: =IFERROR(IF(AL18>SPA,HLOOKUP(AL18,LRF!$C$43:$R$44,2,FALSE)/HLOOKUP(AL18-1,LRF!$C$43:$R$44,2,FALSE),1),1)-1 -> 0 | AM39: =IFERROR(IF(AM18>SPA,HLOOKUP(AM18,LRF!$C$43:$R$44,2,FALSE)/HLOOKUP(AM18-1,LRF!$C$43:$R$44,2,FALSE),1),1)-1 -> 0 | AN39: =IFERROR(IF(AN18>SPA,HLOOKUP(AN18,LRF!$C$43:$R$44,2,FALSE)/HLOOKUP(AN18-1,LRF!$C$43:$R$44,2,FALSE),1),1)-1 -> 0 | AO39: =IFERROR(IF(AO18>SPA,HLOOKUP(AO18,LRF!$C$43:$R$44,2,FALSE)/HLOOKUP(AO18-1,LRF!$C$43:$R$44,2,FALSE),1),1)-1 -> 0 | AP39: =IFERROR(IF(AP18>SPA,HLOOKUP(AP18,LRF!$C$43:$R$44,2,FALSE)/HLOOKUP(AP18-1,LRF!$C$43:$R$44,2,FALSE),1),1)-1 -> 0 | AQ39: =IFERROR(IF(AQ18>SPA,HLOOKUP(AQ18,LRF!$C$43:$R$44,2,FALSE)/HLOOKUP(AQ18-1,LRF!$C$43:$R$44,2,FALSE),1),1)-1 -> 0 | AR39: =IFERROR(IF(AR18>SPA,HLOOKUP(AR18,LRF!$C$43:$R$44,2,FALSE)/HLOOKUP(AR18-1,LRF!$C$43:$R$44,2,FALSE),1),1)-1 -> 0 | AS39: =IFERROR(IF(AS18>SPA,HLOOKUP(AS18,LRF!$C$43:$R$44,2,FALSE)/HLOOKUP(AS18-1,LRF!$C$43:$R$44,2,FALSE),1),1)-1 -> 0 | AT39: =IFERROR(IF(AT18>SPA,HLOOKUP(AT18,LRF!$C$43:$R$44,2,FALSE)/HLOOKUP(AT18-1,LRF!$C$43:$R$44,2,FALSE),1),1)-1 -> 0 | AU39: =IFERROR(IF(AU18>SPA,HLOOKUP(AU18,LRF!$C$43:$R$44,2,FALSE)/HLOOKUP(AU18-1,LRF!$C$43:$R$44,2,FALSE),1),1)-1 -> 0 | AV39: =IFERROR(IF(AV18>SPA,HLOOKUP(AV18,LRF!$C$43:$R$44,2,FALSE)/HLOOKUP(AV18-1,LRF!$C$43:$R$44,2,FALSE),1),1)-1 -> 0 | AW39: =IFERROR(IF(AW18>SPA,HLOOKUP(AW18,LRF!$C$43:$R$44,2,FALSE)/HLOOKUP(AW18-1,LRF!$C$43:$R$44,2,FALSE),1),1)-1 -> 0 | AX39: =IFERROR(IF(AX18>SPA,HLOOKUP(AX18,LRF!$C$43:$R$44,2,FALSE)/HLOOKUP(AX18-1,LRF!$C$43:$R$44,2,FALSE),1),1)-1 -> 0 | AY39: =IFERROR(IF(AY18>SPA,HLOOKUP(AY18,LRF!$C$43:$R$44,2,FALSE)/HLOOKUP(AY18-1,LRF!$C$43:$R$44,2,FALSE),1),1)-1 -> 0 | AZ39: =IFERROR(IF(AZ18>SPA,HLOOKUP(AZ18,LRF!$C$43:$R$44,2,FALSE)/HLOOKUP(AZ18-1,LRF!$C$43:$R$44,2,FALSE),1),1)-1 -> 0 | BA39: =IFERROR(IF(BA18>SPA,HLOOKUP(BA18,LRF!$C$43:$R$44,2,FALSE)/HLOOKUP(BA18-1,LRF!$C$43:$R$44,2,FALSE),1),1)-1 -> 0 | BB39: =IFERROR(IF(BB18>SPA,HLOOKUP(BB18,LRF!$C$43:$R$44,2,FALSE)/HLOOKUP(BB18-1,LRF!$C$43:$R$44,2,FALSE),1),1)-1 -> 0 | BC39: =IFERROR(IF(BC18>SPA,HLOOKUP(BC18,LRF!$C$43:$R$44,2,FALSE)/HLOOKUP(BC18-1,LRF!$C$43:$R$44,2,FALSE),1),1)-1 -> 0 | BD39: =IFERROR(IF(BD18>SPA,HLOOKUP(BD18,LRF!$C$43:$R$44,2,FALSE)/HLOOKUP(BD18-1,LRF!$C$43:$R$44,2,FALSE),1),1)-1 -> 0 | BE39: =IFERROR(IF(BE18>SPA,HLOOKUP(BE18,LRF!$C$43:$R$44,2,FALSE)/HLOOKUP(BE18-1,LRF!$C$43:$R$44,2,FALSE),1),1)-1 -> 0 | BF39: =IFERROR(IF(BF18>SPA,HLOOKUP(BF18,LRF!$C$43:$R$44,2,FALSE)/HLOOKUP(BF18-1,LRF!$C$43:$R$44,2,FALSE),1),1)-1 -> 0 | BG39: =IFERROR(IF(BG18>SPA,HLOOKUP(BG18,LRF!$C$43:$R$44,2,FALSE)/HLOOKUP(BG18-1,LRF!$C$43:$R$44,2,FALSE),1),1)-1 -> 0 | BH39: =IFERROR(IF(BH18>SPA,HLOOKUP(BH18,LRF!$C$43:$R$44,2,FALSE)/HLOOKUP(BH18-1,LRF!$C$43:$R$44,2,FALSE),1),1)-1 -> 0 | BI39: =IFERROR(IF(BI18>SPA,HLOOKUP(BI18,LRF!$C$43:$R$44,2,FALSE)/HLOOKUP(BI18-1,LRF!$C$43:$R$44,2,FALSE),1),1)-1 -> 0 | BJ39: =IFERROR(IF(BJ18>SPA,HLOOKUP(BJ18,LRF!$C$43:$R$44,2,FALSE)/HLOOKUP(BJ18-1,LRF!$C$43:$R$44,2,FALSE),1),1)-1 -> 0 | BK39: =IFERROR(IF(BK18>SPA,HLOOKUP(BK18,LRF!$C$43:$R$44,2,FALSE)/HLOOKUP(BK18-1,LRF!$C$43:$R$44,2,FALSE),1),1)-1 -> 0 | BL39: =IFERROR(IF(BL18>SPA,HLOOKUP(BL18,LRF!$C$43:$R$44,2,FALSE)/HLOOKUP(BL18-1,LRF!$C$43:$R$44,2,FALSE),1),1)-1 -> 0 | BM39: =IFERROR(IF(BM18>SPA,HLOOKUP(BM18,LRF!$C$43:$R$44,2,FALSE)/HLOOKUP(BM18-1,LRF!$C$43:$R$44,2,FALSE),1),1)-1 -> 0 | BN39: =IFERROR(IF(BN18>SPA,HLOOKUP(BN18,LRF!$C$43:$R$44,2,FALSE)/HLOOKUP(BN18-1,LRF!$C$43:$R$44,2,FALSE),1),1)-1 -> 0 | BO39: =IFERROR(IF(BO18>SPA,HLOOKUP(BO18,LRF!$C$43:$R$44,2,FALSE)/HLOOKUP(BO18-1,LRF!$C$43:$R$44,2,FALSE),1),1)-1 -> 0 | BP39: =IFERROR(IF(BP18>SPA,HLOOKUP(BP18,LRF!$C$43:$R$44,2,FALSE)/HLOOKUP(BP18-1,LRF!$C$43:$R$44,2,FALSE),1),1)-1 -> 0 | BQ39: =IFERROR(IF(BQ18>SPA,HLOOKUP(BQ18,LRF!$C$43:$R$44,2,FALSE)/HLOOKUP(BQ18-1,LRF!$C$43:$R$44,2,FALSE),1),1)-1 -> 0 | BR39: =IFERROR(IF(BR18>SPA,HLOOKUP(BR18,LRF!$C$43:$R$44,2,FALSE)/HLOOKUP(BR18-1,LRF!$C$43:$R$44,2,FALSE),1),1)-1 -> 0 | BS39: =IFERROR(IF(BS18>SPA,HLOOKUP(BS18,LRF!$C$43:$R$44,2,FALSE)/HLOOKUP(BS18-1,LRF!$C$43:$R$44,2,FALSE),1),1)-1 -> 0 | BT39: =IFERROR(IF(BT18>SPA,HLOOKUP(BT18,LRF!$C$43:$R$44,2,FALSE)/HLOOKUP(BT18-1,LRF!$C$43:$R$44,2,FALSE),1),1)-1 -> 0 | BU39: =IFERROR(IF(BU18>SPA,HLOOKUP(BU18,LRF!$C$43:$R$44,2,FALSE)/HLOOKUP(BU18-1,LRF!$C$43:$R$44,2,FALSE),1),1)-1 -> 0 | BV39: =IFERROR(IF(BV18>SPA,HLOOKUP(BV18,LRF!$C$43:$R$44,2,FALSE)/HLOOKUP(BV18-1,LRF!$C$43:$R$44,2,FALSE),1),1)-1 -> 0 | BW39: =IFERROR(IF(BW18>SPA,HLOOKUP(BW18,LRF!$C$43:$R$44,2,FALSE)/HLOOKUP(BW18-1,LRF!$C$43:$R$44,2,FALSE),1),1)-1 -> 0 | BX39: =IFERROR(IF(BX18>SPA,HLOOKUP(BX18,LRF!$C$43:$R$44,2,FALSE)/HLOOKUP(BX18-1,LRF!$C$43:$R$44,2,FALSE),1),1)-1 -> 0 | BY39: =IFERROR(IF(BY18>SPA,HLOOKUP(BY18,LRF!$C$43:$R$44,2,FALSE)/HLOOKUP(BY18-1,LRF!$C$43:$R$44,2,FALSE),1),1)-1 -> 0 | BZ39: =IFERROR(IF(BZ18>SPA,HLOOKUP(BZ18,LRF!$C$43:$R$44,2,FALSE)/HLOOKUP(BZ18-1,LRF!$C$43:$R$44,2,FALSE),1),1)-1 -> 0 | CA39: =IFERROR(IF(CA18>SPA,HLOOKUP(CA18,LRF!$C$43:$R$44,2,FALSE)/HLOOKUP(CA18-1,LRF!$C$43:$R$44,2,FALSE),1),1)-1 -> 0 | CB39: =IFERROR(IF(CB18>SPA,HLOOKUP(CB18,LRF!$C$43:$R$44,2,FALSE)/HLOOKUP(CB18-1,LRF!$C$43:$R$44,2,FALSE),1),1)-1 -> 0 | CC39: =IFERROR(IF(CC18>SPA,HLOOKUP(CC18,LRF!$C$43:$R$44,2,FALSE)/HLOOKUP(CC18-1,LRF!$C$43:$R$44,2,FALSE),1),1)-1 -> 0 | CD39: =IFERROR(IF(CD18>SPA,HLOOKUP(CD18,LRF!$C$43:$R$44,2,FALSE)/HLOOKUP(CD18-1,LRF!$C$43:$R$44,2,FALSE),1),1)-1 -> 0 | CE39: =IFERROR(IF(CE18>SPA,HLOOKUP(CE18,LRF!$C$43:$R$44,2,FALSE)/HLOOKUP(CE18-1,LRF!$C$43:$R$44,2,FALSE),1),1)-1 -> 0 | CF39: =IFERROR(IF(CF18>SPA,HLOOKUP(CF18,LRF!$C$43:$R$44,2,FALSE)/HLOOKUP(CF18-1,LRF!$C$43:$R$44,2,FALSE),1),1)-1 -> 0 | CG39: =IFERROR(IF(CG18>SPA,HLOOKUP(CG18,LRF!$C$43:$R$44,2,FALSE)/HLOOKUP(CG18-1,LRF!$C$43:$R$44,2,FALSE),1),1)-1 -> 0 | CH39: =IFERROR(IF(CH18>SPA,HLOOKUP(CH18,LRF!$C$43:$R$44,2,FALSE)/HLOOKUP(CH18-1,LRF!$C$43:$R$44,2,FALSE),1),1)-1 -> 0 | CI39: =IFERROR(IF(CI18>SPA,HLOOKUP(CI18,LRF!$C$43:$R$44,2,FALSE)/HLOOKUP(CI18-1,LRF!$C$43:$R$44,2,FALSE),1),1)-1 -> 0
B40: LRF applied to ABS | D40: =IF(D32=0,1,1+D39) -> 1 | E40: 1 | F40: 1 | G40: 1 | H40: 1 | I40: 1 | J40: 1 | K40: 1 | L40: 1 | M40: 1 | N40: 1 | O40: 1 | P40: 1 | Q40: 1 | R40: =IF(R32=0,1,1+R39) -> 1 | S40: 1 | T40: 1 | U40: 1 | V40: 1 | W40: 1 | X40: 1 | Y40: 1 | Z40: 1 | AA40: 1 | AB40: 1 | AC40: 1 | AD40: 1 | AE40: 1 | AF40: 1 | AG40: 1 | AH40: 1 | AI40: 1 | AJ40: 1 | AK40: 1 | AL40: 1 | AM40: 1 | AN40: 1 | AO40: 1 | AP40: 1 | AQ40: 1 | AR40: 1 | AS40: 1 | AT40: 1 | AU40: 1 | AV40: 1 | AW40: 1 | AX40: 1 | AY40: 1 | AZ40: 1 | BA40: 1 | BB40: 1 | BC40: 1 | BD40: 1 | BE40: 1 | BF40: 1 | BG40: 1 | BH40: 1 | BI40: 1 | BJ40: 1 | BK40: 1 | BL40: 1 | BM40: 1 | BN40: 1 | BO40: 1 | BP40: 1 | BQ40: =IF(BQ32=0,1,1+BQ39) -> 1 | BR40: 1 | BS40: 1 | BT40: 1 | BU40: 1 | BV40: 1 | BW40: 1 | BX40: 1 | BY40: 1 | BZ40: 1 | CA40: 1 | CB40: 1 | CC40: 1 | CD40: 1 | CE40: 1 | CF40: 1 | CG40: 1 | CH40: 1 | CI40: 1
B41: ="Balance " & basis1 -> Balance CPI + 0.0% | D41: =IF(D32=0,0,C41*(1+care_rev)+C41*D39+D32) -> 0 | E41: 0 | F41: 0 | G41: 0 | H41: 0 | I41: 0 | J41: 0 | K41: 0 | L41: 0 | M41: 0 | N41: 0 | O41: 0 | P41: 0 | Q41: 0 | R41: 0 | S41: 0 | T41: 0 | U41: 0 | V41: 0 | W41: 0 | X41: 0 | Y41: 0 | Z41: 0 | AA41: 0 | AB41: 0 | AC41: 0 | AD41: 0 | AE41: 0 | AF41: 0 | AG41: 0 | AH41: 0 | AI41: 0 | AJ41: =IF(AJ32=0,0,AI41*(1+care_rev)+AI41*AJ39+AJ32) -> 0 | AK41: 0 | AL41: 0 | AM41: 0 | AN41: 0 | AO41: 0 | AP41: 0 | AQ41: 0 | AR41: 0 | AS41: 0 | AT41: 0 | AU41: 0 | AV41: 0 | AW41: 0 | AX41: 0 | AY41: 0 | AZ41: 0 | BA41: 0 | BB41: 0 | BC41: 0 | BD41: 0 | BE41: 0 | BF41: 0 | BG41: 0 | BH41: 0 | BI41: 0 | BJ41: 0 | BK41: 0 | BL41: 0 | BM41: 0 | BN41: 0 | BO41: 0 | BP41: =IF(BP32=0,0,BO41*(1+care_rev)+BO41*BP39+BP32) -> 0 | BQ41: 0 | BR41: 0 | BS41: 0 | BT41: 0 | BU41: 0 | BV41: 0 | BW41: 0 | BX41: 0 | BY41: 0 | BZ41: 0 | CA41: 0 | CB41: 0 | CC41: 0 | CD41: 0 | CE41: 0 | CF41: 0 | CG41: 0 | CH41: 0 | CI41: 0
B42: ="Balance " & basis2 -> Balance CPI + 1.0% | D42: =IF(D33=0,0,C42*(1+care_rev)+C42*D39+D33) -> 0 | E42: 0 | F42: 0 | G42: 0 | H42: 0 | I42: 0 | J42: 0 | K42: 0 | L42: 0 | M42: 0 | N42: 0 | O42: 0 | P42: 0 | Q42: 0 | R42: 0 | S42: 0 | T42: 0 | U42: 0 | V42: 0 | W42: 0 | X42: 0 | Y42: 0 | Z42: 0 | AA42: 0 | AB42: 0 | AC42: 0 | AD42: 0 | AE42: 0 | AF42: 0 | AG42: 0 | AH42: 0 | AI42: 0 | AJ42: =IF(AJ33=0,0,AI42*(1+care_rev)+AI42*AJ39+AJ33) -> 0 | AK42: 0 | AL42: 0 | AM42: 0 | AN42: 0 | AO42: 0 | AP42: 0 | AQ42: 0 | AR42: 0 | AS42: 0 | AT42: 0 | AU42: 0 | AV42: 0 | AW42: 0 | AX42: 0 | AY42: 0 | AZ42: 0 | BA42: 0 | BB42: 0 | BC42: 0 | BD42: 0 | BE42: 0 | BF42: 0 | BG42: 0 | BH42: 0 | BI42: 0 | BJ42: 0 | BK42: 0 | BL42: 0 | BM42: 0 | BN42: 0 | BO42: 0 | BP42: =IF(BP33=0,0,BO42*(1+care_rev)+BO42*BP39+BP33) -> 0 | BQ42: 0 | BR42: 0 | BS42: 0 | BT42: 0 | BU42: 0 | BV42: 0 | BW42: 0 | BX42: 0 | BY42: 0 | BZ42: 0 | CA42: 0 | CB42: 0 | CC42: 0 | CD42: 0 | CE42: 0 | CF42: 0 | CG42: 0 | CH42: 0 | CI42: 0
B43: ="Balance " & basis3 -> Balance CPI + 2.0% | D43: =IF(D34=0,0,C43*(1+care_rev)+C43*D39+D34) -> 0 | E43: 0 | F43: 0 | G43: 0 | H43: 0 | I43: 0 | J43: 0 | K43: 0 | L43: 0 | M43: 0 | N43: 0 | O43: 0 | P43: 0 | Q43: 0 | R43: 0 | S43: 0 | T43: 0 | U43: 0 | V43: 0 | W43: 0 | X43: 0 | Y43: 0 | Z43: 0 | AA43: 0 | AB43: 0 | AC43: 0 | AD43: 0 | AE43: 0 | AF43: 0 | AG43: 0 | AH43: 0 | AI43: 0 | AJ43: =IF(AJ34=0,0,AI43*(1+care_rev)+AI43*AJ39+AJ34) -> 0 | AK43: 0 | AL43: 0 | AM43: 0 | AN43: 0 | AO43: 0 | AP43: 0 | AQ43: 0 | AR43: 0 | AS43: 0 | AT43: 0 | AU43: 0 | AV43: 0 | AW43: 0 | AX43: 0 | AY43: 0 | AZ43: 0 | BA43: 0 | BB43: 0 | BC43: 0 | BD43: 0 | BE43: 0 | BF43: 0 | BG43: 0 | BH43: 0 | BI43: 0 | BJ43: 0 | BK43: 0 | BL43: 0 | BM43: 0 | BN43: 0 | BO43: 0 | BP43: =IF(BP34=0,0,BO43*(1+care_rev)+BO43*BP39+BP34) -> 0 | BQ43: 0 | BR43: 0 | BS43: 0 | BT43: 0 | BU43: 0 | BV43: 0 | BW43: 0 | BX43: 0 | BY43: 0 | BZ43: 0 | CA43: 0 | CB43: 0 | CC43: 0 | CD43: 0 | CE43: 0 | CF43: 0 | CG43: 0 | CH43: 0 | CI43: 0
B45: ="Sum " & basis1 -> Sum CPI + 0.0% | D45: =MAX(D41:CI41)*$D$38 -> 0
B46: ="Sum " & basis2 -> Sum CPI + 1.0% | D46: =MAX(D42:CI42)*$D$38 -> 0
B47: ="Sum " & basis3 -> Sum CPI + 2.0% | D47: =MAX(D43:CI43)*$D$38 -> 0
B49: Input accrued CARE | D49: =Calculator!L38 -> 0
B50: As at date | D50: =DATE(IF(alpha_ABSEndDate1=0, YEAR(StartScheme_Current), alpha_ABSEndDate1),4,1) -> 2026-04-01
B51: revalued to date of ret + LRF/ERF | D51: =D38*D49*PRODUCT(D40:CI40)*(1+D10)^((DoR-D50)/DoY) -> 0
B52: Accrued Care from ABS? | D52: =Parameters!B93 -> FALSE
B53: ="accrued benefit at retirement date " & basis1 -> accrued benefit at retirement date CPI + 0.0% | D53: =D45+IF(D52,D51,0) -> 0
B54: ="accrued benefit at retirement date " & basis2 -> accrued benefit at retirement date CPI + 1.0% | D54: =D46+IF(D52,D51,0) -> 0
B55: ="accrued benefit at retirement date " & basis3 -> accrued benefit at retirement date CPI + 2.0% | D55: =D47+IF(D52,D51,0) -> 0
B56: ="Accrued benefit discounted to current date " & basis1 -> Accrued benefit discounted to current date CPI + 0.0% | D56: =D53*(1+cpi)^((Date_curr-$F$13)/DoY) -> 0
B57: ="Accrued benefit discounted to current date " & basis2 -> Accrued benefit discounted to current date CPI + 1.0% | D57: =D54*(1+cpi)^((Date_curr-$F$13)/DoY) -> 0
B58: ="Accrued benefit discounted to current date " & basis3 -> Accrued benefit discounted to current date CPI + 2.0% | D58: =D55*(1+cpi)^((Date_curr-$F$13)/DoY) -> 0

Sheet nuvos CARE calcs_NOT USED (hidden)
A1: Government Actuary's Department
A2: =IF(title="> Enter workbook title here","Enter workbook title in Cover sheet",title) -> Northern Ireland Civil Service Pension Scheme Calculator
A3: CARE calcs
A4: =CELL("filename",A1) -> C:\Users\dof-aytond\Desktop\[NICS - BenProjectCalculator v0.21.xlsm]nuvos CARE calcs_NOT USED
D5: the general method is to project care from the start of the current scheme year, then subtract off what would be accrued during the remaining part of the taper in that period, revalued to the DoR.
C9: Protection Status | D9: ='FS calcs'!ProtStatus -> TRUE
C10: Date Protection Date ends | D10: ='nuvos Calcs'!D15 -> 00:00:00
C12: Date joined/join nuvos | D12: =+DJS -> 00:00:00
C13: start of projection | D13: =DoStartSchYear_nuvos -> 2026-04-01 | E13: this may be before transfer into CARE
C14: Period to discount for inflation | D14: =YEARFRAC(Date_curr, DoR) -> 126.6694444
C15: projection term | D15: =YEARFRAC(D12,D10) -> 0 | E15: total
C16: CARE projection term | D16: =YEARFRAC(D12,DoR) -> 0 | E16: from joining CARE
C17: SPA to DoR | D17: =MAX(D25-D24,0) -> 
C18: total CARE membership | D18: =YEARFRAC(D12,DoR) -> 0
C19: remaining taper period | D19: =MAX(0,D15-D18) -> 0
C20: integer part of total projection | D20: =INT(D15) -> 0
C21: remainder part of total projection | D21: =D15-D20 -> 0
C22: integer part of taper deduction | D22: =INT(D19) -> 0
C23: remainder part of taper projection | D23: =D19-D22 -> 0
C24: SPA | D24: =VLOOKUP(DoB,Parameters!D34:F37,3,TRUE) -> 
C25: Retirement at | D25: =ChosenRA -> 0
D27: Early and Late Retirement Factors
C28: LRF | D28: =IF(ChosenRA<=SPA,1,VLOOKUP(LRF_Months,LRF3_table,ChosenRA-63,0)) -> 
C29: ERF | D29: =IF(ChosenRA<55,1,IF(ChosenRA<SPA,VLOOKUP(ERF_Months,INDIRECT(F29),ChosenRA-52,FALSE),1)) -> 1 | E29: ERF table for SPA: | F29: =+IF(SPA=65,"ERF01_table",IF(SPA=66,"ERF02_table",IF(SPA=67,"ERF03_table","ERF04_table"))) -> 
C31: CARE past service pension (before ERF and LRF) | D31: =#REF! ->  | E31: =#REF! ->  | F31: =#REF! -> 
D32: low | E32: medium | F32: high
C33: Salary factor | D33: =1+cpi_1 -> 1.02 | E33: =1+cpi_2 -> 1.03 | F33: =1+cpi_3 -> 1.04
C34: CARE factor | D34: =((1+care_rev)/D33) -> 1 | E34: =((1+care_rev)/E33) -> 0.9902912621 | F34: =((1+care_rev)/F33) -> 0.9807692308
C35: Discount factor (1+s) | D35: =(1+cpi_1)/(1+cpi) -> 1 | E35: =(1+cpi_2)/(1+cpi) -> 1.009803922 | F35: =(1+cpi_3)/(1+cpi) -> 1.019607843
C36: Pension over entire period (including taper and ERF/LRF) | D36: =CurrentSal*Acc_nuvos*D$33^($D15)*IFERROR((1-D$34^$D15)/(1-D$34),1) -> 0 | E36: =CurrentSal*Acc_nuvos*E$33^($D15)*(1-E$34^$D15)/(1-E$34) -> 0 | F36: =CurrentSal*Acc_nuvos*F$33^($D15)*(1-F$34^$D15)/(1-F$34) -> 0
C37: Length of future taper period | D37: =D19 -> 0 | E37: =D37 -> 0 | F37: =E37 -> 0
C38: Revalued pension missed in taper period | D38: =CurrentSal*Acc_alpha*D$33^($D37)*(1-D$34^$D37)/(1-D$34)*(1+care_rev)^$D16 ->  | E38: =CurrentSal*Acc_alpha*E$33^($E37)*(1-E$34^$E37)/(1-E$34)*(1+care_rev)^$D16 -> 0 | F38: =CurrentSal*Acc_alpha*F$33^($F37)*(1-F$34^$F37)/(1-F$34)*(1+care_rev)^$D16 -> 0
C39: CARE future service pension | D39: =D36-D38 ->  | E39: =E36-E38 -> 0 | F39: =F36-F38 -> 0
C40: Discounted pension | D40: =SUM(D31,D39)/(1+cpi)^$D14 ->  | E40: =SUM(E31,E39)/(1+cpi)^$D14 ->  | F40: =SUM(F31,F39)/(1+cpi)^$D14 -> 
C41: Apply ERF and LRF | D41: =D40*$D29*$D28 ->  | E41: =E40*$D29*$D28 ->  | F41: =F40*$D29*$D28 -> 
C42: Final Pension (includes PTP) | D42: =IF(PT_Status="some Part-Time",D41*future_PTP,D41) ->  | E42: =IF(PT_Status="some Part-Time",E41*future_PTP,E41) ->  | F42: =IF(PT_Status="some Part-Time",F41*future_PTP,F41) -> 

Sheet alpha CARE calcs_NOT USED (hidden)
A1: Government Actuary's Department
A2: =IF(title="> Enter workbook title here","Enter workbook title in Cover sheet",title) -> Northern Ireland Civil Service Pension Scheme Calculator
A3: CARE calcs
A4: =CELL("filename",A1) -> C:\Users\dof-aytond\Desktop\[NICS - BenProjectCalculator v0.21.xlsm]alpha CARE calcs_NOT USED
D5: the general method is to project care from the start of the current scheme year, then subtract off what would be accrued during the remaining part of the taper in that period, revalued to the DoR.
C9: Protection Status | D9: ='FS calcs'!ProtStatus -> TRUE
C10: Date Protection Date ends | D10: =IF(Scheme_Full="nuvos",'nuvos Calcs'!D15,'FS calcs'!DoProtEnd) -> 00:00:00
C12: Date joined/join alpha | D12: =MIN(DoR,MAX(DJS,D10)) -> 00:00:00
C13: start of projection | D13: =DoStartSchYear_alpha -> 2026-04-01 | E13: this may be before transfer into CARE
C14: Period to discount for inflation | D14: =YEARFRAC(Date_curr, DoR) -> 126.6694444
C15: projection term | D15: =YEARFRAC(D13,DoR) -> 126.2527778 | E15: total
C16: CARE projection term | D16: =YEARFRAC(D12,DoR) -> 0 | E16: from joining CARE
C17: SPA to DoR | D17: =MAX(D25-D24,0) -> 
C18: total CARE membership | D18: =YEARFRAC(D12,DoR) -> 0
C19: remaining taper period | D19: =MAX(0,D15-D18) -> 126.2527778
C20: integer part of total projection | D20: =INT(D15) -> 126
C21: remainder part of total projection | D21: =D15-D20 -> 0.2527777778
C22: integer part of taper deduction | D22: =INT(D19) -> 126
C23: remainder part of taper projection | D23: =D19-D22 -> 0.2527777778
C24: SPA | D24: =VLOOKUP(DoB,Parameters!D34:F37,3,TRUE) -> 
C25: Retirement at | D25: =ChosenRA -> 0
D27: Early and Late Retirement Factors
C28: LRF | D28: =IF(ChosenRA<=SPA,1,VLOOKUP(LRF_Months,LRF3_table,ChosenRA-63,0)) -> 
C29: ERF | D29: =IF(ChosenRA<55,1,IF(ChosenRA<SPA,VLOOKUP(ERF_Months,INDIRECT(F29),ChosenRA-52,FALSE),1)) -> 1 | E29: ERF table for SPA: | F29: =+IF(SPA=65,"ERF01_table",IF(SPA=66,"ERF02_table",IF(SPA=67,"ERF03_table","ERF04_table"))) -> 
C31: CARE past service pension (before ERF and LRF) | D31: =#REF! ->  | E31: =#REF! ->  | F31: =#REF! -> 
D32: low | E32: medium | F32: high
C33: Salary factor | D33: =1+cpi_1 -> 1.02 | E33: =1+cpi_2 -> 1.03 | F33: =1+cpi_3 -> 1.04
C34: CARE factor | D34: =((1+care_rev)/D33) -> 1 | E34: =((1+care_rev)/E33) -> 0.9902912621 | F34: =((1+care_rev)/F33) -> 0.9807692308
C35: Discount factor (1+s) | D35: =(1+cpi_1)/(1+cpi) -> 1 | E35: =(1+cpi_2)/(1+cpi) -> 1.009803922 | F35: =(1+cpi_3)/(1+cpi) -> 1.019607843
C36: Pension over entire period (including taper and ERF/LRF) | D36: =CurrentSal*Acc_alpha*D$33^($D15)*IFERROR((1-D$34^$D15)/(1-D$34),1) -> 0 | E36: =CurrentSal*Acc_alpha*E$33^($D15)*IFERROR((1-E$34^$D15)/(1-E$34),1) -> 0 | F36: =CurrentSal*Acc_alpha*F$33^($D15)*IFERROR((1-F$34^$D15)/(1-F$34),1) -> 0
C37: Length of future taper period | D37: =D19 -> 126.2527778 | E37: =D37 -> 126.2527778 | F37: =E37 -> 126.2527778
C38: Revalued pension missed in taper period | D38: =CurrentSal*Acc_alpha*D$33^($D37)*(1-D$34^$D37)/(1-D$34)*(1+care_rev)^$D16 ->  | E38: =CurrentSal*Acc_alpha*E$33^($E37)*(1-E$34^$E37)/(1-E$34)*(1+care_rev)^$D16 -> 0 | F38: =CurrentSal*Acc_alpha*F$33^($F37)*(1-F$34^$F37)/(1-F$34)*(1+care_rev)^$D16 -> 0
C39: CARE future service pension | D39: =D36-D38 ->  | E39: =E36-E38 -> 0 | F39: =F36-F38 -> 0
C40: Discounted pension | D40: =SUM(D31,D39)/(1+cpi)^$D14 ->  | E40: =SUM(E31,E39)/(1+cpi)^$D14 ->  | F40: =SUM(F31,F39)/(1+cpi)^$D14 -> 
C41: Apply ERF and LRF | D41: =D40*$D29*$D28 ->  | E41: =E40*$D29*$D28 ->  | F41: =F40*$D29*$D28 -> 
C42: Final Pension (includes PTP) | D42: =IF(PT_Status="some Part-Time",D41*future_PTP,D41) ->  | E42: =IF(PT_Status="some Part-Time",E41*future_PTP,E41) ->  | F42: =IF(PT_Status="some Part-Time",F41*future_PTP,F41) -> 

Sheet Summary (hidden)
A1: Government Actuary's Department
A2: =IF(title="> Enter workbook title here","Enter workbook title in Cover sheet",title) -> Northern Ireland Civil Service Pension Scheme Calculator
A3: Diagnostic summary sheet
A4: =CELL("filename",A1) -> C:\Users\dof-aytond\Desktop\[NICS - BenProjectCalculator v0.21.xlsm]Summary
D5: Real | H5: Nominal
D7: =basis1 -> CPI + 0.0% | E7: =basis2 -> CPI + 1.0% | F7: =basis3 -> CPI + 2.0% | H7: =basis1 -> CPI + 0.0% | I7: =basis2 -> CPI + 1.0% | J7: =basis3 -> CPI + 2.0%
B8: Pre-2015 Calcs Used And Results (FS) | C8: Current Salary | D8: =CurrentSal -> 0 | E8: =D8 -> 0 | F8: =D8 -> 0 | H8: =CurrentSal -> 0 | I8: =H8 -> 0 | J8: =H8 -> 0
C9: Projected Salary | D9: ='FS calcs'!G32 ->  | E9: ='FS calcs'!G33 ->  | F9: ='FS calcs'!G34 ->  | H9: =D9 -> 
C10: Discounted Project Salary | D10: ='FS calcs'!G35 ->  | E10: ='FS calcs'!G36 ->  | F10: ='FS calcs'!G37 -> 
C11: Age at protection end date | D11: =('FS calcs'!DoProtEnd-DoB)/DoY -> 0 | E11: =D11 -> 0 | F11: =D11 -> 0 | H11: =('FS calcs'!DoProtEnd-DoB)/DoY -> 0 | I11: =H11 -> 0 | J11: =H11 -> 0
C13: Protection end date | D13: ='FS calcs'!DoProtEnd -> 00:00:00 | E13: =+D13 -> 00:00:00 | F13: =+E13 -> 00:00:00 | H13: ='FS calcs'!DoProtEnd -> 00:00:00 | I13: =+H13 -> 00:00:00 | J13: =+I13 -> 00:00:00
C14: Date of retirement | D14: =DoR -> 00:00:00 | E14: =DoR -> 00:00:00 | F14: =DoR -> 00:00:00 | H14: =DoR -> 00:00:00 | I14: =DoR -> 00:00:00 | J14: =DoR -> 00:00:00
C15: Age at retirement | D15: =ChosenRA -> 0 | E15: =ChosenRA -> 0 | F15: =ChosenRA -> 0 | H15: =ChosenRA -> 0 | I15: =ChosenRA -> 0 | J15: =ChosenRA -> 0
C17: Pre-Commutation Pension | D17: ='Lump Sum'!D14 -> 0 | E17: ='Lump Sum'!E14 -> 0 | F17: ='Lump Sum'!F14 -> 0 | H17: ='Lump Sum'!D38 -> 0 | I17: ='Lump Sum'!E38 -> 0 | J17: ='Lump Sum'!F38 -> 0
C18: Max Lump Sum | D18: ='Lump Sum'!D21 -> 0 | E18: ='Lump Sum'!E21 -> 0 | F18: ='Lump Sum'!F21 -> 0 | H18: ='Lump Sum'!D45 -> 0 | I18: ='Lump Sum'!E45 -> 0 | J18: ='Lump Sum'!F45 -> 0
C19: Maximum Amount Commutable | D19: ='Lump Sum'!D18 ->  | E19: ='Lump Sum'!E18 ->  | F19: ='Lump Sum'!F18 ->  | H19: ='Lump Sum'!D42 ->  | I19: ='Lump Sum'!E42 ->  | J19: ='Lump Sum'!F42 -> 
C20: Post-Commutation Pension | D20: ='Lump Sum'!D19 ->  | E20: ='Lump Sum'!E19 ->  | F20: ='Lump Sum'!F19 ->  | H20: ='Lump Sum'!D43 ->  | I20: ='Lump Sum'!E43 ->  | J20: ='Lump Sum'!F43 -> 
C21: Non-Commutation Lump Sum | D21: ='Lump Sum'!D20 -> 0 | E21: ='Lump Sum'!E20 -> 0 | F21: ='Lump Sum'!F20 -> 0 | H21: ='Lump Sum'!D44 -> 0 | I21: ='Lump Sum'!E44 -> 0 | J21: ='Lump Sum'!F44 -> 0
D23: =basis1 -> CPI + 0.0% | E23: =basis2 -> CPI + 1.0% | F23: =basis3 -> CPI + 2.0% | H23: =basis1 -> CPI + 0.0% | I23: =basis2 -> CPI + 1.0% | J23: =basis3 -> CPI + 2.0%
B24: nuvos pension results | C24: Chosen ret age | D24: ='nuvos CARE calcs_NOT USED'!$D$25 -> 0 | E24: ='nuvos CARE calcs_NOT USED'!$D$25 -> 0 | F24: ='nuvos CARE calcs_NOT USED'!$D$25 -> 0 | H24: ='nuvos CARE calcs_NOT USED'!$D$25 -> 0 | I24: ='nuvos CARE calcs_NOT USED'!$D$25 -> 0 | J24: ='nuvos CARE calcs_NOT USED'!$D$25 -> 0
C25: SPA | D25: ='nuvos CARE calcs_NOT USED'!$D$24 ->  | E25: ='nuvos CARE calcs_NOT USED'!$D$24 ->  | F25: ='nuvos CARE calcs_NOT USED'!$D$24 ->  | H25: ='nuvos CARE calcs_NOT USED'!$D$24 ->  | I25: ='nuvos CARE calcs_NOT USED'!$D$24 ->  | J25: ='nuvos CARE calcs_NOT USED'!$D$24 -> 
C26: =CONCATENATE(IF(ChosenRA<55,"Deferred p","P"),"re-Commutation Pension") -> Deferred pre-Commutation Pension | D26: ='Lump Sum'!D24 -> 0 | E26: ='Lump Sum'!E24 -> 0 | F26: ='Lump Sum'!F24 -> 0 | H26: ='Lump Sum'!D48 -> 0 | I26: ='Lump Sum'!E48 -> 0 | J26: ='Lump Sum'!F48 -> 0
C27: Max Lump Sum | D27: ='Lump Sum'!D25 ->  | E27: ='Lump Sum'!E25 ->  | F27: ='Lump Sum'!F25 ->  | H27: ='Lump Sum'!D49 ->  | I27: ='Lump Sum'!E49 ->  | J27: ='Lump Sum'!F49 -> 
C28: Maximum Amount Commutable | D28: ='Lump Sum'!D26 ->  | E28: ='Lump Sum'!E26 ->  | F28: ='Lump Sum'!F26 ->  | H28: ='Lump Sum'!D50 ->  | I28: ='Lump Sum'!E50 ->  | J28: ='Lump Sum'!F50 -> 
C29: Post-Commutation Pension | D29: ='Lump Sum'!D27 ->  | E29: ='Lump Sum'!E27 ->  | F29: ='Lump Sum'!F27 ->  | H29: ='Lump Sum'!D51 ->  | I29: ='Lump Sum'!E51 ->  | J29: ='Lump Sum'!F51 -> 
D31: =basis1 -> CPI + 0.0% | E31: =basis2 -> CPI + 1.0% | F31: =basis3 -> CPI + 2.0% | H31: =basis1 -> CPI + 0.0% | I31: =basis2 -> CPI + 1.0% | J31: =basis3 -> CPI + 2.0%
B32: alpha pension results | C32: Chosen ret age | D32: ='alpha CARE calcs_NOT USED'!$D$25 -> 0 | E32: ='alpha CARE calcs_NOT USED'!$D$25 -> 0 | F32: ='alpha CARE calcs_NOT USED'!$D$25 -> 0 | H32: ='alpha CARE calcs_NOT USED'!$D$25 -> 0 | I32: ='alpha CARE calcs_NOT USED'!$D$25 -> 0 | J32: ='alpha CARE calcs_NOT USED'!$D$25 -> 0
C33: SPA | D33: ='alpha CARE calcs_NOT USED'!$D$24 ->  | E33: ='alpha CARE calcs_NOT USED'!$D$24 ->  | F33: ='alpha CARE calcs_NOT USED'!$D$24 ->  | H33: ='alpha CARE calcs_NOT USED'!$D$24 ->  | I33: ='alpha CARE calcs_NOT USED'!$D$24 ->  | J33: ='alpha CARE calcs_NOT USED'!$D$24 -> 
C34: =CONCATENATE(IF(ChosenRA<55,"Deferred p","P"),"re-Commutation Pension") -> Deferred pre-Commutation Pension | D34: ='Lump Sum'!D30 -> 0 | E34: ='Lump Sum'!E30 -> 0 | F34: ='Lump Sum'!F30 -> 0 | H34: ='Lump Sum'!D54 -> 0 | I34: ='Lump Sum'!E54 -> 0 | J34: ='Lump Sum'!F54 -> 0
C35: Max Lump Sum | D35: ='Lump Sum'!D31 -> 0 | E35: ='Lump Sum'!E31 -> 0 | F35: ='Lump Sum'!F31 -> 0 | H35: ='Lump Sum'!D55 -> 0 | I35: ='Lump Sum'!E55 -> 0 | J35: ='Lump Sum'!F55 -> 0
C36: Maximum Amount Commutable | D36: ='Lump Sum'!D32 -> 0 | E36: ='Lump Sum'!E32 -> 0 | F36: ='Lump Sum'!F32 -> 0 | H36: ='Lump Sum'!D56 -> 0 | I36: ='Lump Sum'!E56 -> 0 | J36: ='Lump Sum'!F56 -> 0
C37: Post-Commutation Pension | D37: ='Lump Sum'!D33 -> 0 | E37: ='Lump Sum'!E33 -> 0 | F37: ='Lump Sum'!F33 -> 0 | H37: ='Lump Sum'!D57 -> 0 | I37: ='Lump Sum'!E57 -> 0 | J37: ='Lump Sum'!F57 -> 0
C40: Rounded figures | D40: =basis1 -> CPI + 0.0% | E40: =basis2 -> CPI + 1.0% | F40: =basis3 -> CPI + 2.0% | H40: =basis1 -> CPI + 0.0% | I40: =basis2 -> CPI + 1.0% | J40: =basis3 -> CPI + 2.0%
C41: Current salary (at start of scheme year) | D41: =ROUND(CurrentSal,0) -> 0 | E41: =$D41 -> 0 | F41: =$D41 -> 0 | H41: =ROUND(CurrentSal,0) -> 0 | I41: =$D41 -> 0 | J41: =$D41 -> 0
C42: Projected full time salary at retirement | D42: =ROUND(D9,0) ->  | E42: =ROUND(E9,0) ->  | F42: =ROUND(F9,0) ->  | H42: =ROUND(H9,0) ->  | I42: =ROUND(I9,0) ->  | J42: =ROUND(J9,0) -> 
B43: Assuming max commutation | C43: =Scheme_Full&" pension" -> pension | D43: =IF(Scheme_Full="nuvos",IF(D29<0,"input error",ROUND(D29,0)),IF(D20<0,"input error",ROUND(D20,0))) ->  | E43: =IF(Scheme_Full="nuvos",IF(E29<0,"input error",ROUND(E29,0)),IF(E20<0,"input error",ROUND(E20,0))) ->  | F43: =IF(Scheme_Full="nuvos",IF(F29<0,"input error",ROUND(F29,0)),IF(F20<0,"input error",ROUND(F20,0))) ->  | H43: =IF(Scheme_Full="nuvos",IF(H29<0,"input error",ROUND(H29,0)),IF(H20<0,"input error",ROUND(H20,0))) ->  | I43: =IF(Scheme_Full="nuvos",IF(I29<0,"input error",ROUND(I29,0)),IF(I20<0,"input error",ROUND(I20,0))) ->  | J43: =IF(Scheme_Full="nuvos",IF(J29<0,"input error",ROUND(J29,0)),IF(J20<0,"input error",ROUND(J20,0))) -> 
C44: =Scheme_Full&" lump sum" -> lump sum | D44: =IF(Scheme_Full="nuvos",ROUND(D27,0),ROUND(D18,0)) -> 0 | E44: =IF(Scheme_Full="nuvos",ROUND(E27,0),ROUND(E18,0)) -> 0 | F44: =IF(Scheme_Full="nuvos",ROUND(F27,0),ROUND(F18,0)) -> 0 | H44: =IF(Scheme_Full="nuvos",ROUND(H27,0),ROUND(H18,0)) -> 0 | I44: =IF(Scheme_Full="nuvos",ROUND(I27,0),ROUND(I18,0)) -> 0 | J44: =IF(Scheme_Full="nuvos",ROUND(J27,0),ROUND(J18,0)) -> 0
C45: ="alpha pension" & IF(ChosenRA>=55,""," deferred until SPA") -> alpha pension deferred until SPA | D45: =IF(D37<0,"input error",ROUND(D37,0)) -> 0 | E45: =IF(E37<0,"input error",ROUND(E37,0)) -> 0 | F45: =IF(F37<0,"input error",ROUND(F37,0)) -> 0 | H45: =IF(H37<0,"input error",ROUND(H37,0)) -> 0 | I45: =IF(I37<0,"input error",ROUND(I37,0)) -> 0 | J45: =IF(J37<0,"input error",ROUND(J37,0)) -> 0
C46: ="alpha lump sum" & IF(ChosenRA>=55,""," deferred until SPA") -> alpha lump sum deferred until SPA | D46: =ROUND(Summary!D35,0) -> 0 | E46: =ROUND(Summary!E35,0) -> 0 | F46: =ROUND(Summary!F35,0) -> 0 | H46: =ROUND(Summary!H35,0) -> 0 | I46: =ROUND(Summary!I35,0) -> 0 | J46: =ROUND(Summary!J35,0) -> 0
C47: Total pension | D47: =IF(ChosenRA<55,"",IF(OR(D43<0,D45<0),"input error",ROUND(SUM(D43,D45),0))) ->  | E47: =IF(ChosenRA<55,"",IF(OR(E43<0,E45<0),"input error",ROUND(SUM(E43,E45),0))) ->  | F47: =IF(ChosenRA<55,"",IF(OR(F43<0,F45<0),"input error",ROUND(SUM(F43,F45),0))) ->  | H47: =IF(ChosenRA<55,"",IF(OR(H43<0,H45<0),"input error",ROUND(SUM(H43,H45),0))) ->  | I47: =IF(ChosenRA<55,"",IF(OR(I43<0,I45<0),"input error",ROUND(SUM(I43,I45),0))) ->  | J47: =IF(ChosenRA<55,"",IF(OR(J43<0,J45<0),"input error",ROUND(SUM(J43,J45),0))) -> 
C48: Total lump sum | D48: =IF(ChosenRA<55,"",ROUND(SUM(D44,D46),0)) ->  | E48: =IF(ChosenRA<55,"",ROUND(SUM(E44,E46),0)) ->  | F48: =IF(ChosenRA<55,"",ROUND(SUM(F44,F46),0)) ->  | H48: =IF(ChosenRA<55,"",ROUND(SUM(H44,H46),0)) ->  | I48: =IF(ChosenRA<55,"",ROUND(SUM(I44,I46),0)) ->  | J48: =IF(ChosenRA<55,"",ROUND(SUM(J44,J46),0)) -> 
B49: Assuming no commutation | C49: =Scheme_Full&" pension" -> pension | D49: =IF(Scheme_Full="nuvos",IF(D26<0,"input error",ROUND(D26,0)),IF(D17<0,"input error",ROUND(D17,0))) -> 0 | E49: =IF(Scheme_Full="nuvos",IF(E26<0,"input error",ROUND(E26,0)),IF(E17<0,"input error",ROUND(E17,0))) -> 0 | F49: =IF(Scheme_Full="nuvos",IF(F26<0,"input error",ROUND(F26,0)),IF(F17<0,"input error",ROUND(F17,0))) -> 0 | H49: =IF(Scheme_Full="nuvos",IF(H26<0,"input error",ROUND(H26,0)),IF(H17<0,"input error",ROUND(H17,0))) -> 0 | I49: =IF(Scheme_Full="nuvos",IF(I26<0,"input error",ROUND(I26,0)),IF(I17<0,"input error",ROUND(I17,0))) -> 0 | J49: =IF(Scheme_Full="nuvos",IF(J26<0,"input error",ROUND(J26,0)),IF(J17<0,"input error",ROUND(J17,0))) -> 0
C50: =Scheme_Full&" lump sum" -> lump sum | D50: =IF(Scheme_Full="nuvos",0,ROUND(D21,0)) -> 0 | E50: =IF(Scheme_Full="nuvos",0,ROUND(E21,0)) -> 0 | F50: =IF(Scheme_Full="nuvos",0,ROUND(F21,0)) -> 0 | H50: =IF(Scheme_Full="nuvos",0,ROUND(H21,0)) -> 0 | I50: =IF(Scheme_Full="nuvos",0,ROUND(I21,0)) -> 0 | J50: =IF(Scheme_Full="nuvos",0,ROUND(J21,0)) -> 0
C51: ="alpha pension" & IF(ChosenRA>=55,""," deferred until SPA") -> alpha pension deferred until SPA | D51: =IF(D34<0,"input error",ROUND(D34,0)) -> 0 | E51: =IF(E34<0,"input error",ROUND(E34,0)) -> 0 | F51: =IF(F34<0,"input error",ROUND(F34,0)) -> 0 | H51: =IF(H34<0,"input error",ROUND(H34,0)) -> 0 | I51: =IF(I34<0,"input error",ROUND(I34,0)) -> 0 | J51: =IF(J34<0,"input error",ROUND(J34,0)) -> 0
C52: Total pension | D52: =IF(ChosenRA<55,"",IF(OR(D17<0,D34<0),"input error",ROUND(SUM(D49,D51),0))) ->  | E52: =IF(ChosenRA<55,"",IF(OR(E17<0,E34<0),"input error",ROUND(SUM(E49,E51),0))) ->  | F52: =IF(ChosenRA<55,"",IF(OR(F17<0,F34<0),"input error",ROUND(SUM(F49,F51),0))) ->  | H52: =IF(ChosenRA<55,"",IF(OR(H17<0,H34<0),"input error",ROUND(SUM(H49,H51),0))) ->  | I52: =IF(ChosenRA<55,"",IF(OR(I17<0,I34<0),"input error",ROUND(SUM(I49,I51),0))) ->  | J52: =IF(ChosenRA<55,"",IF(OR(J17<0,J34<0),"input error",ROUND(SUM(J49,J51),0))) -> 
C53: Total lump sum | D53: =D50 -> 0 | E53: =E50 -> 0 | F53: =F50 -> 0 | H53: =H50 -> 0 | I53: =I50 -> 0 | J53: =J50 -> 0
